Organisation Code,Organisation Label,Effective Date,Organisational Unit,Service Division Label,Category Internal Name,Purpose,Detailed Expenditure Code,Payment Date,Transaction Number,Irrecoverable VAT Amount,Amount,Capital Or Revenue,Benificiary Name,Procurement Card,,
Http://opendatacommunities.org/id/metropolitan-district-council/leeds,Leeds City Council,30/09/2017,Environment & Housing,Leeds Building Services,Supplies and Services,Operational Materials,205,04/09/2017,1709-00001,0.00,262.70,R,A & A Electrical Distributors Ltd,No,,
Http://opendatacommunities.org/id/metropolitan-district-council/leeds,Leeds City Council,30/09/2017,Environment & Housing,Leeds Building Services,Supplies and Services,Operational Materials,205,08/09/2017,1709-00002,0.00,299.07,R,A & A Electrical Distributors Ltd,No,,
Http://opendatacommunities.org/id/metropolitan-district-council/leeds,Leeds City Council,30/09/2017,Environment & Housing,Environmental Action (City Centre)  ,Supplies and Services,Operational Furniture And Equipment,203,18/08/2017,1709-00003,0.00,10.80,R,A & E Squire Ltd,Yes,,
Http://opendatacommunities.org/id/metropolitan-district-council/leeds,Leeds City Council,30/09/2017,Environment & Housing,Environmental Action (City Centre)  ,Supplies and Services,Operational Materials,205,23/08/2017,1709-00004,0.00,44.50,R,A & E Squire Ltd,Yes,,
Http://opendatacommunities.org/id/metropolitan-district-council/leeds,Leeds City Council,30/09/2017,Environment & Housing,Leeds Building Services,Supplies and Services,Operational Materials,205,04/09/2017,1709-00005,0.00,5.74,R,A Andrews & Sons (Marbles & Tiles),No,,
Http://opendatacommunities.org/id/metropolitan-district-council/leeds,Leeds City Council,30/09/2017,Environment & Housing,Leeds Building Services,Supplies and Services,Operational Materials,205,08/09/2017,1709-00006,0.00,7.80,R,A Andrews & Sons (Marbles & Tiles),No,,
Http://opendatacommunities.org/id/metropolitan-district-council/leeds,Leeds City Council,30/09/2017,Environment & Housing,Leeds Building Services,Supplies and Services,Operational Materials,205,15/09/2017,1709-00007,0.00,7.81,R,A Andrews & Sons (Marbles & Tiles),No,,
Http://opendatacommunities.org/id/metropolitan-district-council/leeds,Leeds City Council,30/09/2017,Environment & Housing,Leeds Building Services,Supplies and Services,Operational Materials,205,15/09/2017,1709-00008,0.00,17.92,R,A Andrews & Sons (Marbles & Tiles),No,,
Http://opendatacommunities.org/id/metropolitan-district-council/leeds,Leeds City Council,30/09/2017,Environment & Housing,Leeds Building Services,Supplies and Services,Operational Materials,205,25/09/2017,1709-00009,0.00,2.00,R,A Andrews & Sons (Marbles & Tiles),No,,
Http://opendatacommunities.org/id/metropolitan-district-council/leeds,Leeds City Council,30/09/2017,City Development,Libraries  Arts & Heritage,Supplies and Services,Other Hired And Contracted Services,265,22/09/2017,1709-00010,0.00,120.00,R,A B Jones,No,,
Http://opendatacommunities.org/id/metropolitan-district-council/leeds,Leeds City Council,30/09/2017,Children and Families,Safeguarding Targeted & Specialist,Third Party Payments,Services Rendered By Other Organisations,511,15/09/2017,1709-00011,0.00,1696.80,R,REDACTED PERSONAL DATA,No,,
Http://opendatacommunities.org/id/metropolitan-district-council/leeds,Leeds City Council,30/09/2017,City Development,Libraries  Arts & Heritage,Supplies and Services,Operational Materials,205,06/09/2017,1709-00012,0.00,315.00,R,A C Entertainment Technologies Ltd,No,,
Http://opendatacommunities.org/id/metropolitan-district-council/leeds,Leeds City Council,30/09/2017,City Development,Libraries  Arts & Heritage,Supplies and Services,Operational Furniture And Equipment,203,28/09/2017,1709-00013,0.00,80.30,R,A C Entertainment Technologies Ltd,No,,
Http://opendatacommunities.org/id/metropolitan-district-council/leeds,Leeds City Council,30/09/2017,Children and Families,Safeguarding Targeted & Specialist,Third Party Payments,Services Rendered By Other Organisations,511,20/09/2017,1709-00014,0.00,2822.40,R,REDACTED PERSONAL DATA,No,,
Http://opendatacommunities.org/id/metropolitan-district-council/leeds,Leeds City Council,30/09/2017,Children and Families,Safeguarding Targeted & Specialist,Third Party Payments,Services Rendered By Other Organisations,511,20/09/2017,1709-00015,0.00,151.20,R,A Clarkson,No,,
Http://opendatacommunities.org/id/metropolitan-district-council/leeds,Leeds City Council,30/09/2017,Environment & Housing,Parks and Countryside,Supplies and Services,Bought In Professional Services,277,13/09/2017,1709-00016,0.00,2300.85,R,REDACTED COMMERCIAL CONFIDENTIALITY,No,,
Http://opendatacommunities.org/id/metropolitan-district-council/leeds,Leeds City Council,30/09/2017,Environment & Housing,Parks and Countryside,Supplies and Services,Bought In Professional Services,277,21/09/2017,1709-00017,0.00,2267.22,R,REDACTED COMMERCIAL CONFIDENTIALITY,No,,
Http://opendatacommunities.org/id/metropolitan-district-council/leeds,Leeds City Council,30/09/2017,Children and Families,Safeguarding Targeted & Specialist,Third Party Payments,Services Rendered By Voluntary Sector,505,15/09/2017,1709-00018,0.00,6787.20,R,A E Speight,No,,
Http://opendatacommunities.org/id/metropolitan-district-council/leeds,Leeds City Council,30/09/2017,Children and Families,Safeguarding Targeted & Specialist,Third Party Payments,Services Rendered By Voluntary Sector,505,20/09/2017,1709-00019,0.00,8184.96,R,A E Speight,No,,
Http://opendatacommunities.org/id/metropolitan-district-council/leeds,Leeds City Council,30/09/2017,City Development,Highways,Capital,Construction,3,12/09/2017,1709-00020,0.00,292213.21,C,A E Yates Ltd,No,,
Http://opendatacommunities.org/id/metropolitan-district-council/leeds,Leeds City Council,30/09/2017,Children and Families,Safeguarding Targeted & Specialist,Third Party Payments,Services Rendered By Other Organisations,511,15/09/2017,1709-00021,0.00,848.40,R,A Green,No,,
Http://opendatacommunities.org/id/metropolitan-district-council/leeds,Leeds City Council,30/09/2017,Children and Families,Safeguarding Targeted & Specialist,Third Party Payments,Services Rendered By Other Organisations,511,20/09/2017,1709-00022,0.00,1411.20,R,A Green,No,,
Http://opendatacommunities.org/id/metropolitan-district-council/leeds,Leeds City Council,30/09/2017,City Development,Libraries  Arts & Heritage,Supplies and Services,Bought In Professional Services,277,22/09/2017,1709-00023,0.00,1760.00,R,A H Fraga,No,,
Http://opendatacommunities.org/id/metropolitan-district-council/leeds,Leeds City Council,30/09/2017,Children and Families,Safeguarding Targeted & Specialist,Third Party Payments,Allowances,546,22/09/2017,1709-00024,0.00,3000.00,R,REDACTED PERSONAL DATA,No,,
Http://opendatacommunities.org/id/metropolitan-district-council/leeds,Leeds City Council,30/09/2017,Children and Families,Safeguarding Targeted & Specialist,Third Party Payments,Services Rendered By Other Organisations,511,20/09/2017,1709-00025,0.00,1115.52,R,A Hayes,No,,
Http://opendatacommunities.org/id/metropolitan-district-council/leeds,Leeds City Council,30/09/2017,Children and Families,Safeguarding Targeted & Specialist,Third Party Payments,Services Rendered By Other Organisations,511,20/09/2017,1709-00026,0.00,3386.88,R,A Hodgson,No,,
Http://opendatacommunities.org/id/metropolitan-district-council/leeds,Leeds City Council,30/09/2017,Children and Families,Safeguarding Targeted & Specialist,Third Party Payments,Services Rendered By Other Organisations,511,20/09/2017,1709-00027,0.00,1347.36,R,REDACTED PERSONAL DATA,No,,
Http://opendatacommunities.org/id/metropolitan-district-council/leeds,Leeds City Council,30/09/2017,Children and Families,Safeguarding Targeted & Specialist,Third Party Payments,Services Rendered By Other Organisations,511,15/09/2017,1709-00028,0.00,848.40,R,REDACTED PERSONAL DATA,No,,
Http://opendatacommunities.org/id/metropolitan-district-council/leeds,Leeds City Council,30/09/2017,Environment & Housing,Leeds Building Services,Supplies and Services,Operational Materials,205,01/09/2017,1709-00029,0.00,384.00,R,A J H  Pump Supply & Repair Ltd,No,,
Http://opendatacommunities.org/id/metropolitan-district-council/leeds,Leeds City Council,30/09/2017,Environment & Housing,Leeds Building Services,Supplies and Services,Operational Materials,205,04/09/2017,1709-00030,0.00,1809.00,R,A J H  Pump Supply & Repair Ltd,No,,
Http://opendatacommunities.org/id/metropolitan-district-council/leeds,Leeds City Council,30/09/2017,Environment & Housing,Leeds Building Services,Supplies and Services,Operational Materials,205,04/09/2017,1709-00031,0.00,33.59,R,A J H  Pump Supply & Repair Ltd,No,,
Http://opendatacommunities.org/id/metropolitan-district-council/leeds,Leeds City Council,30/09/2017,Environment & Housing,Leeds Building Services,Supplies and Services,Operational Materials,205,04/09/2017,1709-00032,0.00,265.45,R,A J H  Pump Supply & Repair Ltd,No,,
Http://opendatacommunities.org/id/metropolitan-district-council/leeds,Leeds City Council,30/09/2017,Environment & Housing,Leeds Building Services,Supplies and Services,Operational Materials,205,04/09/2017,1709-00033,0.00,23.92,R,A J H  Pump Supply & Repair Ltd,No,,
Http://opendatacommunities.org/id/metropolitan-district-council/leeds,Leeds City Council,30/09/2017,Environment & Housing,Leeds Building Services,Supplies and Services,Operational Materials,205,04/09/2017,1709-00034,0.00,20.20,R,A J H  Pump Supply & Repair Ltd,No,,
Http://opendatacommunities.org/id/metropolitan-district-council/leeds,Leeds City Council,30/09/2017,Environment & Housing,Leeds Building Services,Supplies and Services,Operational Materials,205,04/09/2017,1709-00035,0.00,285.00,R,A J H  Pump Supply & Repair Ltd,No,,
Http://opendatacommunities.org/id/metropolitan-district-council/leeds,Leeds City Council,30/09/2017,Environment & Housing,Leeds Building Services,Supplies and Services,Operational Materials,205,04/09/2017,1709-00036,0.00,164.97,R,A J H  Pump Supply & Repair Ltd,No,,
Http://opendatacommunities.org/id/metropolitan-district-council/leeds,Leeds City Council,30/09/2017,Environment & Housing,Leeds Building Services,Supplies and Services,Operational Materials,205,04/09/2017,1709-00037,0.00,69.33,R,A J H  Pump Supply & Repair Ltd,No,,
Http://opendatacommunities.org/id/metropolitan-district-council/leeds,Leeds City Council,30/09/2017,Environment & Housing,Leeds Building Services,Supplies and Services,Operational Materials,205,04/09/2017,1709-00038,0.00,169.18,R,A J H  Pump Supply & Repair Ltd,No,,
Http://opendatacommunities.org/id/metropolitan-district-council/leeds,Leeds City Council,30/09/2017,Environment & Housing,Leeds Building Services,Supplies and Services,Operational Materials,205,04/09/2017,1709-00039,0.00,57.39,R,A J H  Pump Supply & Repair Ltd,No,,
Http://opendatacommunities.org/id/metropolitan-district-council/leeds,Leeds City Council,30/09/2017,Environment & Housing,Leeds Building Services,Supplies and Services,Operational Materials,205,04/09/2017,1709-00040,0.00,32.40,R,A J H  Pump Supply & Repair Ltd,No,,
Http://opendatacommunities.org/id/metropolitan-district-council/leeds,Leeds City Council,30/09/2017,Environment & Housing,Leeds Building Services,Supplies and Services,Other Hired And Contracted Services,265,04/09/2017,1709-00041,0.00,198.00,R,A J H  Pump Supply & Repair Ltd,No,,
Http://opendatacommunities.org/id/metropolitan-district-council/leeds,Leeds City Council,30/09/2017,Environment & Housing,Leeds Building Services,Supplies and Services,Operational Materials,205,08/09/2017,1709-00042,0.00,265.00,R,A J H  Pump Supply & Repair Ltd,No,,
Http://opendatacommunities.org/id/metropolitan-district-council/leeds,Leeds City Council,30/09/2017,Environment & Housing,Leeds Building Services,Supplies and Services,Operational Materials,205,11/09/2017,1709-00043,0.00,29.53,R,A J H  Pump Supply & Repair Ltd,No,,
Http://opendatacommunities.org/id/metropolitan-district-council/leeds,Leeds City Council,30/09/2017,Environment & Housing,Leeds Building Services,Supplies and Services,Operational Materials,205,11/09/2017,1709-00044,0.00,163.00,R,A J H  Pump Supply & Repair Ltd,No,,
Http://opendatacommunities.org/id/metropolitan-district-council/leeds,Leeds City Council,30/09/2017,Environment & Housing,Leeds Building Services,Supplies and Services,Operational Materials,205,11/09/2017,1709-00045,0.00,17.66,R,A J H  Pump Supply & Repair Ltd,No,,
Http://opendatacommunities.org/id/metropolitan-district-council/leeds,Leeds City Council,30/09/2017,Environment & Housing,Leeds Building Services,Supplies and Services,Operational Materials,205,11/09/2017,1709-00046,0.00,295.00,R,A J H  Pump Supply & Repair Ltd,No,,
Http://opendatacommunities.org/id/metropolitan-district-council/leeds,Leeds City Council,30/09/2017,Environment & Housing,Leeds Building Services,Supplies and Services,Operational Materials,205,11/09/2017,1709-00047,0.00,160.65,R,A J H  Pump Supply & Repair Ltd,No,,
Http://opendatacommunities.org/id/metropolitan-district-council/leeds,Leeds City Council,30/09/2017,Environment & Housing,Leeds Building Services,Supplies and Services,Operational Materials,205,11/09/2017,1709-00048,0.00,475.71,R,A J H  Pump Supply & Repair Ltd,No,,
Http://opendatacommunities.org/id/metropolitan-district-council/leeds,Leeds City Council,30/09/2017,Environment & Housing,Leeds Building Services,Supplies and Services,Operational Materials,205,11/09/2017,1709-00049,0.00,57.44,R,A J H  Pump Supply & Repair Ltd,No,,
Http://opendatacommunities.org/id/metropolitan-district-council/leeds,Leeds City Council,30/09/2017,Environment & Housing,Leeds Building Services,Supplies and Services,Operational Materials,205,11/09/2017,1709-00050,0.00,39.50,R,A J H  Pump Supply & Repair Ltd,No,,
Http://opendatacommunities.org/id/metropolitan-district-council/leeds,Leeds City Council,30/09/2017,Environment & Housing,Leeds Building Services,Supplies and Services,Operational Materials,205,11/09/2017,1709-00051,0.00,41.51,R,A J H  Pump Supply & Repair Ltd,No,,
Http://opendatacommunities.org/id/metropolitan-district-council/leeds,Leeds City Council,30/09/2017,Environment & Housing,Leeds Building Services,Supplies and Services,Operational Materials,205,11/09/2017,1709-00052,0.00,14.14,R,A J H  Pump Supply & Repair Ltd,No,,
Http://opendatacommunities.org/id/metropolitan-district-council/leeds,Leeds City Council,30/09/2017,Environment & Housing,Leeds Building Services,Supplies and Services,Operational Materials,205,11/09/2017,1709-00053,0.00,108.45,R,A J H  Pump Supply & Repair Ltd,No,,
Http://opendatacommunities.org/id/metropolitan-district-council/leeds,Leeds City Council,30/09/2017,Environment & Housing,Leeds Building Services,Supplies and Services,Operational Materials,205,11/09/2017,1709-00054,0.00,65.00,R,A J H  Pump Supply & Repair Ltd,No,,
Http://opendatacommunities.org/id/metropolitan-district-council/leeds,Leeds City Council,30/09/2017,Environment & Housing,Leeds Building Services,Supplies and Services,Operational Materials,205,11/09/2017,1709-00055,0.00,72.90,R,A J H  Pump Supply & Repair Ltd,No,,
Http://opendatacommunities.org/id/metropolitan-district-council/leeds,Leeds City Council,30/09/2017,Environment & Housing,Leeds Building Services,Supplies and Services,Operational Materials,205,11/09/2017,1709-00056,0.00,240.00,R,A J H  Pump Supply & Repair Ltd,No,,
Http://opendatacommunities.org/id/metropolitan-district-council/leeds,Leeds City Council,30/09/2017,Environment & Housing,Leeds Building Services,Supplies and Services,Operational Materials,205,11/09/2017,1709-00057,0.00,255.00,R,A J H  Pump Supply & Repair Ltd,No,,
Http://opendatacommunities.org/id/metropolitan-district-council/leeds,Leeds City Council,30/09/2017,Environment & Housing,Leeds Building Services,Supplies and Services,Operational Materials,205,11/09/2017,1709-00058,0.00,65.85,R,A J H  Pump Supply & Repair Ltd,No,,
Http://opendatacommunities.org/id/metropolitan-district-council/leeds,Leeds City Council,30/09/2017,Environment & Housing,Leeds Building Services,Supplies and Services,Operational Materials,205,11/09/2017,1709-00059,0.00,375.00,R,A J H  Pump Supply & Repair Ltd,No,,
Http://opendatacommunities.org/id/metropolitan-district-council/leeds,Leeds City Council,30/09/2017,Environment & Housing,Leeds Building Services,Supplies and Services,Operational Materials,205,11/09/2017,1709-00060,0.00,277.00,R,A J H  Pump Supply & Repair Ltd,No,,
Http://opendatacommunities.org/id/metropolitan-district-council/leeds,Leeds City Council,30/09/2017,Environment & Housing,Leeds Building Services,Supplies and Services,Operational Materials,205,11/09/2017,1709-00061,0.00,231.35,R,A J H  Pump Supply & Repair Ltd,No,,
Http://opendatacommunities.org/id/metropolitan-district-council/leeds,Leeds City Council,30/09/2017,Environment & Housing,Leeds Building Services,Supplies and Services,Operational Materials,205,11/09/2017,1709-00062,0.00,56.92,R,A J H  Pump Supply & Repair Ltd,No,,
Http://opendatacommunities.org/id/metropolitan-district-council/leeds,Leeds City Council,30/09/2017,Environment & Housing,Leeds Building Services,Supplies and Services,Operational Materials,205,11/09/2017,1709-00063,0.00,102.90,R,A J H  Pump Supply & Repair Ltd,No,,
Http://opendatacommunities.org/id/metropolitan-district-council/leeds,Leeds City Council,30/09/2017,Environment & Housing,Leeds Building Services,Supplies and Services,Operational Materials,205,11/09/2017,1709-00064,0.00,20.21,R,A J H  Pump Supply & Repair Ltd,No,,
Http://opendatacommunities.org/id/metropolitan-district-council/leeds,Leeds City Council,30/09/2017,Environment & Housing,Leeds Building Services,Supplies and Services,Operational Materials,205,11/09/2017,1709-00065,0.00,147.30,R,A J H  Pump Supply & Repair Ltd,No,,
Http://opendatacommunities.org/id/metropolitan-district-council/leeds,Leeds City Council,30/09/2017,Environment & Housing,Leeds Building Services,Supplies and Services,Operational Materials,205,11/09/2017,1709-00066,0.00,29.95,R,A J H  Pump Supply & Repair Ltd,No,,
Http://opendatacommunities.org/id/metropolitan-district-council/leeds,Leeds City Council,30/09/2017,Environment & Housing,Leeds Building Services,Supplies and Services,Operational Materials,205,15/09/2017,1709-00067,0.00,93.00,R,A J H  Pump Supply & Repair Ltd,No,,
Http://opendatacommunities.org/id/metropolitan-district-council/leeds,Leeds City Council,30/09/2017,Environment & Housing,Leeds Building Services,Supplies and Services,Operational Materials,205,15/09/2017,1709-00068,0.00,154.36,R,A J H  Pump Supply & Repair Ltd,No,,
Http://opendatacommunities.org/id/metropolitan-district-council/leeds,Leeds City Council,30/09/2017,Environment & Housing,Leeds Building Services,Supplies and Services,Operational Materials,205,15/09/2017,1709-00069,0.00,343.15,R,A J H  Pump Supply & Repair Ltd,No,,
Http://opendatacommunities.org/id/metropolitan-district-council/leeds,Leeds City Council,30/09/2017,Environment & Housing,Leeds Building Services,Supplies and Services,Operational Materials,205,15/09/2017,1709-00070,0.00,175.00,R,A J H  Pump Supply & Repair Ltd,No,,
Http://opendatacommunities.org/id/metropolitan-district-council/leeds,Leeds City Council,30/09/2017,Environment & Housing,Leeds Building Services,Supplies and Services,Operational Materials,205,15/09/2017,1709-00071,0.00,166.72,R,A J H  Pump Supply & Repair Ltd,No,,
Http://opendatacommunities.org/id/metropolitan-district-council/leeds,Leeds City Council,30/09/2017,Environment & Housing,Leeds Building Services,Supplies and Services,Operational Materials,205,15/09/2017,1709-00072,0.00,326.50,R,A J H  Pump Supply & Repair Ltd,No,,
Http://opendatacommunities.org/id/metropolitan-district-council/leeds,Leeds City Council,30/09/2017,Environment & Housing,Leeds Building Services,Supplies and Services,Operational Materials,205,15/09/2017,1709-00073,0.00,6515.00,R,A J H  Pump Supply & Repair Ltd,No,,
Http://opendatacommunities.org/id/metropolitan-district-council/leeds,Leeds City Council,30/09/2017,Communities and Environment,Customer Access,Supplies and Services,Resaleable Materials,204,08/09/2017,1709-00074,0.00,61.45,R,A J Promotions,No,,
Http://opendatacommunities.org/id/metropolitan-district-council/leeds,Leeds City Council,30/09/2017,Communities and Environment,Customer Access,Supplies and Services,Resaleable Materials,204,20/09/2017,1709-00075,0.00,27.00,R,A J Promotions,No,,
Http://opendatacommunities.org/id/metropolitan-district-council/leeds,Leeds City Council,30/09/2017,City Development,Libraries  Arts & Heritage,Supplies and Services,Art Galleries Total Stores,003,20/09/2017,1709-00076,0.00,181.10,R,A J Promotions,No,,
Http://opendatacommunities.org/id/metropolitan-district-council/leeds,Leeds City Council,30/09/2017,Children and Families,Safeguarding Targeted & Specialist,Third Party Payments,Services Rendered By Other Organisations,511,15/09/2017,1709-00077,0.00,1696.80,R,A K Walsh,No,,
Http://opendatacommunities.org/id/metropolitan-district-council/leeds,Leeds City Council,30/09/2017,Children and Families,Safeguarding Targeted & Specialist,Third Party Payments,Services Rendered By Other Organisations,511,20/09/2017,1709-00078,0.00,2822.40,R,A K Walsh,No,,
Http://opendatacommunities.org/id/metropolitan-district-council/leeds,Leeds City Council,30/09/2017,Adults and Health,Public Health,Third Party Payments,Public Health Commissioned Services,526,06/09/2017,1709-00079,0.00,281.00,R,A Khan & K Muneer,No,,
Http://opendatacommunities.org/id/metropolitan-district-council/leeds,Leeds City Council,30/09/2017,Children and Families,Safeguarding Targeted & Specialist,Third Party Payments,Services Rendered By Other Organisations,511,20/09/2017,1709-00080,0.00,2116.80,R,A Longbottom,No,,
Http://opendatacommunities.org/id/metropolitan-district-council/leeds,Leeds City Council,30/09/2017,Communities and Environment,Customer Access,Supplies and Services,Other Hired And Contracted Services,265,04/09/2017,1709-00081,0.00,725.86,R,A Namaki,No,,
Http://opendatacommunities.org/id/metropolitan-district-council/leeds,Leeds City Council,30/09/2017,Children and Families,Safeguarding Targeted & Specialist,Third Party Payments,Services Rendered By Other Organisations,511,20/09/2017,1709-00082,0.00,705.60,R,REDACTED PERSONAL DATA,No,,
Http://opendatacommunities.org/id/metropolitan-district-council/leeds,Leeds City Council,30/09/2017,Children and Families,Safeguarding Targeted & Specialist,Third Party Payments,Services Rendered By Other Organisations,511,20/09/2017,1709-00083,0.00,604.80,R,REDACTED PERSONAL DATA,No,,
Http://opendatacommunities.org/id/metropolitan-district-council/leeds,Leeds City Council,30/09/2017,Civic Enterprise Leeds,Shared Services,Supplies and Services,Other Hired And Contracted Services,265,01/09/2017,1709-00084,0.00,46.25,R,A Star Couriers Ltd,No,,
Http://opendatacommunities.org/id/metropolitan-district-council/leeds,Leeds City Council,30/09/2017,Civic Enterprise Leeds,Shared Services,Supplies and Services,Other Hired And Contracted Services,265,13/09/2017,1709-00085,0.00,46.25,R,A Star Couriers Ltd,No,,
Http://opendatacommunities.org/id/metropolitan-district-council/leeds,Leeds City Council,30/09/2017,Civic Enterprise Leeds,Shared Services,Supplies and Services,Other Hired And Contracted Services,265,15/09/2017,1709-00086,0.00,35.00,R,A Star Couriers Ltd,No,,
Http://opendatacommunities.org/id/metropolitan-district-council/leeds,Leeds City Council,30/09/2017,City Development,Economic Development,Supplies and Services,Publication And Promotion,267,15/09/2017,1709-00087,0.00,300.00,R,A T Graphics Limited,No,,
Http://opendatacommunities.org/id/metropolitan-district-council/leeds,Leeds City Council,30/09/2017,Environment & Housing,Waste Management,Employees,Training & Development,70,19/09/2017,1709-00088,0.00,295.00,R,A T Nerac Ltd,No,,
Http://opendatacommunities.org/id/metropolitan-district-council/leeds,Leeds City Council,30/09/2017,Environment & Housing,Waste Management,Supplies and Services,Advertising,211,29/09/2017,1709-00089,0.00,707.00,R,A Up (North) Ltd,No,,
Http://opendatacommunities.org/id/metropolitan-district-council/leeds,Leeds City Council,30/09/2017,Children and Families,Safeguarding Targeted & Specialist,Third Party Payments,Services Rendered By Other Organisations,511,15/09/2017,1709-00090,0.00,848.40,R,A Walding,No,,
Http://opendatacommunities.org/id/metropolitan-district-council/leeds,Leeds City Council,30/09/2017,Children and Families,Safeguarding Targeted & Specialist,Third Party Payments,Services Rendered By Other Organisations,511,20/09/2017,1709-00091,0.00,9172.80,R,A Walding,No,,
Http://opendatacommunities.org/id/metropolitan-district-council/leeds,Leeds City Council,30/09/2017,Children and Families,Safeguarding Targeted & Specialist,Third Party Payments,Services Rendered By Other Organisations,511,20/09/2017,1709-00092,0.00,1182.72,R,REDACTED PERSONAL DATA,No,,
Http://opendatacommunities.org/id/metropolitan-district-council/leeds,Leeds City Council,30/09/2017,Children and Families,Safeguarding Targeted & Specialist,Third Party Payments,Services Rendered By Other Organisations,511,20/09/2017,1709-00093,0.00,705.60,R,REDACTED PERSONAL DATA,No,,
Http://opendatacommunities.org/id/metropolitan-district-council/leeds,Leeds City Council,30/09/2017,City Development,Libraries  Arts & Heritage  ,Supplies and Services,Operational Materials,205,15/08/2017,1709-00094,0.00,40.80,R,A.P.Fitzpatrick,Yes,,
Http://opendatacommunities.org/id/metropolitan-district-council/leeds,Leeds City Council,30/09/2017,Environment & Housing,Leeds Building Services,Supplies and Services,Other Hired And Contracted Services,265,25/09/2017,1709-00095,0.00,550.00,R,A1 Stair Lift Services,No,,
Http://opendatacommunities.org/id/metropolitan-district-council/leeds,Leeds City Council,30/09/2017,Adults and Health,Public Health,Third Party Payments,Public Health Commissioned Services,526,27/09/2017,1709-00096,0.00,64.34,R,Aaa Healthcare Ltd,No,,
Http://opendatacommunities.org/id/metropolitan-district-council/leeds,Leeds City Council,30/09/2017,Resources and Housing,Human Resources,Employees,Training & Development,70,22/09/2017,1709-00097,0.00,775.00,R,Aaa Training Co Ltd,No,,
Http://opendatacommunities.org/id/metropolitan-district-council/leeds,Leeds City Council as Accountable Body,30/09/2017,Social Services Pooled Budgets,Leeds Community Equip Store Pooled Budgt,Supplies and Services,Other Equipment,203,19/09/2017,1709-00098,0.00,5749.00,R,Aat (Gb) Ltd,No,,
Http://opendatacommunities.org/id/metropolitan-district-council/leeds,Leeds City Council,30/09/2017,Environment & Housing,Streetscene Environmental Services  ,Supplies and Services,Postages,212,21/08/2017,1709-00099,0.00,14.50,R,Abacus Express,Yes,,
Http://opendatacommunities.org/id/metropolitan-district-council/leeds,Leeds City Council,30/09/2017,Children and Families,Safeguarding Targeted & Specialist,Support Services,Legal Disbursements,411,08/09/2017,1709-00100,0.00,31.02,R,Abacus Express Limited,No,,
Http://opendatacommunities.org/id/metropolitan-district-council/leeds,Leeds City Council,30/09/2017,Children and Families,Safeguarding Targeted & Specialist,Support Services,Legal Disbursements,411,08/09/2017,1709-00101,0.00,15.59,R,Abacus Express Limited,No,,
Http://opendatacommunities.org/id/metropolitan-district-council/leeds,Leeds City Council,30/09/2017,Children and Families,Safeguarding Targeted & Specialist,Support Services,Legal Disbursements,411,20/09/2017,1709-00102,0.00,31.02,R,Abacus Express Limited,No,,
Http://opendatacommunities.org/id/metropolitan-district-council/leeds,Leeds City Council,30/09/2017,Children and Families,Safeguarding Targeted & Specialist,Support Services,Legal Disbursements,411,20/09/2017,1709-00103,0.00,23.11,R,Abacus Express Limited,No,,
Http://opendatacommunities.org/id/metropolitan-district-council/leeds,Leeds City Council,30/09/2017,City Development,Highways,Supplies and Services,Postages,212,25/09/2017,1709-00104,0.00,15.59,R,Abacus Express Limited,No,,
Http://opendatacommunities.org/id/metropolitan-district-council/leeds,Leeds City Council,30/09/2017,Adults and Health,Services For Older People - 65 And Over,Third Party Payments,Nursing Care Dementia,574,20/09/2017,1709-00105,0.00,1556.00,R,Abbendon Nursing Home,No,,
Http://opendatacommunities.org/id/metropolitan-district-council/leeds,Leeds City Council,30/09/2017,Children and Families,Learning Skills & Universal,Supplies and Services,Other Hired And Contracted Services,265,01/09/2017,1709-00106,0.00,525.00,R,Abbey Grange C Of E Academy Trust,No,,
Http://opendatacommunities.org/id/metropolitan-district-council/leeds,Leeds City Council,30/09/2017,Adults and Health,Public Health,Third Party Payments,Public Health Commissioned Services,526,06/09/2017,1709-00107,0.00,3853.34,R,Abbey Grange Medical Practice,No,,
Http://opendatacommunities.org/id/metropolitan-district-council/leeds,Leeds City Council,30/09/2017,Adults and Health,Public Health,Third Party Payments,Public Health Commissioned Services,526,28/09/2017,1709-00108,0.00,30.00,R,Abbey Grange Medical Practice,No,,
Http://opendatacommunities.org/id/metropolitan-district-council/leeds,Leeds City Council,30/09/2017,Children and Families,Safeguarding Targeted & Specialist,Third Party Payments,Services Rendered By Other Organisations,511,15/09/2017,1709-00109,0.00,7635.60,R,Abc Daycare And Ozone Out Of School,No,,
Http://opendatacommunities.org/id/metropolitan-district-council/leeds,Leeds City Council,30/09/2017,Children and Families,Safeguarding Targeted & Specialist,Third Party Payments,Services Rendered By Other Organisations,511,20/09/2017,1709-00110,0.00,8736.00,R,Abc Daycare And Ozone Out Of School,No,,
Http://opendatacommunities.org/id/metropolitan-district-council/leeds,Leeds City Council,30/09/2017,Children and Families,Safeguarding Targeted & Specialist,Third Party Payments,Services Rendered By Other Organisations,511,15/09/2017,1709-00111,0.00,4242.00,R,Abc Nursery At Lufc,No,,
Http://opendatacommunities.org/id/metropolitan-district-council/leeds,Leeds City Council,30/09/2017,Children and Families,Safeguarding Targeted & Specialist,Third Party Payments,Services Rendered By Other Organisations,511,20/09/2017,1709-00112,0.00,13359.36,R,Abc Nursery At Lufc,No,,
Http://opendatacommunities.org/id/metropolitan-district-council/leeds,Leeds City Council,30/09/2017,Resources and Housing,Strategic Housing Partnerships,Capital,Construction,3,15/09/2017,1709-00113,0.00,4084.40,C,Abc Property Developers,No,,
Http://opendatacommunities.org/id/metropolitan-district-council/leeds,Leeds City Council,30/09/2017,Children and Families,Safeguarding Targeted & Specialist,Third Party Payments,Services Rendered By Other Organisations,511,15/09/2017,1709-00114,0.00,5938.80,R,Abc@D'S Childcare Services,No,,
Http://opendatacommunities.org/id/metropolitan-district-council/leeds,Leeds City Council,30/09/2017,Children and Families,Safeguarding Targeted & Specialist,Third Party Payments,Services Rendered By Other Organisations,511,20/09/2017,1709-00115,0.00,9878.40,R,Abc@D'S Childcare Services,No,,
Http://opendatacommunities.org/id/metropolitan-district-council/leeds,Leeds City Council,30/09/2017,Communities and Environment,Customer Access,Supplies and Services,Other Hired And Contracted Services,265,04/09/2017,1709-00116,0.00,811.24,R,Abdul Wadood Kazizadha,No,,
Http://opendatacommunities.org/id/metropolitan-district-council/leeds,Leeds City Council,30/09/2017,Communities and Environment,Customer Access,Supplies and Services,Other Hired And Contracted Services,265,04/09/2017,1709-00117,0.00,823.00,R,Abdulahad Denha,No,,
Http://opendatacommunities.org/id/metropolitan-district-council/leeds,Leeds City Council,30/09/2017,Children and Families,Safeguarding Targeted & Specialist,Transfer Payments,16 Plus Top Up Allowance,625,22/09/2017,1709-00118,0.00,160.00,R,REDACTED PERSONAL DATA,No,,
Http://opendatacommunities.org/id/metropolitan-district-council/leeds,Leeds City Council,30/09/2017,Children and Families,Safeguarding Targeted & Specialist,Transfer Payments,Leaving Care Allowances,634,29/09/2017,1709-00119,0.00,20.00,R,REDACTED PERSONAL DATA,No,,
Http://opendatacommunities.org/id/metropolitan-district-council/leeds,Leeds City Council,30/09/2017,Communities and Environment,Customer Access,Supplies and Services,Other Hired And Contracted Services,265,04/09/2017,1709-00120,0.00,259.70,R,Abdur Rahman Khan,No,,
Http://opendatacommunities.org/id/metropolitan-district-council/leeds,Leeds City Council,30/09/2017,Adults and Health,Services For Older People - 65 And Over,Third Party Payments,Nursing Home,570,20/09/2017,1709-00121,0.00,40926.86,R,Aberford Hall,No,,
Http://opendatacommunities.org/id/metropolitan-district-council/leeds,Leeds City Council,30/09/2017,Adults and Health,Services For Older People - 65 And Over,Third Party Payments,Nursing Care Dementia,574,20/09/2017,1709-00122,0.00,1486.20,R,Aberford Hall,No,,
Http://opendatacommunities.org/id/metropolitan-district-council/leeds,Leeds City Council,30/09/2017,Adults and Health,Services For Older People - 65 And Over,Third Party Payments,Residential,580,20/09/2017,1709-00123,0.00,2665.28,R,Aberford Hall,No,,
Http://opendatacommunities.org/id/metropolitan-district-council/leeds,Leeds City Council,30/09/2017,Environment & Housing,Leeds Building Services,Supplies and Services,Operational Materials,205,04/09/2017,1709-00124,0.00,257.12,R,Abi Garage Doors Ltd,No,,
Http://opendatacommunities.org/id/metropolitan-district-council/leeds,Leeds City Council,30/09/2017,Environment & Housing,Leeds Building Services,Supplies and Services,Operational Materials,205,08/09/2017,1709-00125,0.00,20.00,R,Abi Garage Doors Ltd,No,,
Http://opendatacommunities.org/id/metropolitan-district-council/leeds,Leeds City Council,30/09/2017,Environment & Housing,Leeds Building Services,Supplies and Services,Stores - Central And Other Depots,005,15/09/2017,1709-00126,0.00,90.00,R,Abi Garage Doors Ltd,No,,
Http://opendatacommunities.org/id/metropolitan-district-council/leeds,Leeds City Council,30/09/2017,Environment & Housing,Leeds Building Services,Supplies and Services,Operational Materials,205,15/09/2017,1709-00127,0.00,6.67,R,Abi Garage Doors Ltd,No,,
Http://opendatacommunities.org/id/metropolitan-district-council/leeds,Leeds City Council,30/09/2017,Children and Families,Safeguarding Targeted & Specialist,Supplies and Services,Telephones,213,01/09/2017,1709-00128,0.00,6.40,R,REDACTED PERSONAL DATA,No,,
Http://opendatacommunities.org/id/metropolitan-district-council/leeds,Leeds City Council,30/09/2017,Children and Families,Safeguarding Targeted & Specialist,Supplies and Services,Food & Drink,231,01/09/2017,1709-00129,0.00,39.45,R,REDACTED PERSONAL DATA,No,,
Http://opendatacommunities.org/id/metropolitan-district-council/leeds,Leeds City Council,30/09/2017,Children and Families,Safeguarding Targeted & Specialist,Transport,Public Transport Expenses,310,01/09/2017,1709-00130,0.00,4.20,R,REDACTED PERSONAL DATA,No,,
Http://opendatacommunities.org/id/metropolitan-district-council/leeds,Leeds City Council,30/09/2017,Children and Families,Safeguarding Targeted & Specialist,Transport,Car & Motorcycle Allowances,311,01/09/2017,1709-00131,0.00,11.70,R,REDACTED PERSONAL DATA,No,,
Http://opendatacommunities.org/id/metropolitan-district-council/leeds,Leeds City Council,30/09/2017,Resources and Housing,Technology,Supplies and Services,Computer Software & Equipment,214,08/09/2017,1709-00132,0.00,660.00,R,Abm Critical Solutions Ltd,No,,
Http://opendatacommunities.org/id/metropolitan-district-council/leeds,Leeds City Council,30/09/2017,Children and Families,Safeguarding Targeted & Specialist  ,Transfer Payments,Leaving Care Allowances,634,24/08/2017,1709-00133,0.00,4.04,R,Abo Leeds,Yes,,
Http://opendatacommunities.org/id/metropolitan-district-council/leeds,Leeds City Council,30/09/2017,Resources and Housing,Strategic Housing Partnerships,Capital,Construction,3,15/09/2017,1709-00134,0.00,8000.00,C,Absolute Home Improvements,No,,
Http://opendatacommunities.org/id/metropolitan-district-council/leeds,Leeds City Council,30/09/2017,Communities and Environment,Customer Access  ,Supplies and Services,Operational Materials,205,17/08/2017,1709-00135,0.00,34.97,R,Absorbentmi,Yes,,
Http://opendatacommunities.org/id/metropolitan-district-council/leeds,Leeds City Council,30/09/2017,City Development,Planning & Sustainable Development,Supplies and Services,Memberships,226,22/09/2017,1709-00136,0.00,200.00,R,Academy Of Urbanism,No,,
Http://opendatacommunities.org/id/metropolitan-district-council/leeds,Leeds City Council,30/09/2017,Resources and Housing,Strategic Housing Partnerships,Capital,Construction,3,14/09/2017,1709-00137,0.00,2268.00,C,Accent Homes Ltd,No,,
Http://opendatacommunities.org/id/metropolitan-district-council/leeds,Leeds City Council,30/09/2017,Resources and Housing,Strategic Housing Partnerships,Capital,Construction,3,21/09/2017,1709-00138,0.00,1728.00,C,Accent Homes Ltd,No,,
Http://opendatacommunities.org/id/metropolitan-district-council/leeds,Leeds City Council,30/09/2017,Environment & Housing,Community Safety,Transport,External Hire -Occasional,304,29/09/2017,1709-00139,0.00,1284.29,R,Access Hire Nationwide Ltd,No,,
Http://opendatacommunities.org/id/metropolitan-district-council/leeds,Leeds City Council,30/09/2017,Environment & Housing,Parks And Countryside  ,Premises,Grounds Maintenance Work,111,07/08/2017,1709-00140,0.00,437.33,R,Access Locksmiths,Yes,,
Http://opendatacommunities.org/id/metropolitan-district-council/leeds,Leeds City Council,30/09/2017,Environment & Housing,Parks And Countryside  ,Supplies and Services,Operational Materials,205,10/08/2017,1709-00141,0.00,54.18,R,Access Locksmiths,Yes,,
Http://opendatacommunities.org/id/metropolitan-district-council/leeds,Leeds City Council,30/09/2017,Strategic Landlord,Property and Contracts,Premises,General Maintenance,104,01/09/2017,1709-00142,0.00,206.30,R,Access Locksmiths (Leeds) Limited,No,,
Http://opendatacommunities.org/id/metropolitan-district-council/leeds,Leeds City Council,30/09/2017,Strategic Landlord,Housing Management,Premises,General Maintenance,104,01/09/2017,1709-00143,0.00,15.00,R,Access Locksmiths (Leeds) Limited,No,,
Http://opendatacommunities.org/id/metropolitan-district-council/leeds,Leeds City Council,30/09/2017,Environment & Housing,Leeds Building Services,Supplies and Services,Operational Materials,205,04/09/2017,1709-00144,0.00,139.40,R,Access Locksmiths (Leeds) Limited,No,,
Http://opendatacommunities.org/id/metropolitan-district-council/leeds,Leeds City Council,30/09/2017,Environment & Housing,Leeds Building Services,Supplies and Services,Operational Materials,205,04/09/2017,1709-00145,0.00,11.56,R,Access Locksmiths (Leeds) Limited,No,,
Http://opendatacommunities.org/id/metropolitan-district-council/leeds,Leeds City Council,30/09/2017,Environment & Housing,Leeds Building Services,Supplies and Services,Operational Materials,205,04/09/2017,1709-00146,0.00,3.24,R,Access Locksmiths (Leeds) Limited,No,,
Http://opendatacommunities.org/id/metropolitan-district-council/leeds,Leeds City Council,30/09/2017,Environment & Housing,Leeds Building Services,Supplies and Services,Operational Materials,205,04/09/2017,1709-00147,0.00,184.75,R,Access Locksmiths (Leeds) Limited,No,,
Http://opendatacommunities.org/id/metropolitan-district-council/leeds,Leeds City Council,30/09/2017,Environment & Housing,Leeds Building Services,Supplies and Services,Operational Materials,205,04/09/2017,1709-00148,0.00,34.13,R,Access Locksmiths (Leeds) Limited,No,,
Http://opendatacommunities.org/id/metropolitan-district-council/leeds,Leeds City Council,30/09/2017,Environment & Housing,Leeds Building Services,Supplies and Services,Operational Materials,205,11/09/2017,1709-00149,0.00,30.80,R,Access Locksmiths (Leeds) Limited,No,,
Http://opendatacommunities.org/id/metropolitan-district-council/leeds,Leeds City Council,30/09/2017,Environment & Housing,Leeds Building Services,Supplies and Services,Operational Materials,205,11/09/2017,1709-00150,0.00,95.55,R,Access Locksmiths (Leeds) Limited,No,,
Http://opendatacommunities.org/id/metropolitan-district-council/leeds,Leeds City Council,30/09/2017,Environment & Housing,Leeds Building Services,Supplies and Services,Operational Materials,205,11/09/2017,1709-00151,0.00,130.37,R,Access Locksmiths (Leeds) Limited,No,,
Http://opendatacommunities.org/id/metropolitan-district-council/leeds,Leeds City Council,30/09/2017,Environment & Housing,Leeds Building Services,Supplies and Services,Operational Materials,205,15/09/2017,1709-00152,0.00,213.54,R,Access Locksmiths (Leeds) Limited,No,,
Http://opendatacommunities.org/id/metropolitan-district-council/leeds,Leeds City Council,30/09/2017,Environment & Housing,Leeds Building Services,Supplies and Services,Operational Materials,205,15/09/2017,1709-00153,0.00,6.68,R,Access Locksmiths (Leeds) Limited,No,,
Http://opendatacommunities.org/id/metropolitan-district-council/leeds,Leeds City Council,30/09/2017,Environment & Housing,Leeds Building Services,Supplies and Services,Operational Materials,205,15/09/2017,1709-00154,0.00,6.28,R,Access Locksmiths (Leeds) Limited,No,,
Http://opendatacommunities.org/id/metropolitan-district-council/leeds,Leeds City Council,30/09/2017,Environment & Housing,Leeds Building Services,Supplies and Services,Operational Materials,205,15/09/2017,1709-00155,0.00,103.61,R,Access Locksmiths (Leeds) Limited,No,,
Http://opendatacommunities.org/id/metropolitan-district-council/leeds,Leeds City Council,30/09/2017,Environment & Housing,Leeds Building Services,Supplies and Services,Operational Materials,205,15/09/2017,1709-00156,0.00,10.00,R,Access Locksmiths (Leeds) Limited,No,,
Http://opendatacommunities.org/id/metropolitan-district-council/leeds,Leeds City Council,30/09/2017,Environment & Housing,Leeds Building Services,Supplies and Services,Operational Materials,205,15/09/2017,1709-00157,0.00,7.50,R,Access Locksmiths (Leeds) Limited,No,,
Http://opendatacommunities.org/id/metropolitan-district-council/leeds,Leeds City Council,30/09/2017,Environment & Housing,Leeds Building Services,Supplies and Services,Operational Materials,205,15/09/2017,1709-00158,0.00,140.62,R,Access Locksmiths (Leeds) Limited,No,,
Http://opendatacommunities.org/id/metropolitan-district-council/leeds,Leeds City Council,30/09/2017,Environment & Housing,Leeds Building Services,Supplies and Services,Operational Materials,205,15/09/2017,1709-00159,0.00,140.62,R,Access Locksmiths (Leeds) Limited,No,,
Http://opendatacommunities.org/id/metropolitan-district-council/leeds,Leeds City Council,30/09/2017,Environment & Housing,Leeds Building Services,Supplies and Services,Operational Materials,205,15/09/2017,1709-00160,0.00,11.94,R,Access Locksmiths (Leeds) Limited,No,,
Http://opendatacommunities.org/id/metropolitan-district-council/leeds,Leeds City Council,30/09/2017,Strategic Landlord,Property and Contracts,Premises,General Maintenance,104,28/09/2017,1709-00161,0.00,37.50,R,Access Locksmiths (Leeds) Limited,No,,
Http://opendatacommunities.org/id/metropolitan-district-council/leeds,Leeds City Council,30/09/2017,Strategic Landlord,Property and Contracts,Premises,General Maintenance,104,28/09/2017,1709-00162,0.00,151.18,R,Access Locksmiths (Leeds) Limited,No,,
Http://opendatacommunities.org/id/metropolitan-district-council/leeds,Leeds City Council,30/09/2017,Strategic Landlord,Property and Contracts,Premises,General Maintenance,104,28/09/2017,1709-00163,0.00,119.00,R,Access Locksmiths (Leeds) Limited,No,,
Http://opendatacommunities.org/id/metropolitan-district-council/leeds,Leeds City Council,30/09/2017,Strategic Landlord,Property and Contracts,Premises,General Maintenance,104,28/09/2017,1709-00164,0.00,319.50,R,Access Locksmiths (Leeds) Limited,No,,
Http://opendatacommunities.org/id/metropolitan-district-council/leeds,Leeds City Council,30/09/2017,Strategic Landlord,Property and Contracts,Premises,General Maintenance,104,28/09/2017,1709-00165,0.00,264.30,R,Access Locksmiths (Leeds) Limited,No,,
Http://opendatacommunities.org/id/metropolitan-district-council/leeds,Leeds City Council,30/09/2017,Strategic Landlord,Property and Contracts,Premises,General Maintenance,104,28/09/2017,1709-00166,0.00,132.00,R,Access Locksmiths (Leeds) Limited,No,,
Http://opendatacommunities.org/id/metropolitan-district-council/leeds,Leeds City Council,30/09/2017,Environment & Housing,Leeds Building Services,Supplies and Services,Other Hired And Contracted Services,265,25/09/2017,1709-00167,0.00,2280.00,R,Access Opening Systems Limited,No,,
Http://opendatacommunities.org/id/metropolitan-district-council/leeds,Leeds City Council,30/09/2017,Environment & Housing,Leeds Building Services,Supplies and Services,Other Hired And Contracted Services,265,28/09/2017,1709-00168,0.00,143.00,R,Access Opening Systems Limited,No,,
Http://opendatacommunities.org/id/metropolitan-district-council/leeds,Leeds City Council,30/09/2017,City Development,Recreation,Supplies and Services,Other Hired And Contracted Services,265,01/09/2017,1709-00169,0.00,93.00,R,Ace Container Services Limited,No,,
Http://opendatacommunities.org/id/metropolitan-district-council/leeds,Leeds City Council,30/09/2017,City Development,Libraries  Arts & Heritage,Supplies and Services,Other Hired And Contracted Services,265,13/09/2017,1709-00170,0.00,46.50,R,Ace Container Services Limited,No,,
Http://opendatacommunities.org/id/metropolitan-district-council/leeds,Leeds City Council,30/09/2017,City Development,Recreation,Supplies and Services,Other Hired And Contracted Services,265,15/09/2017,1709-00171,0.00,553.50,R,Ace Container Services Limited,No,,
Http://opendatacommunities.org/id/metropolitan-district-council/leeds,Leeds City Council,30/09/2017,Children and Families,Learning Places,Capital,Construction,3,11/09/2017,1709-00172,0.00,12086.23,C,Aceda Limited,No,,
Http://opendatacommunities.org/id/metropolitan-district-council/leeds,Leeds City Council,30/09/2017,Children and Families,Learning Places,Capital,Construction,3,26/09/2017,1709-00173,0.00,1761.77,C,Aceda Limited,No,,
Http://opendatacommunities.org/id/metropolitan-district-council/leeds,Leeds City Council,30/09/2017,Environment & Housing,Parks and Countryside,Supplies and Services,Operational Materials,205,21/09/2017,1709-00174,0.00,710.00,R,Acm (Yorkshire) Ltd,No,,
Http://opendatacommunities.org/id/metropolitan-district-council/leeds,Leeds City Council,30/09/2017,Communities and Environment,Parks and Countryside,Capital,Furniture And Equipment,5,28/09/2017,1709-00175,0.00,9265.00,C,Acm (Yorkshire) Ltd,No,,
Http://opendatacommunities.org/id/metropolitan-district-council/leeds,Leeds City Council,30/09/2017,Civic Enterprise Leeds,Commercial Services,Supplies and Services,Operational Furniture And Equipment,203,21/09/2017,1709-00176,0.00,2025.00,R,Acme Facilities Group Ltd,No,,
Http://opendatacommunities.org/id/metropolitan-district-council/leeds,Leeds City Council,30/09/2017,Adults and Health,Services For Older People - 65 And Over,Third Party Payments,Nursing Care Dementia,574,20/09/2017,1709-00177,0.00,1546.28,R,Acorn Nursing Home,No,,
Http://opendatacommunities.org/id/metropolitan-district-council/leeds,Leeds City Council,30/09/2017,City Development,Libraries  Arts & Heritage,Supplies and Services,Other Hired And Contracted Services,265,14/09/2017,1709-00178,0.00,6111.00,R,Acorn Scaffolding (Yorkshire) Ltd,No,,
Http://opendatacommunities.org/id/metropolitan-district-council/leeds,Leeds City Council,30/09/2017,Adults and Health,Services For Older People - 65 And Over,Third Party Payments,Nursing Home,570,20/09/2017,1709-00179,0.00,42567.93,R,Acre Green,No,,
Http://opendatacommunities.org/id/metropolitan-district-council/leeds,Leeds City Council,30/09/2017,Adults and Health,Services For Older People - 65 And Over,Third Party Payments,Nursing Care Dementia,574,20/09/2017,1709-00180,0.00,1099.96,R,Acre Green,No,,
Http://opendatacommunities.org/id/metropolitan-district-council/leeds,Leeds City Council,30/09/2017,Adults and Health,Services For Older People - 65 And Over,Third Party Payments,Residential,580,20/09/2017,1709-00181,0.00,10564.76,R,Acre Green,No,,
Http://opendatacommunities.org/id/metropolitan-district-council/leeds,Leeds City Council,30/09/2017,Adults and Health,Services For Older People Under 65 P/Dis,Third Party Payments,Nursing Home,570,20/09/2017,1709-00182,0.00,5682.64,R,Acre Green,No,,
Http://opendatacommunities.org/id/metropolitan-district-council/leeds,Leeds City Council,30/09/2017,Adults and Health,Services For Older People Under 65 P/Dis,Third Party Payments,Residential,580,20/09/2017,1709-00183,0.00,3255.93,R,Acre Green,No,,
Http://opendatacommunities.org/id/metropolitan-district-council/leeds,Leeds City Council,30/09/2017,Children and Families,Safeguarding Targeted & Specialist,Third Party Payments,Services Rendered By Other Organisations,511,15/09/2017,1709-00184,0.00,21379.68,R,Acre Wood Day Nursery,No,,
Http://opendatacommunities.org/id/metropolitan-district-council/leeds,Leeds City Council,30/09/2017,Children and Families,Safeguarding Targeted & Specialist,Third Party Payments,Services Rendered By Other Organisations,511,20/09/2017,1709-00185,0.00,23990.40,R,Acre Wood Day Nursery,No,,
Http://opendatacommunities.org/id/metropolitan-district-council/leeds,Leeds City Council,30/09/2017,City Development,Highways,Supplies and Services,Operational Materials,205,08/09/2017,1709-00186,0.00,391.00,R,Actavo Uk Limited,No,,
Http://opendatacommunities.org/id/metropolitan-district-council/leeds,Leeds City Council,30/09/2017,City Development,Highways,Supplies and Services,Operational Materials,205,08/09/2017,1709-00187,0.00,344.40,R,Actavo Uk Limited,No,,
Http://opendatacommunities.org/id/metropolitan-district-council/leeds,Leeds City Council,30/09/2017,Adults and Health,Services For Adults Under 65 Mental/Dis,Third Party Payments,Fees - Level 4,520,08/09/2017,1709-00188,0.00,250.00,R,Action First Recruitment Ltd,No,,
Http://opendatacommunities.org/id/metropolitan-district-council/leeds,Leeds City Council,30/09/2017,Adults and Health,Services For Adults Under 65 Mental/Dis,Third Party Payments,Fees - Level 4,520,08/09/2017,1709-00189,0.00,250.00,R,Action First Recruitment Ltd,No,,
Http://opendatacommunities.org/id/metropolitan-district-council/leeds,Leeds City Council,30/09/2017,Adults and Health,Services For Adults Under 65 Mental/Dis,Third Party Payments,Fees - Level 4,520,08/09/2017,1709-00190,0.00,250.00,R,Action First Recruitment Ltd,No,,
Http://opendatacommunities.org/id/metropolitan-district-council/leeds,Leeds City Council,30/09/2017,Adults and Health,Services For Adults Under 65 Mental/Dis,Third Party Payments,Fees - Level 4,520,08/09/2017,1709-00191,0.00,250.00,R,Action First Recruitment Ltd,No,,
Http://opendatacommunities.org/id/metropolitan-district-council/leeds,Leeds City Council,30/09/2017,Adults and Health,Services For Adults Under 65 Mental/Dis,Third Party Payments,Fees - Level 4,520,08/09/2017,1709-00192,0.00,220.00,R,Action First Recruitment Ltd,No,,
Http://opendatacommunities.org/id/metropolitan-district-council/leeds,Leeds City Council,30/09/2017,Adults and Health,Services For Adults Under 65 Mental/Dis,Third Party Payments,Fees - Level 4,520,08/09/2017,1709-00193,0.00,250.00,R,Action First Recruitment Ltd,No,,
Http://opendatacommunities.org/id/metropolitan-district-council/leeds,Leeds City Council,30/09/2017,Adults and Health,Services For Adults Under 65 Mental/Dis,Third Party Payments,Fees - Level 4,520,08/09/2017,1709-00194,0.00,220.00,R,Action First Recruitment Ltd,No,,
Http://opendatacommunities.org/id/metropolitan-district-council/leeds,Leeds City Council,30/09/2017,Adults and Health,Services For Adults Under 65 Mental/Dis,Third Party Payments,Fees - Level 4,520,08/09/2017,1709-00195,0.00,220.00,R,Action First Recruitment Ltd,No,,
Http://opendatacommunities.org/id/metropolitan-district-council/leeds,Leeds City Council,30/09/2017,Adults and Health,Services For Adults Under 65 Mental/Dis,Third Party Payments,Fees - Level 4,520,08/09/2017,1709-00196,0.00,380.00,R,Action First Recruitment Ltd,No,,
Http://opendatacommunities.org/id/metropolitan-district-council/leeds,Leeds City Council,30/09/2017,Adults and Health,Services For Adults Under 65 Mental/Dis,Third Party Payments,Fees - Level 4,520,08/09/2017,1709-00197,0.00,250.00,R,Action First Recruitment Ltd,No,,
Http://opendatacommunities.org/id/metropolitan-district-council/leeds,Leeds City Council,30/09/2017,Adults and Health,Services For Adults Under 65 Mental/Dis,Third Party Payments,Fees - Level 4,520,08/09/2017,1709-00198,0.00,250.00,R,Action First Recruitment Ltd,No,,
Http://opendatacommunities.org/id/metropolitan-district-council/leeds,Leeds City Council,30/09/2017,Adults and Health,Services For Adults Under 65 Mental/Dis,Third Party Payments,Fees - Level 4,520,08/09/2017,1709-00199,0.00,250.00,R,Action First Recruitment Ltd,No,,
Http://opendatacommunities.org/id/metropolitan-district-council/leeds,Leeds City Council,30/09/2017,Adults and Health,Services For Adults Under 65 Mental/Dis,Third Party Payments,Fees - Level 4,520,08/09/2017,1709-00200,0.00,250.00,R,Action First Recruitment Ltd,No,,
Http://opendatacommunities.org/id/metropolitan-district-council/leeds,Leeds City Council,30/09/2017,Adults and Health,Services For Adults Under 65 Mental/Dis,Third Party Payments,Fees - Level 4,520,08/09/2017,1709-00201,0.00,250.00,R,Action First Recruitment Ltd,No,,
Http://opendatacommunities.org/id/metropolitan-district-council/leeds,Leeds City Council,30/09/2017,Adults and Health,Services For Adults Under 65 Mental/Dis,Third Party Payments,Fees - Level 4,520,08/09/2017,1709-00202,0.00,250.00,R,Action First Recruitment Ltd,No,,
Http://opendatacommunities.org/id/metropolitan-district-council/leeds,Leeds City Council,30/09/2017,Adults and Health,Services For Adults Under 65 Mental/Dis,Third Party Payments,Fees - Level 4,520,22/09/2017,1709-00203,0.00,250.00,R,Action First Recruitment Ltd,No,,
Http://opendatacommunities.org/id/metropolitan-district-council/leeds,Leeds City Council,30/09/2017,Adults and Health,Services For Adults Under 65 Mental/Dis,Third Party Payments,Fees - Level 4,520,22/09/2017,1709-00204,0.00,250.00,R,Action First Recruitment Ltd,No,,
Http://opendatacommunities.org/id/metropolitan-district-council/leeds,Leeds City Council,30/09/2017,Adults and Health,Services For Adults Under 65 Mental/Dis,Third Party Payments,Fees - Level 4,520,22/09/2017,1709-00205,0.00,500.00,R,Action First Recruitment Ltd,No,,
Http://opendatacommunities.org/id/metropolitan-district-council/leeds,Leeds City Council,30/09/2017,Adults and Health,Services For Adults Under 65 Mental/Dis,Third Party Payments,Fees - Level 4,520,28/09/2017,1709-00206,0.00,220.00,R,Action First Recruitment Ltd,No,,
Http://opendatacommunities.org/id/metropolitan-district-council/leeds,Leeds City Council,30/09/2017,Adults and Health,Services For Adults Under 65 Mental/Dis,Third Party Payments,Fees - Level 4,520,28/09/2017,1709-00207,0.00,660.00,R,Action First Recruitment Ltd,No,,
Http://opendatacommunities.org/id/metropolitan-district-council/leeds,Leeds City Council,30/09/2017,Adults and Health,Services For Adults Under 65 Mental/Dis,Third Party Payments,Fees - Level 4,520,28/09/2017,1709-00208,0.00,220.00,R,Action First Recruitment Ltd,No,,
Http://opendatacommunities.org/id/metropolitan-district-council/leeds,Leeds City Council,30/09/2017,Adults and Health,Services For Adults Under 65 Mental/Dis,Third Party Payments,Fees - Level 4,520,28/09/2017,1709-00209,0.00,1320.00,R,Action First Recruitment Ltd,No,,
Http://opendatacommunities.org/id/metropolitan-district-council/leeds,Leeds City Council,30/09/2017,Adults and Health,Services For Adults Under 65 Mental/Dis,Third Party Payments,Fees - Level 4,520,28/09/2017,1709-00210,0.00,1540.00,R,Action First Recruitment Ltd,No,,
Http://opendatacommunities.org/id/metropolitan-district-council/leeds,Leeds City Council,30/09/2017,Children and Families,Safeguarding Targeted & Specialist,Third Party Payments,Independent Fostering Agencies,509,29/09/2017,1709-00211,0.00,4776.48,R,Action For Children,No,,
Http://opendatacommunities.org/id/metropolitan-district-council/leeds,Leeds City Council,30/09/2017,Children and Families,Safeguarding Targeted & Specialist,Third Party Payments,Independent Fostering Agencies,509,29/09/2017,1709-00212,0.00,-4622.40,R,Action For Children,No,,
Http://opendatacommunities.org/id/metropolitan-district-council/leeds,Leeds City Council,30/09/2017,Adults and Health,Services For Older People - 65 And Over,Third Party Payments,Payments To Voluntary Organisations,561,29/09/2017,1709-00213,0.00,34505.50,R,Action For Gipton Elderly,No,,
Http://opendatacommunities.org/id/metropolitan-district-council/leeds,Leeds City Council,30/09/2017,Children and Families,Safeguarding Targeted & Specialist,Supplies and Services,Conference Meetings,253,27/09/2017,1709-00214,0.00,50.00,R,Activ Zone Cic,No,,
Http://opendatacommunities.org/id/metropolitan-district-council/leeds,Leeds City Council,30/09/2017,Communities and Environment,Communities,Supplies and Services,'Well Being' Large Grants Projects,230,11/09/2017,1709-00215,0.00,2900.00,R,Active Community Education In Sport Ltd,No,,
Http://opendatacommunities.org/id/metropolitan-district-council/leeds,Leeds City Council,30/09/2017,Children and Families,Safeguarding Targeted & Specialist,Third Party Payments,Services Rendered By Other Organisations,511,15/09/2017,1709-00216,0.00,181.80,R,Active Kids Yeadon Llp,No,,
Http://opendatacommunities.org/id/metropolitan-district-council/leeds,Leeds City Council,30/09/2017,Children and Families,Safeguarding Targeted & Specialist,Third Party Payments,Services Rendered By Other Organisations,511,20/09/2017,1709-00217,0.00,18177.60,R,Active Kids Yeadon Llp,No,,
Http://opendatacommunities.org/id/metropolitan-district-council/leeds,Leeds City Council,30/09/2017,Children and Families,Safeguarding Targeted & Specialist,Third Party Payments,Services Rendered By Other Organisations,511,26/09/2017,1709-00218,0.00,3939.00,R,Active Kids Yeadon Llp,No,,
Http://opendatacommunities.org/id/metropolitan-district-council/leeds,Leeds City Council,30/09/2017,Environment & Housing,Environmental Action (South),Premises,Removal Of Workplace Waste,126,01/09/2017,1709-00219,0.00,110.00,R,Acumen Waste Services Ltd,No,,
Http://opendatacommunities.org/id/metropolitan-district-council/leeds,Leeds City Council,30/09/2017,Environment & Housing,Environmental Action (South),Premises,Removal Of Workplace Waste,126,05/09/2017,1709-00220,0.00,220.00,R,Acumen Waste Services Ltd,No,,
Http://opendatacommunities.org/id/metropolitan-district-council/leeds,Leeds City Council,30/09/2017,Environment & Housing,Waste Management,Supplies and Services,Recycling & Reuse Charges,234,15/09/2017,1709-00221,0.00,10336.76,R,Acumen Waste Services Ltd,No,,
Http://opendatacommunities.org/id/metropolitan-district-council/leeds,Leeds City Council,30/09/2017,Environment & Housing,Environmental Action (South),Premises,Removal Of Workplace Waste,126,25/09/2017,1709-00222,0.00,70.00,R,Acumen Waste Services Ltd,No,,
Http://opendatacommunities.org/id/metropolitan-district-council/leeds,Leeds City Council,30/09/2017,Environment & Housing,Environmental Action (South),Premises,Removal Of Workplace Waste,126,28/09/2017,1709-00223,0.00,220.00,R,Acumen Waste Services Ltd,No,,
Http://opendatacommunities.org/id/metropolitan-district-council/leeds,Leeds City Council,30/09/2017,Environment & Housing,Parks and Countryside,Supplies and Services,Resaleable Materials,204,22/09/2017,1709-00224,0.00,153.00,R,Acushnet Europe Limited,No,,
Http://opendatacommunities.org/id/metropolitan-district-council/leeds,Leeds City Council,30/09/2017,Civic Enterprise Leeds,Shared Services,Supplies and Services,Operational Materials,205,15/09/2017,1709-00225,0.00,645.00,R,Ad3 Envelope Printers Limited,No,,
Http://opendatacommunities.org/id/metropolitan-district-council/leeds,Leeds City Council,30/09/2017,Civic Enterprise Leeds,Shared Services,Supplies and Services,Other Hired And Contracted Services,265,15/09/2017,1709-00226,0.00,96.44,R,Ad3 Envelope Printers Limited,No,,
Http://opendatacommunities.org/id/metropolitan-district-council/leeds,Leeds City Council,30/09/2017,Adults and Health,Services For Older People - 65 And Over,Third Party Payments,Nursing Home,570,20/09/2017,1709-00227,0.00,3786.24,R,Adbolton Hall,No,,
Http://opendatacommunities.org/id/metropolitan-district-council/leeds,Leeds City Council,30/09/2017,Resources and Housing,HRA Housing Leeds,Capital,Internal Fees,6,01/09/2017,1709-00228,0.00,3120.00,C,Addleshaw Goddard Llp,No,,
Http://opendatacommunities.org/id/metropolitan-district-council/leeds,Leeds City Council,30/09/2017,Resources and Housing,Sustainable Energy & Climate Change,Capital,Other Costs,7,01/09/2017,1709-00229,0.00,3120.50,C,Addleshaw Goddard Llp,No,,
Http://opendatacommunities.org/id/metropolitan-district-council/leeds,Leeds City Council,30/09/2017,City Development,Asset Management,Capital,Land,1,08/09/2017,1709-00230,0.00,962000.00,C,Addleshaw Goddard Llp Client Ac,No,,
Http://opendatacommunities.org/id/metropolitan-district-council/leeds,Leeds City Council,30/09/2017,Adults and Health,Public Health,Third Party Payments,Public Health Commissioned Services,526,06/09/2017,1709-00231,0.00,3832.47,R,Addlestone & Partners,No,,
Http://opendatacommunities.org/id/metropolitan-district-council/leeds,Leeds City Council,30/09/2017,Resources and Housing,Technology  ,Employees,Agency Staff,8,16/08/2017,1709-00232,0.00,26288.24,R,Adecco Alfred Marks,Yes,,
Http://opendatacommunities.org/id/metropolitan-district-council/leeds,Leeds City Council,30/09/2017,Children and Families,Safeguarding Targeted & Specialist,Third Party Payments,Services Rendered By Voluntary Sector,505,15/09/2017,1709-00233,0.00,2545.20,R,Adel Pre School,No,,
Http://opendatacommunities.org/id/metropolitan-district-council/leeds,Leeds City Council,30/09/2017,Children and Families,Safeguarding Targeted & Specialist,Third Party Payments,Services Rendered By Voluntary Sector,505,20/09/2017,1709-00234,0.00,11340.00,R,Adel Pre School,No,,
Http://opendatacommunities.org/id/metropolitan-district-council/leeds,Leeds City Council,30/09/2017,Children and Families,Safeguarding Targeted & Specialist,Third Party Payments,Services Rendered By Other Organisations,511,20/09/2017,1709-00235,0.00,4233.60,R,Adele Harrington,No,,
Http://opendatacommunities.org/id/metropolitan-district-council/leeds,Leeds City Council,30/09/2017,Children and Families,Safeguarding Targeted & Specialist,Third Party Payments,Services Rendered By Other Organisations,511,20/09/2017,1709-00236,0.00,987.84,R,REDACTED PERSONAL DATA,No,,
Http://opendatacommunities.org/id/metropolitan-district-council/leeds,Leeds City Council,30/09/2017,Adults and Health,Services For Older People - 65 And Over,Third Party Payments,Nursing Home,570,20/09/2017,1709-00237,0.00,1157.68,R,Aden House,No,,
Http://opendatacommunities.org/id/metropolitan-district-council/leeds,Leeds City Council,30/09/2017,Environment & Housing,Leeds Building Services,Supplies and Services,Operational Materials,205,04/09/2017,1709-00238,0.00,349.70,R,Adi Global,No,,
Http://opendatacommunities.org/id/metropolitan-district-council/leeds,Leeds City Council,30/09/2017,Environment & Housing,Leeds Building Services,Supplies and Services,Operational Materials,205,04/09/2017,1709-00239,0.00,65.82,R,Adi Global,No,,
Http://opendatacommunities.org/id/metropolitan-district-council/leeds,Leeds City Council,30/09/2017,Environment & Housing,Leeds Building Services,Supplies and Services,Operational Materials,205,11/09/2017,1709-00240,0.00,38.67,R,Adi Global,No,,
Http://opendatacommunities.org/id/metropolitan-district-council/leeds,Leeds City Council,30/09/2017,Environment & Housing,Leeds Building Services,Supplies and Services,Operational Materials,205,12/09/2017,1709-00241,0.00,300.50,R,Adi Global,No,,
Http://opendatacommunities.org/id/metropolitan-district-council/leeds,Leeds City Council,30/09/2017,Environment & Housing,Leeds Building Services,Supplies and Services,Operational Materials,205,12/09/2017,1709-00242,0.00,3155.26,R,Adi Global,No,,
Http://opendatacommunities.org/id/metropolitan-district-council/leeds,Leeds City Council,30/09/2017,Environment & Housing,Leeds Building Services,Supplies and Services,Operational Materials,205,12/09/2017,1709-00243,0.00,1398.30,R,Adi Global,No,,
Http://opendatacommunities.org/id/metropolitan-district-council/leeds,Leeds City Council,30/09/2017,Environment & Housing,Leeds Building Services,Supplies and Services,Operational Materials,205,15/09/2017,1709-00244,0.00,83.61,R,Adi Global,No,,
Http://opendatacommunities.org/id/metropolitan-district-council/leeds,Leeds City Council,30/09/2017,Environment & Housing,Leeds Building Services,Supplies and Services,Operational Materials,205,15/09/2017,1709-00245,0.00,49.14,R,Adi Global,No,,
Http://opendatacommunities.org/id/metropolitan-district-council/leeds,Leeds City Council,30/09/2017,Environment & Housing,Leeds Building Services,Supplies and Services,Operational Materials,205,15/09/2017,1709-00246,0.00,1492.92,R,Adi Global,No,,
Http://opendatacommunities.org/id/metropolitan-district-council/leeds,Leeds City Council,30/09/2017,Environment & Housing,Leeds Building Services,Supplies and Services,Operational Materials,205,15/09/2017,1709-00247,0.00,96.99,R,Adi Global,No,,
Http://opendatacommunities.org/id/metropolitan-district-council/leeds,Leeds City Council,30/09/2017,Environment & Housing,Leeds Building Services,Supplies and Services,Operational Materials,205,15/09/2017,1709-00248,0.00,198.69,R,Adi Global,No,,
Http://opendatacommunities.org/id/metropolitan-district-council/leeds,Leeds City Council,30/09/2017,Environment & Housing,Leeds Building Services,Supplies and Services,Operational Materials,205,15/09/2017,1709-00249,0.00,173.16,R,Adi Global,No,,
Http://opendatacommunities.org/id/metropolitan-district-council/leeds,Leeds City Council,30/09/2017,Environment & Housing,Leeds Building Services,Supplies and Services,Operational Materials,205,15/09/2017,1709-00250,0.00,207.04,R,Adi Global,No,,
Http://opendatacommunities.org/id/metropolitan-district-council/leeds,Leeds City Council,30/09/2017,Environment & Housing,Community Safety,Supplies and Services,Other Hired And Contracted Services,265,15/09/2017,1709-00251,0.00,414.60,R,Adi Global,No,,
Http://opendatacommunities.org/id/metropolitan-district-council/leeds,Leeds City Council,30/09/2017,Environment & Housing,Leeds Building Services,Supplies and Services,Operational Materials,205,15/09/2017,1709-00252,0.00,859.19,R,Adi Global,No,,
Http://opendatacommunities.org/id/metropolitan-district-council/leeds,Leeds City Council,30/09/2017,Environment & Housing,Leeds Building Services,Supplies and Services,Operational Materials,205,15/09/2017,1709-00253,0.00,211.84,R,Adi Global,No,,
Http://opendatacommunities.org/id/metropolitan-district-council/leeds,Leeds City Council,30/09/2017,Environment & Housing,Leeds Building Services,Supplies and Services,Operational Materials,205,21/09/2017,1709-00254,0.00,102.36,R,Adi Global,No,,
Http://opendatacommunities.org/id/metropolitan-district-council/leeds,Leeds City Council,30/09/2017,Environment & Housing,Leeds Building Services,Supplies and Services,Operational Materials,205,21/09/2017,1709-00255,0.00,75.66,R,Adi Global,No,,
Http://opendatacommunities.org/id/metropolitan-district-council/leeds,Leeds City Council,30/09/2017,Children and Families,Safeguarding Targeted & Specialist,Supplies and Services,Security Services(Non Infrastructure),262,14/09/2017,1709-00256,0.00,108.90,R,Adm Security,No,,
Http://opendatacommunities.org/id/metropolitan-district-council/leeds,Leeds City Council as Accountable Body,30/09/2017,Social Services Pooled Budgets,Jcs For People With Learning Disabilitie,Third Party Payments,Residential,580,21/09/2017,1709-00257,0.00,2609.36,R,Adrian House,No,,
Http://opendatacommunities.org/id/metropolitan-district-council/leeds,Leeds City Council,30/09/2017,Strategic Landlord,Housing Management,Premises,Premises Security Services,162,19/09/2017,1709-00258,0.00,142.20,R,Adt Fire And Security Plc,No,,
Http://opendatacommunities.org/id/metropolitan-district-council/leeds,Leeds City Council,30/09/2017,Civic Enterprise Leeds,Corporate Property Management,Premises,Maintenance Of Buildings,101,26/09/2017,1709-00259,0.00,3002.19,R,Adt Fire And Security Plc,No,,
Http://opendatacommunities.org/id/metropolitan-district-council/leeds,Leeds City Council,30/09/2017,City Development,Libraries  Arts & Heritage,Supplies and Services,Other Hired And Contracted Services,265,28/09/2017,1709-00260,0.00,1410.26,R,Adt Fire And Security Plc,No,,
Http://opendatacommunities.org/id/metropolitan-district-council/leeds,Leeds City Council,30/09/2017,City Development,Libraries  Arts & Heritage,Supplies and Services,Other Hired And Contracted Services,265,28/09/2017,1709-00261,0.00,1188.07,R,Adt Fire And Security Plc,No,,
Http://opendatacommunities.org/id/metropolitan-district-council/leeds,Leeds City Council,30/09/2017,Adults and Health,Services For Adults Under 65 Mental/Dis,Third Party Payments,Nursing Home,570,20/09/2017,1709-00262,0.00,1541.96,R,Adult Supported Living Ltd,No,,
Http://opendatacommunities.org/id/metropolitan-district-council/leeds,Leeds City Council,30/09/2017,City Development,Libraries  Arts & Heritage,Supplies and Services,External Audit Fees,261,01/09/2017,1709-00263,0.00,90.00,R,Advance Stocks Ltd,No,,
Http://opendatacommunities.org/id/metropolitan-district-council/leeds,Leeds City Council,30/09/2017,City Development,Recreation,Supplies and Services,External Audit Fees,261,29/09/2017,1709-00264,0.00,235.00,R,Advance Stocks Ltd,No,,
Http://opendatacommunities.org/id/metropolitan-district-council/leeds,Leeds City Council,30/09/2017,City Development,Recreation,Supplies and Services,External Audit Fees,261,29/09/2017,1709-00265,0.00,85.00,R,Advance Stocks Ltd,No,,
Http://opendatacommunities.org/id/metropolitan-district-council/leeds,Leeds City Council,30/09/2017,Children and Families,Safeguarding Targeted & Specialist,Support Services,Legal Disbursements,411,14/09/2017,1709-00266,0.00,268.84,R,Advanced Child Care Assessments Ltd,No,,
Http://opendatacommunities.org/id/metropolitan-district-council/leeds,Leeds City Council,30/09/2017,Environment & Housing,Leeds Building Services,Supplies and Services,Operational Materials,205,20/09/2017,1709-00267,0.00,139.00,R,Advanced Labelling Limited,No,,
Http://opendatacommunities.org/id/metropolitan-district-council/leeds,Leeds City Council as Accountable Body,30/09/2017,Social Services Pooled Budgets,Jcs For People With Learning Disabilitie,Third Party Payments,Day Centre,564,08/09/2017,1709-00268,0.00,492.05,R,Advitam Ltd,No,,
Http://opendatacommunities.org/id/metropolitan-district-council/leeds,Leeds City Council as Accountable Body,30/09/2017,Social Services Pooled Budgets,Jcs For People With Learning Disabilitie,Third Party Payments,Residential,580,20/09/2017,1709-00269,0.00,16091.54,R,Advitam Ltd,No,,
Http://opendatacommunities.org/id/metropolitan-district-council/leeds,Leeds City Council,30/09/2017,Adults and Health,Services For Older People - 65 And Over,Third Party Payments,Payments To Voluntary Organisations,561,08/09/2017,1709-00270,0.00,83435.70,R,Advonet,No,,
Http://opendatacommunities.org/id/metropolitan-district-council/leeds,Leeds City Council,30/09/2017,Adults and Health,Services For Adults Under 65 Mental/Dis,Third Party Payments,Payments To Voluntary Organisations,561,11/09/2017,1709-00271,0.00,13397.94,R,Advonet,No,,
Http://opendatacommunities.org/id/metropolitan-district-council/leeds,Leeds City Council,30/09/2017,Adults and Health,Services For Adults Under 65 Mental/Dis,Third Party Payments,Payments To Voluntary Organisations,561,11/09/2017,1709-00272,0.00,958.63,R,Advonet,No,,
Http://opendatacommunities.org/id/metropolitan-district-council/leeds,Leeds City Council,30/09/2017,Adults and Health,Services For Adults Under 65 Mental/Dis,Third Party Payments,Payments To Voluntary Organisations,561,11/09/2017,1709-00273,0.00,14969.66,R,Advonet,No,,
Http://opendatacommunities.org/id/metropolitan-district-council/leeds,Leeds City Council,30/09/2017,Adults and Health,Services For Adults Under 65 Mental/Dis,Third Party Payments,Payments To Voluntary Organisations,561,18/09/2017,1709-00274,0.00,3174.36,R,Advonet,No,,
Http://opendatacommunities.org/id/metropolitan-district-council/leeds,Leeds City Council,30/09/2017,City Development,Highways,Capital,Construction,3,11/09/2017,1709-00275,0.00,8000.00,C,Aecom Limited,No,,
Http://opendatacommunities.org/id/metropolitan-district-council/leeds,Leeds City Council,30/09/2017,City Development,Economic Development,Capital,Other Costs,7,26/09/2017,1709-00276,0.00,892.00,C,Aecom Limited,No,,
Http://opendatacommunities.org/id/metropolitan-district-council/leeds,Leeds City Council,30/09/2017,Insurance,Insurance,Supplies and Services,Insurance Claims,248,05/09/2017,1709-00277,0.00,1500.00,R,Aequitas Legal Solicitors Limited,No,,
Http://opendatacommunities.org/id/metropolitan-district-council/leeds,Leeds City Council,30/09/2017,Insurance,Insurance,Supplies and Services,Insurance Claims,248,08/09/2017,1709-00278,0.00,7685.00,R,Aequitas Legal Solicitors Limited,No,,
Http://opendatacommunities.org/id/metropolitan-district-council/leeds,Leeds City Council,30/09/2017,Insurance,Insurance,Supplies and Services,Insurance Claims,248,14/09/2017,1709-00279,0.00,9092.00,R,Affinity Seven Law,No,,
Http://opendatacommunities.org/id/metropolitan-district-council/leeds,Leeds City Council,30/09/2017,Communities and Environment,Elections  Licensing and Registration,Premises,Rents,141,15/09/2017,1709-00280,0.00,155.00,R,Affinity Sutton,No,,
Http://opendatacommunities.org/id/metropolitan-district-council/leeds,Leeds City Council,30/09/2017,Adults and Health,Services For Older People Under 65 P/Dis,Third Party Payments,Home Care,568,01/09/2017,1709-00281,0.00,465.78,R,Affinity Trust,No,,
Http://opendatacommunities.org/id/metropolitan-district-council/leeds,Leeds City Council as Accountable Body,30/09/2017,Social Services Pooled Budgets,Jcs For People With Learning Disabilitie,Third Party Payments,Home Care,568,06/09/2017,1709-00282,0.00,440.98,R,Affinity Trust,No,,
Http://opendatacommunities.org/id/metropolitan-district-council/leeds,Leeds City Council as Accountable Body,30/09/2017,Social Services Pooled Budgets,Jcs For People With Learning Disabilitie,Third Party Payments,Home Care,568,06/09/2017,1709-00283,0.00,440.98,R,Affinity Trust,No,,
Http://opendatacommunities.org/id/metropolitan-district-council/leeds,Leeds City Council as Accountable Body,30/09/2017,Social Services Pooled Budgets,Jcs For People With Learning Disabilitie,Third Party Payments,Home Care,568,07/09/2017,1709-00284,0.00,204.00,R,Affinity Trust,No,,
Http://opendatacommunities.org/id/metropolitan-district-council/leeds,Leeds City Council as Accountable Body,30/09/2017,Social Services Pooled Budgets,Jcs For People With Learning Disabilitie,Third Party Payments,Day Centre,564,07/09/2017,1709-00285,0.00,1350.00,R,Affinity Trust,No,,
Http://opendatacommunities.org/id/metropolitan-district-council/leeds,Leeds City Council as Accountable Body,30/09/2017,Social Services Pooled Budgets,Jcs For People With Learning Disabilitie,Third Party Payments,Home Care,568,07/09/2017,1709-00286,0.00,1581.06,R,Affinity Trust,No,,
Http://opendatacommunities.org/id/metropolitan-district-council/leeds,Leeds City Council as Accountable Body,30/09/2017,Social Services Pooled Budgets,Jcs For People With Learning Disabilitie,Third Party Payments,Home Care,568,07/09/2017,1709-00287,0.00,3094.60,R,Affinity Trust,No,,
Http://opendatacommunities.org/id/metropolitan-district-council/leeds,Leeds City Council as Accountable Body,30/09/2017,Social Services Pooled Budgets,Jcs For People With Learning Disabilitie,Third Party Payments,Day Centre,564,07/09/2017,1709-00288,0.00,703.92,R,Affinity Trust,No,,
Http://opendatacommunities.org/id/metropolitan-district-council/leeds,Leeds City Council as Accountable Body,30/09/2017,Social Services Pooled Budgets,Jcs For People With Learning Disabilitie,Third Party Payments,Home Care,568,07/09/2017,1709-00289,0.00,454.95,R,Affinity Trust,No,,
Http://opendatacommunities.org/id/metropolitan-district-council/leeds,Leeds City Council as Accountable Body,30/09/2017,Social Services Pooled Budgets,Jcs For People With Learning Disabilitie,Third Party Payments,Day Centre,564,07/09/2017,1709-00290,0.00,2451.13,R,Affinity Trust,No,,
Http://opendatacommunities.org/id/metropolitan-district-council/leeds,Leeds City Council as Accountable Body,30/09/2017,Social Services Pooled Budgets,Jcs For People With Learning Disabilitie,Third Party Payments,Home Care,568,07/09/2017,1709-00291,0.00,1393.56,R,Affinity Trust,No,,
Http://opendatacommunities.org/id/metropolitan-district-council/leeds,Leeds City Council as Accountable Body,30/09/2017,Social Services Pooled Budgets,Jcs For People With Learning Disabilitie,Third Party Payments,Home Care,568,07/09/2017,1709-00292,0.00,754.20,R,Affinity Trust,No,,
Http://opendatacommunities.org/id/metropolitan-district-council/leeds,Leeds City Council as Accountable Body,30/09/2017,Social Services Pooled Budgets,Jcs For People With Learning Disabilitie,Third Party Payments,Home Care,568,07/09/2017,1709-00293,0.00,1037.33,R,Affinity Trust,No,,
Http://opendatacommunities.org/id/metropolitan-district-council/leeds,Leeds City Council as Accountable Body,30/09/2017,Social Services Pooled Budgets,Jcs For People With Learning Disabilitie,Third Party Payments,Home Care,568,07/09/2017,1709-00294,0.00,1651.32,R,Affinity Trust,No,,
Http://opendatacommunities.org/id/metropolitan-district-council/leeds,Leeds City Council as Accountable Body,30/09/2017,Social Services Pooled Budgets,Jcs For People With Learning Disabilitie,Third Party Payments,Home Care,568,07/09/2017,1709-00295,0.00,1005.60,R,Affinity Trust,No,,
Http://opendatacommunities.org/id/metropolitan-district-council/leeds,Leeds City Council as Accountable Body,30/09/2017,Social Services Pooled Budgets,Jcs For People With Learning Disabilitie,Third Party Payments,Home Care,568,07/09/2017,1709-00296,0.00,360.00,R,Affinity Trust,No,,
Http://opendatacommunities.org/id/metropolitan-district-council/leeds,Leeds City Council as Accountable Body,30/09/2017,Social Services Pooled Budgets,Jcs For People With Learning Disabilitie,Third Party Payments,Home Care,568,07/09/2017,1709-00297,0.00,402.24,R,Affinity Trust,No,,
Http://opendatacommunities.org/id/metropolitan-district-council/leeds,Leeds City Council as Accountable Body,30/09/2017,Social Services Pooled Budgets,Jcs For People With Learning Disabilitie,Third Party Payments,Day Centre,564,07/09/2017,1709-00298,0.00,648.95,R,Affinity Trust,No,,
Http://opendatacommunities.org/id/metropolitan-district-council/leeds,Leeds City Council as Accountable Body,30/09/2017,Social Services Pooled Budgets,Jcs For People With Learning Disabilitie,Third Party Payments,Day Centre,564,07/09/2017,1709-00299,0.00,2229.08,R,Affinity Trust,No,,
Http://opendatacommunities.org/id/metropolitan-district-council/leeds,Leeds City Council as Accountable Body,30/09/2017,Social Services Pooled Budgets,Jcs For People With Learning Disabilitie,Third Party Payments,Day Centre,564,07/09/2017,1709-00300,0.00,1291.32,R,Affinity Trust,No,,
Http://opendatacommunities.org/id/metropolitan-district-council/leeds,Leeds City Council as Accountable Body,30/09/2017,Social Services Pooled Budgets,Jcs For People With Learning Disabilitie,Third Party Payments,Home Care,568,07/09/2017,1709-00301,0.00,783.02,R,Affinity Trust,No,,
Http://opendatacommunities.org/id/metropolitan-district-council/leeds,Leeds City Council as Accountable Body,30/09/2017,Social Services Pooled Budgets,Jcs For People With Learning Disabilitie,Third Party Payments,Home Care,568,07/09/2017,1709-00302,0.00,471.41,R,Affinity Trust,No,,
Http://opendatacommunities.org/id/metropolitan-district-council/leeds,Leeds City Council as Accountable Body,30/09/2017,Social Services Pooled Budgets,Jcs For People With Learning Disabilitie,Third Party Payments,Home Care,568,07/09/2017,1709-00303,0.00,383.52,R,Affinity Trust,No,,
Http://opendatacommunities.org/id/metropolitan-district-council/leeds,Leeds City Council as Accountable Body,30/09/2017,Social Services Pooled Budgets,Jcs For People With Learning Disabilitie,Third Party Payments,Home Care,568,07/09/2017,1709-00304,0.00,816.00,R,Affinity Trust,No,,
Http://opendatacommunities.org/id/metropolitan-district-council/leeds,Leeds City Council,30/09/2017,Adults and Health,Assessment And Care Management,Third Party Payments,Home Care,568,11/09/2017,1709-00305,0.00,239.70,R,Affinity Trust,No,,
Http://opendatacommunities.org/id/metropolitan-district-council/leeds,Leeds City Council,30/09/2017,Adults and Health,Assessment And Care Management,Third Party Payments,Home Care,568,11/09/2017,1709-00306,0.00,439.45,R,Affinity Trust,No,,
Http://opendatacommunities.org/id/metropolitan-district-council/leeds,Leeds City Council,30/09/2017,Adults and Health,Assessment And Care Management,Third Party Payments,Home Care,568,11/09/2017,1709-00307,0.00,631.21,R,Affinity Trust,No,,
Http://opendatacommunities.org/id/metropolitan-district-council/leeds,Leeds City Council as Accountable Body,30/09/2017,Social Services Pooled Budgets,Jcs For People With Learning Disabilitie,Third Party Payments,Day Centre,564,11/09/2017,1709-00308,0.00,416.64,R,Affinity Trust,No,,
Http://opendatacommunities.org/id/metropolitan-district-council/leeds,Leeds City Council,30/09/2017,Adults and Health,Assessment And Care Management,Third Party Payments,Home Care,568,11/09/2017,1709-00309,0.00,567.29,R,Affinity Trust,No,,
Http://opendatacommunities.org/id/metropolitan-district-council/leeds,Leeds City Council,30/09/2017,Adults and Health,Assessment And Care Management,Third Party Payments,Home Care,568,11/09/2017,1709-00310,0.00,511.36,R,Affinity Trust,No,,
Http://opendatacommunities.org/id/metropolitan-district-council/leeds,Leeds City Council as Accountable Body,30/09/2017,Social Services Pooled Budgets,Jcs For People With Learning Disabilitie,Third Party Payments,Home Care,568,12/09/2017,1709-00311,0.00,1310.36,R,Affinity Trust,No,,
Http://opendatacommunities.org/id/metropolitan-district-council/leeds,Leeds City Council as Accountable Body,30/09/2017,Social Services Pooled Budgets,Jcs For People With Learning Disabilitie,Third Party Payments,Home Care,568,14/09/2017,1709-00312,0.00,767.04,R,Affinity Trust,No,,
Http://opendatacommunities.org/id/metropolitan-district-council/leeds,Leeds City Council as Accountable Body,30/09/2017,Social Services Pooled Budgets,Jcs For People With Learning Disabilitie,Third Party Payments,Home Care,568,14/09/2017,1709-00313,0.00,1542.75,R,Affinity Trust,No,,
Http://opendatacommunities.org/id/metropolitan-district-council/leeds,Leeds City Council as Accountable Body,30/09/2017,Social Services Pooled Budgets,Jcs For People With Learning Disabilitie,Third Party Payments,Home Care,568,14/09/2017,1709-00314,0.00,1211.04,R,Affinity Trust,No,,
Http://opendatacommunities.org/id/metropolitan-district-council/leeds,Leeds City Council as Accountable Body,30/09/2017,Social Services Pooled Budgets,Jcs For People With Learning Disabilitie,Third Party Payments,Home Care,568,14/09/2017,1709-00315,0.00,934.83,R,Affinity Trust,No,,
Http://opendatacommunities.org/id/metropolitan-district-council/leeds,Leeds City Council as Accountable Body,30/09/2017,Social Services Pooled Budgets,Jcs For People With Learning Disabilitie,Third Party Payments,Home Care,568,14/09/2017,1709-00316,0.00,191.76,R,Affinity Trust,No,,
Http://opendatacommunities.org/id/metropolitan-district-council/leeds,Leeds City Council as Accountable Body,30/09/2017,Social Services Pooled Budgets,Jcs For People With Learning Disabilitie,Third Party Payments,Home Care,568,14/09/2017,1709-00317,0.00,479.40,R,Affinity Trust,No,,
Http://opendatacommunities.org/id/metropolitan-district-council/leeds,Leeds City Council as Accountable Body,30/09/2017,Social Services Pooled Budgets,Jcs For People With Learning Disabilitie,Third Party Payments,Home Care,568,14/09/2017,1709-00318,0.00,1062.67,R,Affinity Trust,No,,
Http://opendatacommunities.org/id/metropolitan-district-council/leeds,Leeds City Council as Accountable Body,30/09/2017,Social Services Pooled Budgets,Jcs For People With Learning Disabilitie,Third Party Payments,Home Care,568,14/09/2017,1709-00319,0.00,3182.65,R,Affinity Trust,No,,
Http://opendatacommunities.org/id/metropolitan-district-council/leeds,Leeds City Council as Accountable Body,30/09/2017,Social Services Pooled Budgets,Jcs For People With Learning Disabilitie,Third Party Payments,Home Care,568,15/09/2017,1709-00320,0.00,11063.40,R,Affinity Trust,No,,
Http://opendatacommunities.org/id/metropolitan-district-council/leeds,Leeds City Council as Accountable Body,30/09/2017,Social Services Pooled Budgets,Jcs For People With Learning Disabilitie,Third Party Payments,Home Care,568,15/09/2017,1709-00321,0.00,2939.30,R,Affinity Trust,No,,
Http://opendatacommunities.org/id/metropolitan-district-council/leeds,Leeds City Council,30/09/2017,Adults and Health,Assessment And Care Management,Third Party Payments,Home Care,568,15/09/2017,1709-00322,0.00,543.32,R,Affinity Trust,No,,
Http://opendatacommunities.org/id/metropolitan-district-council/leeds,Leeds City Council as Accountable Body,30/09/2017,Social Services Pooled Budgets,Jcs For People With Learning Disabilitie,Third Party Payments,Day Centre,564,18/09/2017,1709-00323,0.00,915.66,R,Affinity Trust,No,,
Http://opendatacommunities.org/id/metropolitan-district-council/leeds,Leeds City Council as Accountable Body,30/09/2017,Social Services Pooled Budgets,Jcs For People With Learning Disabilitie,Third Party Payments,Home Care,568,19/09/2017,1709-00324,0.00,47.94,R,Affinity Trust,No,,
Http://opendatacommunities.org/id/metropolitan-district-council/leeds,Leeds City Council,30/09/2017,Adults and Health,Services For Older People Under 65 P/Dis,Third Party Payments,Home Care,568,19/09/2017,1709-00325,0.00,599.25,R,Affinity Trust,No,,
Http://opendatacommunities.org/id/metropolitan-district-council/leeds,Leeds City Council,30/09/2017,Adults and Health,Services For Older People Under 65 P/Dis,Third Party Payments,Home Care,568,19/09/2017,1709-00326,0.00,639.20,R,Affinity Trust,No,,
Http://opendatacommunities.org/id/metropolitan-district-council/leeds,Leeds City Council,30/09/2017,Adults and Health,Services For Older People - 65 And Over,Third Party Payments,Home Care,568,19/09/2017,1709-00327,0.00,1076.48,R,Affinity Trust,No,,
Http://opendatacommunities.org/id/metropolitan-district-council/leeds,Leeds City Council,30/09/2017,Adults and Health,Services For Older People - 65 And Over,Third Party Payments,Home Care,568,19/09/2017,1709-00328,0.00,511.36,R,Affinity Trust,No,,
Http://opendatacommunities.org/id/metropolitan-district-council/leeds,Leeds City Council,30/09/2017,Adults and Health,Services For Older People Under 65 P/Dis,Third Party Payments,Home Care,568,21/09/2017,1709-00329,0.00,415.48,R,Affinity Trust,No,,
Http://opendatacommunities.org/id/metropolitan-district-council/leeds,Leeds City Council as Accountable Body,30/09/2017,Social Services Pooled Budgets,Jcs For People With Learning Disabilitie,Third Party Payments,Home Care,568,26/09/2017,1709-00330,0.00,408.64,R,Affinity Trust,No,,
Http://opendatacommunities.org/id/metropolitan-district-council/leeds,Leeds City Council as Accountable Body,30/09/2017,Social Services Pooled Budgets,Jcs For People With Learning Disabilitie,Third Party Payments,Home Care,568,26/09/2017,1709-00331,0.00,941.92,R,Affinity Trust,No,,
Http://opendatacommunities.org/id/metropolitan-district-council/leeds,Leeds City Council as Accountable Body,30/09/2017,Social Services Pooled Budgets,Jcs For People With Learning Disabilitie,Third Party Payments,Home Care,568,26/09/2017,1709-00332,0.00,255.68,R,Affinity Trust,No,,
Http://opendatacommunities.org/id/metropolitan-district-council/leeds,Leeds City Council as Accountable Body,30/09/2017,Social Services Pooled Budgets,Jcs For People With Learning Disabilitie,Third Party Payments,Home Care,568,26/09/2017,1709-00333,0.00,958.80,R,Affinity Trust,No,,
Http://opendatacommunities.org/id/metropolitan-district-council/leeds,Leeds City Council as Accountable Body,30/09/2017,Social Services Pooled Budgets,Jcs For People With Learning Disabilitie,Third Party Payments,Home Care,568,26/09/2017,1709-00334,0.00,319.60,R,Affinity Trust,No,,
Http://opendatacommunities.org/id/metropolitan-district-council/leeds,Leeds City Council as Accountable Body,30/09/2017,Social Services Pooled Budgets,Jcs For People With Learning Disabilitie,Third Party Payments,Home Care,568,26/09/2017,1709-00335,0.00,47.94,R,Affinity Trust,No,,
Http://opendatacommunities.org/id/metropolitan-district-council/leeds,Leeds City Council as Accountable Body,30/09/2017,Social Services Pooled Budgets,Jcs For People With Learning Disabilitie,Third Party Payments,Home Care,568,26/09/2017,1709-00336,0.00,47.97,R,Affinity Trust,No,,
Http://opendatacommunities.org/id/metropolitan-district-council/leeds,Leeds City Council as Accountable Body,30/09/2017,Social Services Pooled Budgets,Jcs For People With Learning Disabilitie,Third Party Payments,Day Centre,564,26/09/2017,1709-00337,0.00,1170.00,R,Affinity Trust,No,,
Http://opendatacommunities.org/id/metropolitan-district-council/leeds,Leeds City Council as Accountable Body,30/09/2017,Social Services Pooled Budgets,Jcs For People With Learning Disabilitie,Third Party Payments,Day Centre,564,26/09/2017,1709-00338,0.00,1050.66,R,Affinity Trust,No,,
Http://opendatacommunities.org/id/metropolitan-district-council/leeds,Leeds City Council as Accountable Body,30/09/2017,Social Services Pooled Budgets,Jcs For People With Learning Disabilitie,Third Party Payments,Home Care,568,26/09/2017,1709-00339,0.00,1050.00,R,Affinity Trust,No,,
Http://opendatacommunities.org/id/metropolitan-district-council/leeds,Leeds City Council as Accountable Body,30/09/2017,Social Services Pooled Budgets,Jcs For People With Learning Disabilitie,Third Party Payments,Home Care,568,26/09/2017,1709-00340,0.00,1560.00,R,Affinity Trust,No,,
Http://opendatacommunities.org/id/metropolitan-district-council/leeds,Leeds City Council as Accountable Body,30/09/2017,Social Services Pooled Budgets,Jcs For People With Learning Disabilitie,Third Party Payments,Home Care,568,26/09/2017,1709-00341,0.00,2752.80,R,Affinity Trust,No,,
Http://opendatacommunities.org/id/metropolitan-district-council/leeds,Leeds City Council as Accountable Body,30/09/2017,Social Services Pooled Budgets,Jcs For People With Learning Disabilitie,Third Party Payments,Home Care,568,26/09/2017,1709-00342,0.00,1631.34,R,Affinity Trust,No,,
Http://opendatacommunities.org/id/metropolitan-district-council/leeds,Leeds City Council as Accountable Body,30/09/2017,Social Services Pooled Budgets,Jcs For People With Learning Disabilitie,Third Party Payments,Day Centre,564,26/09/2017,1709-00343,0.00,100.56,R,Affinity Trust,No,,
Http://opendatacommunities.org/id/metropolitan-district-council/leeds,Leeds City Council as Accountable Body,30/09/2017,Social Services Pooled Budgets,Jcs For People With Learning Disabilitie,Third Party Payments,Home Care,568,26/09/2017,1709-00344,0.00,525.72,R,Affinity Trust,No,,
Http://opendatacommunities.org/id/metropolitan-district-council/leeds,Leeds City Council as Accountable Body,30/09/2017,Social Services Pooled Budgets,Jcs For People With Learning Disabilitie,Third Party Payments,Home Care,568,26/09/2017,1709-00345,0.00,1494.12,R,Affinity Trust,No,,
Http://opendatacommunities.org/id/metropolitan-district-council/leeds,Leeds City Council as Accountable Body,30/09/2017,Social Services Pooled Budgets,Jcs For People With Learning Disabilitie,Third Party Payments,Home Care,568,26/09/2017,1709-00346,0.00,804.48,R,Affinity Trust,No,,
Http://opendatacommunities.org/id/metropolitan-district-council/leeds,Leeds City Council as Accountable Body,30/09/2017,Social Services Pooled Budgets,Jcs For People With Learning Disabilitie,Third Party Payments,Home Care,568,26/09/2017,1709-00347,0.00,1013.11,R,Affinity Trust,No,,
Http://opendatacommunities.org/id/metropolitan-district-council/leeds,Leeds City Council as Accountable Body,30/09/2017,Social Services Pooled Budgets,Jcs For People With Learning Disabilitie,Third Party Payments,Home Care,568,26/09/2017,1709-00348,0.00,1485.99,R,Affinity Trust,No,,
Http://opendatacommunities.org/id/metropolitan-district-council/leeds,Leeds City Council as Accountable Body,30/09/2017,Social Services Pooled Budgets,Jcs For People With Learning Disabilitie,Third Party Payments,Home Care,568,26/09/2017,1709-00349,0.00,921.80,R,Affinity Trust,No,,
Http://opendatacommunities.org/id/metropolitan-district-council/leeds,Leeds City Council as Accountable Body,30/09/2017,Social Services Pooled Budgets,Jcs For People With Learning Disabilitie,Third Party Payments,Home Care,568,26/09/2017,1709-00350,0.00,360.00,R,Affinity Trust,No,,
Http://opendatacommunities.org/id/metropolitan-district-council/leeds,Leeds City Council as Accountable Body,30/09/2017,Social Services Pooled Budgets,Jcs For People With Learning Disabilitie,Third Party Payments,Home Care,568,26/09/2017,1709-00351,0.00,402.24,R,Affinity Trust,No,,
Http://opendatacommunities.org/id/metropolitan-district-council/leeds,Leeds City Council as Accountable Body,30/09/2017,Social Services Pooled Budgets,Jcs For People With Learning Disabilitie,Third Party Payments,Day Centre,564,26/09/2017,1709-00352,0.00,648.95,R,Affinity Trust,No,,
Http://opendatacommunities.org/id/metropolitan-district-council/leeds,Leeds City Council as Accountable Body,30/09/2017,Social Services Pooled Budgets,Jcs For People With Learning Disabilitie,Third Party Payments,Day Centre,564,26/09/2017,1709-00353,0.00,2229.08,R,Affinity Trust,No,,
Http://opendatacommunities.org/id/metropolitan-district-council/leeds,Leeds City Council as Accountable Body,30/09/2017,Social Services Pooled Budgets,Jcs For People With Learning Disabilitie,Third Party Payments,Day Centre,564,26/09/2017,1709-00354,0.00,1322.64,R,Affinity Trust,No,,
Http://opendatacommunities.org/id/metropolitan-district-council/leeds,Leeds City Council as Accountable Body,30/09/2017,Social Services Pooled Budgets,Jcs For People With Learning Disabilitie,Third Party Payments,Day Centre,564,26/09/2017,1709-00355,0.00,14162.33,R,Affinity Trust,No,,
Http://opendatacommunities.org/id/metropolitan-district-council/leeds,Leeds City Council as Accountable Body,30/09/2017,Social Services Pooled Budgets,Jcs For People With Learning Disabilitie,Third Party Payments,Day Centre,564,26/09/2017,1709-00356,0.00,17538.00,R,Affinity Trust,No,,
Http://opendatacommunities.org/id/metropolitan-district-council/leeds,Leeds City Council as Accountable Body,30/09/2017,Social Services Pooled Budgets,Jcs For People With Learning Disabilitie,Third Party Payments,Home Care,568,26/09/2017,1709-00357,0.00,1126.59,R,Affinity Trust,No,,
Http://opendatacommunities.org/id/metropolitan-district-council/leeds,Leeds City Council as Accountable Body,30/09/2017,Social Services Pooled Budgets,Jcs For People With Learning Disabilitie,Third Party Payments,Home Care,568,26/09/2017,1709-00358,0.00,1342.32,R,Affinity Trust,No,,
Http://opendatacommunities.org/id/metropolitan-district-council/leeds,Leeds City Council as Accountable Body,30/09/2017,Social Services Pooled Budgets,Jcs For People With Learning Disabilitie,Third Party Payments,Home Care,568,26/09/2017,1709-00359,0.00,479.40,R,Affinity Trust,No,,
Http://opendatacommunities.org/id/metropolitan-district-council/leeds,Leeds City Council as Accountable Body,30/09/2017,Social Services Pooled Budgets,Jcs For People With Learning Disabilitie,Third Party Payments,Home Care,568,26/09/2017,1709-00360,0.00,816.00,R,Affinity Trust,No,,
Http://opendatacommunities.org/id/metropolitan-district-council/leeds,Leeds City Council as Accountable Body,30/09/2017,Social Services Pooled Budgets,Jcs For People With Learning Disabilitie,Third Party Payments,Day Centre,564,26/09/2017,1709-00361,0.00,416.64,R,Affinity Trust,No,,
Http://opendatacommunities.org/id/metropolitan-district-council/leeds,Leeds City Council as Accountable Body,30/09/2017,Social Services Pooled Budgets,Jcs For People With Learning Disabilitie,Third Party Payments,Home Care,568,26/09/2017,1709-00362,0.00,767.04,R,Affinity Trust,No,,
Http://opendatacommunities.org/id/metropolitan-district-council/leeds,Leeds City Council as Accountable Body,30/09/2017,Social Services Pooled Budgets,Jcs For People With Learning Disabilitie,Third Party Payments,Home Care,568,26/09/2017,1709-00363,0.00,1518.00,R,Affinity Trust,No,,
Http://opendatacommunities.org/id/metropolitan-district-council/leeds,Leeds City Council as Accountable Body,30/09/2017,Social Services Pooled Budgets,Jcs For People With Learning Disabilitie,Third Party Payments,Home Care,568,26/09/2017,1709-00364,0.00,1211.04,R,Affinity Trust,No,,
Http://opendatacommunities.org/id/metropolitan-district-council/leeds,Leeds City Council as Accountable Body,30/09/2017,Social Services Pooled Budgets,Jcs For People With Learning Disabilitie,Third Party Payments,Home Care,568,26/09/2017,1709-00365,0.00,2580.77,R,Affinity Trust,No,,
Http://opendatacommunities.org/id/metropolitan-district-council/leeds,Leeds City Council as Accountable Body,30/09/2017,Social Services Pooled Budgets,Jcs For People With Learning Disabilitie,Third Party Payments,Home Care,568,26/09/2017,1709-00366,0.00,191.76,R,Affinity Trust,No,,
Http://opendatacommunities.org/id/metropolitan-district-council/leeds,Leeds City Council as Accountable Body,30/09/2017,Social Services Pooled Budgets,Jcs For People With Learning Disabilitie,Third Party Payments,Home Care,568,26/09/2017,1709-00367,0.00,306.48,R,Affinity Trust,No,,
Http://opendatacommunities.org/id/metropolitan-district-council/leeds,Leeds City Council as Accountable Body,30/09/2017,Social Services Pooled Budgets,Jcs For People With Learning Disabilitie,Third Party Payments,Home Care,568,26/09/2017,1709-00368,0.00,941.92,R,Affinity Trust,No,,
Http://opendatacommunities.org/id/metropolitan-district-council/leeds,Leeds City Council as Accountable Body,30/09/2017,Social Services Pooled Budgets,Jcs For People With Learning Disabilitie,Third Party Payments,Home Care,568,26/09/2017,1709-00369,0.00,255.68,R,Affinity Trust,No,,
Http://opendatacommunities.org/id/metropolitan-district-council/leeds,Leeds City Council,30/09/2017,Adults and Health,Assessment And Care Management,Third Party Payments,Home Care,568,26/09/2017,1709-00370,0.00,511.36,R,Affinity Trust,No,,
Http://opendatacommunities.org/id/metropolitan-district-council/leeds,Leeds City Council as Accountable Body,30/09/2017,Social Services Pooled Budgets,Jcs For People With Learning Disabilitie,Third Party Payments,Sheltered Accommodation,569,20/09/2017,1709-00371,0.00,152692.05,R,Affinity Trust North Divisional Office,No,,
Http://opendatacommunities.org/id/metropolitan-district-council/leeds,Leeds City Council,30/09/2017,Environment & Housing,Parks And Countryside  ,Transport,Hire Of Movable Plant & Machinery,315,10/08/2017,1709-00372,0.00,4750.00,R,Afi Uplift Ltd,Yes,,
Http://opendatacommunities.org/id/metropolitan-district-council/leeds,Leeds City Council,30/09/2017,Resources and Housing,Strategic Housing Partnerships,Capital,Construction,3,29/09/2017,1709-00373,0.00,10000.00,C,Afzal & Co,No,,
Http://opendatacommunities.org/id/metropolitan-district-council/leeds,Leeds City Council,30/09/2017,Adults and Health,Public Health,Third Party Payments,Services Rendered By Voluntary Sector,505,01/09/2017,1709-00374,0.00,5150.00,R,Age Uk Leeds,No,,
Http://opendatacommunities.org/id/metropolitan-district-council/leeds,Leeds City Council,30/09/2017,City Development,Employment & Skills,Supplies and Services,College Contracts,276,15/09/2017,1709-00375,0.00,9900.00,R,Age Uk Leeds,No,,
Http://opendatacommunities.org/id/metropolitan-district-council/leeds,Leeds City Council,30/09/2017,Adults and Health,Services For Older People - 65 And Over,Third Party Payments,Payments To Voluntary Organisations,561,29/09/2017,1709-00376,0.00,8024.75,R,Age Uk Leeds Enterprises,No,,
Http://opendatacommunities.org/id/metropolitan-district-council/leeds,Leeds City Council,30/09/2017,City Development,Recreation,Income,Sporting & Other Recreational Fees,928,13/09/2017,1709-00377,0.00,23.93,R,REDACTED PERSONAL DATA,No,,
Http://opendatacommunities.org/id/metropolitan-district-council/leeds,Leeds City Council as Accountable Body,30/09/2017,Social Services Pooled Budgets,Leeds Community Equip Store Pooled Budgt,Supplies and Services,Other Equipment,203,01/09/2017,1709-00378,0.00,2330.70,R,Aidapt Bathrooms Ltd,No,,
Http://opendatacommunities.org/id/metropolitan-district-council/leeds,Leeds City Council as Accountable Body,30/09/2017,Social Services Pooled Budgets,Leeds Community Equip Store Pooled Budgt,Supplies and Services,Other Equipment,203,06/09/2017,1709-00379,0.00,1098.36,R,Aidapt Bathrooms Ltd,No,,
Http://opendatacommunities.org/id/metropolitan-district-council/leeds,Leeds City Council as Accountable Body,30/09/2017,Social Services Pooled Budgets,Leeds Community Equip Store Pooled Budgt,Supplies and Services,Other Equipment,203,13/09/2017,1709-00380,0.00,1099.40,R,Aidapt Bathrooms Ltd,No,,
Http://opendatacommunities.org/id/metropolitan-district-council/leeds,Leeds City Council as Accountable Body,30/09/2017,Social Services Pooled Budgets,Leeds Community Equip Store Pooled Budgt,Supplies and Services,Other Equipment,203,13/09/2017,1709-00381,0.00,1619.90,R,Aidapt Bathrooms Ltd,No,,
Http://opendatacommunities.org/id/metropolitan-district-council/leeds,Leeds City Council as Accountable Body,30/09/2017,Social Services Pooled Budgets,Leeds Community Equip Store Pooled Budgt,Supplies and Services,Other Equipment,203,15/09/2017,1709-00382,0.00,77.00,R,Aidapt Bathrooms Ltd,No,,
Http://opendatacommunities.org/id/metropolitan-district-council/leeds,Leeds City Council as Accountable Body,30/09/2017,Social Services Pooled Budgets,Leeds Community Equip Store Pooled Budgt,Supplies and Services,Other Equipment,203,22/09/2017,1709-00383,0.00,549.70,R,Aidapt Bathrooms Ltd,No,,
Http://opendatacommunities.org/id/metropolitan-district-council/leeds,Leeds City Council as Accountable Body,30/09/2017,Social Services Pooled Budgets,Leeds Community Equip Store Pooled Budgt,Supplies and Services,Other Equipment,203,22/09/2017,1709-00384,0.00,299.60,R,Aidapt Bathrooms Ltd,No,,
Http://opendatacommunities.org/id/metropolitan-district-council/leeds,Leeds City Council,30/09/2017,Environment & Housing,Leeds Building Services,Supplies and Services,Operational Materials,205,01/09/2017,1709-00385,0.00,51.75,R,Air Conditioning Accessories,No,,
Http://opendatacommunities.org/id/metropolitan-district-council/leeds,Leeds City Council,30/09/2017,Environment & Housing,Leeds Building Services,Supplies and Services,Operational Materials,205,01/09/2017,1709-00386,0.00,44.79,R,Air Conditioning Accessories,No,,
Http://opendatacommunities.org/id/metropolitan-district-council/leeds,Leeds City Council,30/09/2017,Environment & Housing,Leeds Building Services,Supplies and Services,Operational Materials,205,04/09/2017,1709-00387,0.00,36.42,R,Air Conditioning Accessories,No,,
Http://opendatacommunities.org/id/metropolitan-district-council/leeds,Leeds City Council,30/09/2017,Environment & Housing,Leeds Building Services,Supplies and Services,Operational Materials,205,04/09/2017,1709-00388,0.00,65.00,R,Air Conditioning Accessories,No,,
Http://opendatacommunities.org/id/metropolitan-district-council/leeds,Leeds City Council,30/09/2017,Environment & Housing,Leeds Building Services,Supplies and Services,Operational Materials,205,04/09/2017,1709-00389,0.00,11.15,R,Air Conditioning Accessories,No,,
Http://opendatacommunities.org/id/metropolitan-district-council/leeds,Leeds City Council,30/09/2017,Environment & Housing,Leeds Building Services,Supplies and Services,Operational Materials,205,04/09/2017,1709-00390,0.00,21.70,R,Air Conditioning Accessories,No,,
Http://opendatacommunities.org/id/metropolitan-district-council/leeds,Leeds City Council,30/09/2017,Environment & Housing,Leeds Building Services,Supplies and Services,Operational Materials,205,04/09/2017,1709-00391,0.00,47.46,R,Air Conditioning Accessories,No,,
Http://opendatacommunities.org/id/metropolitan-district-council/leeds,Leeds City Council,30/09/2017,Environment & Housing,Leeds Building Services,Supplies and Services,Operational Materials,205,11/09/2017,1709-00392,0.00,326.92,R,Air Conditioning Accessories,No,,
Http://opendatacommunities.org/id/metropolitan-district-council/leeds,Leeds City Council,30/09/2017,Environment & Housing,Leeds Building Services,Supplies and Services,Operational Materials,205,12/09/2017,1709-00393,0.00,174.39,R,Air Conditioning Accessories,No,,
Http://opendatacommunities.org/id/metropolitan-district-council/leeds,Leeds City Council,30/09/2017,Environment & Housing,Leeds Building Services,Supplies and Services,Operational Materials,205,12/09/2017,1709-00394,0.00,162.99,R,Air Conditioning Accessories,No,,
Http://opendatacommunities.org/id/metropolitan-district-council/leeds,Leeds City Council,30/09/2017,Environment & Housing,Leeds Building Services,Supplies and Services,Operational Materials,205,15/09/2017,1709-00395,0.00,33.52,R,Air Conditioning Accessories,No,,
Http://opendatacommunities.org/id/metropolitan-district-council/leeds,Leeds City Council,30/09/2017,Environment & Housing,Leeds Building Services,Supplies and Services,Operational Materials,205,15/09/2017,1709-00396,0.00,66.91,R,Air Conditioning Accessories,No,,
Http://opendatacommunities.org/id/metropolitan-district-council/leeds,Leeds City Council,30/09/2017,Environment & Housing,Leeds Building Services,Supplies and Services,Operational Materials,205,15/09/2017,1709-00397,0.00,15.12,R,Air Conditioning Accessories,No,,
Http://opendatacommunities.org/id/metropolitan-district-council/leeds,Leeds City Council,30/09/2017,Environment & Housing,Leeds Building Services,Supplies and Services,Operational Materials,205,27/09/2017,1709-00398,0.00,143.82,R,Air Conditioning Accessories,No,,
Http://opendatacommunities.org/id/metropolitan-district-council/leeds,Leeds City Council,30/09/2017,Environment & Housing,Environmental Health,Supplies and Services,Other Hired And Contracted Services,265,01/09/2017,1709-00399,0.00,9.39,R,Air Liquide Uk,No,,
Http://opendatacommunities.org/id/metropolitan-district-council/leeds,Leeds City Council,30/09/2017,Environment & Housing,Environmental Health,Supplies and Services,Operational Furniture And Equipment,203,01/09/2017,1709-00400,0.00,14.31,R,Air Liquide Uk,No,,
Http://opendatacommunities.org/id/metropolitan-district-council/leeds,Leeds City Council,30/09/2017,Environment & Housing,Environmental Health,Supplies and Services,Other Hired And Contracted Services,265,01/09/2017,1709-00401,0.00,75.12,R,Air Liquide Uk,No,,
Http://opendatacommunities.org/id/metropolitan-district-council/leeds,Leeds City Council,30/09/2017,Environment & Housing,Leeds Building Services,Supplies and Services,Operational Materials,205,04/09/2017,1709-00402,0.00,181.10,R,Air Liquide Uk,No,,
Http://opendatacommunities.org/id/metropolitan-district-council/leeds,Leeds City Council,30/09/2017,Environment & Housing,Leeds Building Services,Supplies and Services,Operational Furniture And Equipment,203,15/09/2017,1709-00403,0.00,226.63,R,Air Liquide Uk,No,,
Http://opendatacommunities.org/id/metropolitan-district-council/leeds,Leeds City Council,30/09/2017,Environment & Housing,Leeds Building Services,Supplies and Services,Operational Materials,205,15/09/2017,1709-00404,0.00,181.10,R,Air Liquide Uk,No,,
Http://opendatacommunities.org/id/metropolitan-district-council/leeds,Leeds City Council,30/09/2017,City Development,Economic Development,Supplies and Services,Grants To Businesses,243,08/09/2017,1709-00405,0.00,24328.00,R,Aire Place Property Co. Ltd,No,,
Http://opendatacommunities.org/id/metropolitan-district-council/leeds,Leeds City Council,30/09/2017,Environment & Housing,Parks and Countryside,Supplies and Services,Other Hired And Contracted Services,265,22/09/2017,1709-00406,0.00,245.00,R,Aire Valley Tree Services Ltd,No,,
Http://opendatacommunities.org/id/metropolitan-district-council/leeds,Leeds City Council,30/09/2017,Environment & Housing,Parks and Countryside,Supplies and Services,Other Hired And Contracted Services,265,22/09/2017,1709-00407,0.00,825.00,R,Aire Valley Tree Services Ltd,No,,
Http://opendatacommunities.org/id/metropolitan-district-council/leeds,Leeds City Council,30/09/2017,Environment & Housing,Parks and Countryside,Supplies and Services,Other Hired And Contracted Services,265,22/09/2017,1709-00408,0.00,695.00,R,Aire Valley Tree Services Ltd,No,,
Http://opendatacommunities.org/id/metropolitan-district-council/leeds,Leeds City Council,30/09/2017,Adults and Health,Services For Older People - 65 And Over,Third Party Payments,Residential Care Dementia,571,20/09/2017,1709-00409,0.00,30894.35,R,Aire View Residential Home,No,,
Http://opendatacommunities.org/id/metropolitan-district-council/leeds,Leeds City Council,30/09/2017,Adults and Health,Services For Older People - 65 And Over,Third Party Payments,Residential,580,20/09/2017,1709-00410,0.00,12909.00,R,Aire View Residential Home,No,,
Http://opendatacommunities.org/id/metropolitan-district-council/leeds,Leeds City Council,30/09/2017,Adults and Health,Public Health,Third Party Payments,Public Health Commissioned Services,526,06/09/2017,1709-00411,0.00,2989.90,R,Aireborough Family Practice,No,,
Http://opendatacommunities.org/id/metropolitan-district-council/leeds,Leeds City Council,30/09/2017,Children and Families,Safeguarding Targeted & Specialist  ,Third Party Payments,Section 17,551,18/08/2017,1709-00412,0.00,116.67,R,Aireborough Skip,Yes,,
Http://opendatacommunities.org/id/metropolitan-district-council/leeds,Leeds City Council,30/09/2017,Children and Families,Partnerships,Third Party Payments,Services Rendered By Voluntary Sector,505,20/09/2017,1709-00413,0.00,29620.00,R,Aireborough Supported Activities Scheme,No,,
Http://opendatacommunities.org/id/metropolitan-district-council/leeds,Leeds City Council,30/09/2017,Adults and Health,Services For Older People - 65 And Over,Third Party Payments,Residential Care Dementia,571,20/09/2017,1709-00414,0.00,4702.44,R,Airedale (Goldsborough),No,,
Http://opendatacommunities.org/id/metropolitan-district-council/leeds,Leeds City Council,30/09/2017,Adults and Health,Services For Older People - 65 And Over,Third Party Payments,Residential,580,20/09/2017,1709-00415,0.00,23654.45,R,Airedale (Goldsborough),No,,
Http://opendatacommunities.org/id/metropolitan-district-council/leeds,Leeds City Council,30/09/2017,Civic Enterprise Leeds,Commercial Services,Supplies and Services,Operational Furniture And Equipment,203,06/09/2017,1709-00416,0.00,1930.00,R,Airedale Catering Equipment Ltd,No,,
Http://opendatacommunities.org/id/metropolitan-district-council/leeds,Leeds City Council,30/09/2017,Civic Enterprise Leeds,Commercial Services,Supplies and Services,Operational Furniture And Equipment,203,08/09/2017,1709-00417,0.00,1600.00,R,Airedale Catering Equipment Ltd,No,,
Http://opendatacommunities.org/id/metropolitan-district-council/leeds,Leeds City Council,30/09/2017,Strategic Landlord,Property and Contracts,Premises,General Maintenance,104,13/09/2017,1709-00418,0.00,787.00,R,Airtech Environmental Systems,No,,
Http://opendatacommunities.org/id/metropolitan-district-council/leeds,Leeds City Council,30/09/2017,Civic Enterprise Leeds,Commercial Services,Supplies and Services,Other Hired And Contracted Services,265,29/09/2017,1709-00419,0.00,225.00,R,Air-Weigh Europe Limited,No,,
Http://opendatacommunities.org/id/metropolitan-district-council/leeds,Leeds City Council,30/09/2017,Adults and Health,Services For Adults Under 65 Mental/Dis,Third Party Payments,Fees - Level 4,520,06/09/2017,1709-00420,0.00,175.00,R,Ait Mitra,No,,
Http://opendatacommunities.org/id/metropolitan-district-council/leeds,Leeds City Council,30/09/2017,Adults and Health,Services For Adults Under 65 Mental/Dis,Third Party Payments,Fees - Level 4,520,06/09/2017,1709-00421,0.00,175.00,R,Ait Mitra,No,,
Http://opendatacommunities.org/id/metropolitan-district-council/leeds,Leeds City Council,30/09/2017,Adults and Health,Services For Adults Under 65 Mental/Dis,Third Party Payments,Fees - Level 4,520,06/09/2017,1709-00422,0.00,175.00,R,Ait Mitra,No,,
Http://opendatacommunities.org/id/metropolitan-district-council/leeds,Leeds City Council,30/09/2017,Adults and Health,Services For Adults Under 65 Mental/Dis,Third Party Payments,Fees - Level 4,520,06/09/2017,1709-00423,0.00,175.00,R,Ait Mitra,No,,
Http://opendatacommunities.org/id/metropolitan-district-council/leeds,Leeds City Council,30/09/2017,Adults and Health,Services For Adults Under 65 Mental/Dis,Third Party Payments,Fees - Level 4,520,06/09/2017,1709-00424,0.00,175.00,R,Ait Mitra,No,,
Http://opendatacommunities.org/id/metropolitan-district-council/leeds,Leeds City Council,30/09/2017,Adults and Health,Services For Adults Under 65 Mental/Dis,Third Party Payments,Fees - Level 4,520,06/09/2017,1709-00425,0.00,175.00,R,Ait Mitra,No,,
Http://opendatacommunities.org/id/metropolitan-district-council/leeds,Leeds City Council,30/09/2017,Adults and Health,Services For Adults Under 65 Mental/Dis,Third Party Payments,Fees - Level 4,520,06/09/2017,1709-00426,0.00,175.00,R,Ait Mitra,No,,
Http://opendatacommunities.org/id/metropolitan-district-council/leeds,Leeds City Council,30/09/2017,Adults and Health,Services For Adults Under 65 Mental/Dis,Third Party Payments,Fees - Level 4,520,06/09/2017,1709-00427,0.00,175.00,R,Ait Mitra,No,,
Http://opendatacommunities.org/id/metropolitan-district-council/leeds,Leeds City Council,30/09/2017,Adults and Health,Services For Adults Under 65 Mental/Dis,Third Party Payments,Fees - Level 4,520,06/09/2017,1709-00428,0.00,239.50,R,Ait Mitra,No,,
Http://opendatacommunities.org/id/metropolitan-district-council/leeds,Leeds City Council,30/09/2017,Adults and Health,Services For Adults Under 65 Mental/Dis,Third Party Payments,Fees - Level 4,520,08/09/2017,1709-00429,0.00,175.00,R,Ait Mitra,No,,
Http://opendatacommunities.org/id/metropolitan-district-council/leeds,Leeds City Council as Accountable Body,30/09/2017,Social Services Pooled Budgets,Jcs For People With Learning Disabilitie,Third Party Payments,Residential,580,20/09/2017,1709-00430,0.00,6173.24,R,Aitch Care Homes,No,,
Http://opendatacommunities.org/id/metropolitan-district-council/leeds,Leeds City Council,30/09/2017,Civic Enterprise Leeds,Commercial Services,Supplies and Services,Other Hired And Contracted Services,265,21/09/2017,1709-00431,0.00,525.00,R,REDACTED PERSONAL DATA,No,,
Http://opendatacommunities.org/id/metropolitan-district-council/leeds,Leeds City Council,30/09/2017,Civic Enterprise Leeds,Commercial Services,Supplies and Services,Other Hired And Contracted Services,265,21/09/2017,1709-00432,0.00,675.00,R,REDACTED PERSONAL DATA,No,,
Http://opendatacommunities.org/id/metropolitan-district-council/leeds,Leeds City Council,30/09/2017,Civic Enterprise Leeds,Commercial Services,Supplies and Services,Other Hired And Contracted Services,265,21/09/2017,1709-00433,0.00,675.00,R,REDACTED PERSONAL DATA,No,,
Http://opendatacommunities.org/id/metropolitan-district-council/leeds,Leeds City Council,30/09/2017,Adults and Health,Services For Older People - 65 And Over,Third Party Payments,Home Care,568,15/09/2017,1709-00434,0.00,3396.37,R,Aj Community Care Ltd,No,,
Http://opendatacommunities.org/id/metropolitan-district-council/leeds,Leeds City Council,30/09/2017,Adults and Health,Services For Older People Under 65 P/Dis,Third Party Payments,Home Care,568,15/09/2017,1709-00435,0.00,2883.64,R,Aj Community Care Ltd,No,,
Http://opendatacommunities.org/id/metropolitan-district-council/leeds,Leeds City Council,30/09/2017,Adults and Health,Services For Older People - 65 And Over,Third Party Payments,Home Care,568,20/09/2017,1709-00436,0.00,4026.96,R,Aj Community Care Ltd,No,,
Http://opendatacommunities.org/id/metropolitan-district-council/leeds,Leeds City Council,30/09/2017,Adults and Health,Services For Older People Under 65 P/Dis,Third Party Payments,Home Care,568,20/09/2017,1709-00437,0.00,3751.31,R,Aj Community Care Ltd,No,,
Http://opendatacommunities.org/id/metropolitan-district-council/leeds,Leeds City Council,30/09/2017,Adults and Health,Services For Older People - 65 And Over,Third Party Payments,Home Care,568,20/09/2017,1709-00438,0.00,241.37,R,Aj Community Care Ltd,No,,
Http://opendatacommunities.org/id/metropolitan-district-council/leeds,Leeds City Council,30/09/2017,Adults and Health,Services For Older People - 65 And Over,Third Party Payments,Home Care,568,27/09/2017,1709-00439,0.00,15152.07,R,Aj Community Care Ltd,No,,
Http://opendatacommunities.org/id/metropolitan-district-council/leeds,Leeds City Council,30/09/2017,Adults and Health,Services For Older People Under 65 P/Dis,Third Party Payments,Home Care,568,27/09/2017,1709-00440,0.00,10811.22,R,Aj Community Care Ltd,No,,
Http://opendatacommunities.org/id/metropolitan-district-council/leeds,Leeds City Council,30/09/2017,Environment & Housing,Leeds Building Services,Supplies and Services,Stores - Central And Other Depots,005,04/09/2017,1709-00441,0.00,612.35,R,Ajm Fixings & Power Tools Ltd,No,,
Http://opendatacommunities.org/id/metropolitan-district-council/leeds,Leeds City Council,30/09/2017,Environment & Housing,Leeds Building Services,Supplies and Services,Operational Materials,205,15/09/2017,1709-00442,0.00,260.00,R,Ajm Fixings & Power Tools Ltd,No,,
Http://opendatacommunities.org/id/metropolitan-district-council/leeds,Leeds City Council,30/09/2017,Environment & Housing,Leeds Building Services,Supplies and Services,Operational Materials,205,15/09/2017,1709-00443,0.00,65.00,R,Ajm Fixings & Power Tools Ltd,No,,
Http://opendatacommunities.org/id/metropolitan-district-council/leeds,Leeds City Council,30/09/2017,Environment & Housing,Leeds Building Services,Supplies and Services,Operational Furniture And Equipment,203,15/09/2017,1709-00444,0.00,29.50,R,Ajm Fixings & Power Tools Ltd,No,,
Http://opendatacommunities.org/id/metropolitan-district-council/leeds,Leeds City Council,30/09/2017,Environment & Housing,Leeds Building Services,Supplies and Services,Stores - Central And Other Depots,005,15/09/2017,1709-00445,0.00,88.00,R,Ajm Fixings & Power Tools Ltd,No,,
Http://opendatacommunities.org/id/metropolitan-district-council/leeds,Leeds City Council,30/09/2017,Environment & Housing,Leeds Building Services,Supplies and Services,Stores - Central And Other Depots,005,15/09/2017,1709-00446,0.00,458.00,R,Ajm Fixings & Power Tools Ltd,No,,
Http://opendatacommunities.org/id/metropolitan-district-council/leeds,Leeds City Council,30/09/2017,Environment & Housing,Leeds Building Services,Supplies and Services,Operational Furniture And Equipment,203,15/09/2017,1709-00447,0.00,434.00,R,Ajm Fixings & Power Tools Ltd,No,,
Http://opendatacommunities.org/id/metropolitan-district-council/leeds,Leeds City Council,30/09/2017,Environment & Housing,Leeds Building Services,Supplies and Services,Stores - Central And Other Depots,005,15/09/2017,1709-00448,0.00,237.60,R,Ajm Fixings & Power Tools Ltd,No,,
Http://opendatacommunities.org/id/metropolitan-district-council/leeds,Leeds City Council,30/09/2017,Adults and Health,Services For Older People - 65 And Over,Third Party Payments,Nursing Home,570,20/09/2017,1709-00449,0.00,1247.60,R,Akari Care Ltd,No,,
Http://opendatacommunities.org/id/metropolitan-district-council/leeds,Leeds City Council,30/09/2017,Children and Families,Safeguarding Targeted & Specialist,Supplies and Services,General Amenity For Clients/Residents,285,14/09/2017,1709-00450,0.00,47.15,R,REDACTED PERSONAL DATA,No,,
Http://opendatacommunities.org/id/metropolitan-district-council/leeds,Leeds City Council,30/09/2017,Children and Families,Safeguarding Targeted & Specialist,Transport,Public Transport Expenses,310,14/09/2017,1709-00451,0.00,97.20,R,REDACTED PERSONAL DATA,No,,
Http://opendatacommunities.org/id/metropolitan-district-council/leeds,Leeds City Council,30/09/2017,Communities and Environment,Elections  Licensing and Registration,Income,Admissions  Booking Fees & Ticket Sales,933,28/09/2017,1709-00452,0.00,90.00,R,REDACTED PERSONAL DATA,No,,
Http://opendatacommunities.org/id/metropolitan-district-council/leeds,Leeds City Council,30/09/2017,Civic Enterprise Leeds,Commercial Services,Premises,Plant and Machinery,102,08/09/2017,1709-00453,0.00,441.12,R,Akua Uk Ltd,No,,
Http://opendatacommunities.org/id/metropolitan-district-council/leeds,Leeds City Council,30/09/2017,Civic Enterprise Leeds,Commercial Services,Premises,Plant and Machinery,102,08/09/2017,1709-00454,0.00,119.10,R,Akua Uk Ltd,No,,
Http://opendatacommunities.org/id/metropolitan-district-council/leeds,Leeds City Council,30/09/2017,Environment & Housing,Leeds Building Services,Supplies and Services,Operational Materials,205,08/09/2017,1709-00455,0.00,1212.77,R,Akw Medicare Ltd,No,,
Http://opendatacommunities.org/id/metropolitan-district-council/leeds,Leeds City Council,30/09/2017,Environment & Housing,Leeds Building Services,Supplies and Services,Operational Materials,205,15/09/2017,1709-00456,0.00,93.16,R,Akw Medicare Ltd,No,,
Http://opendatacommunities.org/id/metropolitan-district-council/leeds,Leeds City Council,30/09/2017,Environment & Housing,Leeds Building Services,Supplies and Services,Operational Materials,205,15/09/2017,1709-00457,0.00,46.58,R,Akw Medicare Ltd,No,,
Http://opendatacommunities.org/id/metropolitan-district-council/leeds,Leeds City Council,30/09/2017,Environment & Housing,Leeds Building Services,Supplies and Services,Operational Materials,205,15/09/2017,1709-00458,0.00,109.34,R,Akw Medicare Ltd,No,,
Http://opendatacommunities.org/id/metropolitan-district-council/leeds,Leeds City Council,30/09/2017,City Development,Libraries  Arts & Heritage  ,Supplies and Services,Operational Materials,205,02/08/2017,1709-00459,0.00,72.50,R,Akzonobel,Yes,,
Http://opendatacommunities.org/id/metropolitan-district-council/leeds,Leeds City Council,30/09/2017,Adults and Health,Services For Older People - 65 And Over,Third Party Payments,Payments To Voluntary Organisations,561,29/09/2017,1709-00460,0.00,3000.00,R,Al Khidmat Centre,No,,
Http://opendatacommunities.org/id/metropolitan-district-council/leeds,Leeds City Council,30/09/2017,Resources and Housing,Democratic Services  ,Premises,Grounds Maintenance Work,111,03/08/2017,1709-00461,0.00,50.00,R,Alan Brown Flowers,Yes,,
Http://opendatacommunities.org/id/metropolitan-district-council/leeds,Leeds City Council,30/09/2017,City Development,Libraries  Arts & Heritage,Supplies and Services,Non-Recurring Grants,227,07/09/2017,1709-00462,0.00,3000.00,R,Alan Lyddiard,No,,
Http://opendatacommunities.org/id/metropolitan-district-council/leeds,Leeds City Council,30/09/2017,Children and Families,Safeguarding Targeted & Specialist,Third Party Payments,Services Rendered By Other Organisations,511,20/09/2017,1709-00463,0.00,1411.20,R,Alanna Cardiss,No,,
Http://opendatacommunities.org/id/metropolitan-district-council/leeds,Leeds City Council as Accountable Body,30/09/2017,Social Services Pooled Budgets,Leeds Community Equip Store Pooled Budgt,Supplies and Services,Other Equipment,203,15/09/2017,1709-00464,0.00,397.50,R,Albion Electric Stores Ltd,No,,
Http://opendatacommunities.org/id/metropolitan-district-council/leeds,Leeds City Council,30/09/2017,Communities and Environment,Communities,Supplies and Services,Computer Software & Equipment,214,08/09/2017,1709-00465,0.00,1075.00,R,Alcium Software Ltd,No,,
Http://opendatacommunities.org/id/metropolitan-district-council/leeds,Leeds City Council,30/09/2017,Communities and Environment,Communities,Supplies and Services,Computer Software & Equipment,214,08/09/2017,1709-00466,0.00,1075.00,R,Alcium Software Ltd,No,,
Http://opendatacommunities.org/id/metropolitan-district-council/leeds,Leeds City Council,30/09/2017,Communities and Environment,Communities,Supplies and Services,Computer Software & Equipment,214,08/09/2017,1709-00467,0.00,1075.00,R,Alcium Software Ltd,No,,
Http://opendatacommunities.org/id/metropolitan-district-council/leeds,Leeds City Council,30/09/2017,Communities and Environment,Communities,Supplies and Services,Computer Software & Equipment,214,08/09/2017,1709-00468,0.00,1075.00,R,Alcium Software Ltd,No,,
Http://opendatacommunities.org/id/metropolitan-district-council/leeds,Leeds City Council,30/09/2017,Communities and Environment,Communities,Supplies and Services,Computer Software & Equipment,214,29/09/2017,1709-00469,0.00,1075.00,R,Alcium Software Ltd,No,,
Http://opendatacommunities.org/id/metropolitan-district-council/leeds,Leeds City Council,30/09/2017,City Development,Highways,Employees,Training & Development,70,01/09/2017,1709-00470,0.00,200.00,R,Aldercross,No,,
Http://opendatacommunities.org/id/metropolitan-district-council/leeds,Leeds City Council,30/09/2017,Children and Families,Safeguarding Targeted & Specialist  ,Transfer Payments,Leaving Care Allowances,634,01/08/2017,1709-00471,0.00,4.91,R,Aldi,Yes,,
Http://opendatacommunities.org/id/metropolitan-district-council/leeds,Leeds City Council,30/09/2017,Children and Families,Safeguarding Targeted & Specialist  ,Supplies and Services,Food & Drink,231,11/08/2017,1709-00472,0.00,5.79,R,Aldi,Yes,,
Http://opendatacommunities.org/id/metropolitan-district-council/leeds,Leeds City Council,30/09/2017,Children and Families,Safeguarding Targeted & Specialist  ,Supplies and Services,Food & Drink,231,18/08/2017,1709-00473,0.00,10.66,R,Aldi,Yes,,
Http://opendatacommunities.org/id/metropolitan-district-council/leeds,Leeds City Council,30/09/2017,Children and Families,Safeguarding Targeted & Specialist  ,Supplies and Services,Food & Drink,231,24/08/2017,1709-00474,0.00,2.32,R,Aldi,Yes,,
Http://opendatacommunities.org/id/metropolitan-district-council/leeds,Leeds City Council,30/09/2017,Children and Families,Safeguarding Targeted & Specialist  ,Supplies and Services,Food & Drink,231,29/08/2017,1709-00475,0.00,26.73,R,Aldi,Yes,,
Http://opendatacommunities.org/id/metropolitan-district-council/leeds,Leeds City Council,30/09/2017,Children and Families,Safeguarding Targeted & Specialist  ,Supplies and Services,Food & Drink,231,08/08/2017,1709-00476,0.00,6.94,R,Aldi Stores,Yes,,
Http://opendatacommunities.org/id/metropolitan-district-council/leeds,Leeds City Council,30/09/2017,Children and Families,Safeguarding Targeted & Specialist  ,Supplies and Services,Food & Drink,231,08/08/2017,1709-00477,0.00,14.18,R,Aldi Stores,Yes,,
Http://opendatacommunities.org/id/metropolitan-district-council/leeds,Leeds City Council,30/09/2017,Children and Families,Safeguarding Targeted & Specialist,Support Services,Legal Disbursements,411,06/09/2017,1709-00478,0.00,166.75,R,Alere Toxicology Plc,No,,
Http://opendatacommunities.org/id/metropolitan-district-council/leeds,Leeds City Council,30/09/2017,Children and Families,Safeguarding Targeted & Specialist,Support Services,Legal Disbursements,411,07/09/2017,1709-00479,0.00,143.10,R,Alere Toxicology Plc,No,,
Http://opendatacommunities.org/id/metropolitan-district-council/leeds,Leeds City Council,30/09/2017,Children and Families,Safeguarding Targeted & Specialist,Support Services,Legal Disbursements,411,07/09/2017,1709-00480,0.00,143.10,R,Alere Toxicology Plc,No,,
Http://opendatacommunities.org/id/metropolitan-district-council/leeds,Leeds City Council,30/09/2017,Children and Families,Safeguarding Targeted & Specialist,Support Services,Legal Disbursements,411,07/09/2017,1709-00481,0.00,23.75,R,Alere Toxicology Plc,No,,
Http://opendatacommunities.org/id/metropolitan-district-council/leeds,Leeds City Council,30/09/2017,Children and Families,Safeguarding Targeted & Specialist,Support Services,Legal Disbursements,411,08/09/2017,1709-00482,0.00,132.25,R,Alere Toxicology Plc,No,,
Http://opendatacommunities.org/id/metropolitan-district-council/leeds,Leeds City Council,30/09/2017,Children and Families,Safeguarding Targeted & Specialist,Support Services,Legal Disbursements,411,08/09/2017,1709-00483,0.00,23.75,R,Alere Toxicology Plc,No,,
Http://opendatacommunities.org/id/metropolitan-district-council/leeds,Leeds City Council,30/09/2017,Children and Families,Safeguarding Targeted & Specialist,Support Services,Legal Disbursements,411,08/09/2017,1709-00484,0.00,73.44,R,Alere Toxicology Plc,No,,
Http://opendatacommunities.org/id/metropolitan-district-council/leeds,Leeds City Council,30/09/2017,Children and Families,Safeguarding Targeted & Specialist,Support Services,Legal Disbursements,411,08/09/2017,1709-00485,0.00,59.04,R,Alere Toxicology Plc,No,,
Http://opendatacommunities.org/id/metropolitan-district-council/leeds,Leeds City Council,30/09/2017,Children and Families,Safeguarding Targeted & Specialist,Support Services,Legal Disbursements,411,08/09/2017,1709-00486,0.00,199.60,R,Alere Toxicology Plc,No,,
Http://opendatacommunities.org/id/metropolitan-district-council/leeds,Leeds City Council,30/09/2017,Children and Families,Safeguarding Targeted & Specialist,Support Services,Legal Disbursements,411,08/09/2017,1709-00487,0.00,32.50,R,Alere Toxicology Plc,No,,
Http://opendatacommunities.org/id/metropolitan-district-council/leeds,Leeds City Council,30/09/2017,Children and Families,Safeguarding Targeted & Specialist,Support Services,Legal Disbursements,411,08/09/2017,1709-00488,0.00,43.14,R,Alere Toxicology Plc,No,,
Http://opendatacommunities.org/id/metropolitan-district-council/leeds,Leeds City Council,30/09/2017,Children and Families,Safeguarding Targeted & Specialist,Support Services,Legal Disbursements,411,08/09/2017,1709-00489,0.00,108.00,R,Alere Toxicology Plc,No,,
Http://opendatacommunities.org/id/metropolitan-district-council/leeds,Leeds City Council,30/09/2017,Children and Families,Safeguarding Targeted & Specialist,Support Services,Legal Disbursements,411,08/09/2017,1709-00490,0.00,77.75,R,Alere Toxicology Plc,No,,
Http://opendatacommunities.org/id/metropolitan-district-council/leeds,Leeds City Council,30/09/2017,Children and Families,Safeguarding Targeted & Specialist,Support Services,Legal Disbursements,411,08/09/2017,1709-00491,0.00,162.00,R,Alere Toxicology Plc,No,,
Http://opendatacommunities.org/id/metropolitan-district-council/leeds,Leeds City Council,30/09/2017,Children and Families,Safeguarding Targeted & Specialist,Support Services,Legal Disbursements,411,14/09/2017,1709-00492,0.00,110.15,R,Alere Toxicology Plc,No,,
Http://opendatacommunities.org/id/metropolitan-district-council/leeds,Leeds City Council,30/09/2017,Children and Families,Safeguarding Targeted & Specialist,Support Services,Legal Disbursements,411,14/09/2017,1709-00493,0.00,70.84,R,Alere Toxicology Plc,No,,
Http://opendatacommunities.org/id/metropolitan-district-council/leeds,Leeds City Council,30/09/2017,Children and Families,Safeguarding Targeted & Specialist,Support Services,Legal Disbursements,411,14/09/2017,1709-00494,0.00,70.55,R,Alere Toxicology Plc,No,,
Http://opendatacommunities.org/id/metropolitan-district-council/leeds,Leeds City Council,30/09/2017,Children and Families,Safeguarding Targeted & Specialist,Support Services,Legal Disbursements,411,14/09/2017,1709-00495,0.00,112.75,R,Alere Toxicology Plc,No,,
Http://opendatacommunities.org/id/metropolitan-district-council/leeds,Leeds City Council,30/09/2017,Children and Families,Safeguarding Targeted & Specialist,Support Services,Legal Disbursements,411,14/09/2017,1709-00496,0.00,162.00,R,Alere Toxicology Plc,No,,
Http://opendatacommunities.org/id/metropolitan-district-council/leeds,Leeds City Council,30/09/2017,Children and Families,Safeguarding Targeted & Specialist,Support Services,Legal Disbursements,411,15/09/2017,1709-00497,0.00,116.84,R,Alere Toxicology Plc,No,,
Http://opendatacommunities.org/id/metropolitan-district-council/leeds,Leeds City Council,30/09/2017,Children and Families,Safeguarding Targeted & Specialist,Support Services,Legal Disbursements,411,15/09/2017,1709-00498,0.00,34.20,R,Alere Toxicology Plc,No,,
Http://opendatacommunities.org/id/metropolitan-district-council/leeds,Leeds City Council,30/09/2017,Children and Families,Safeguarding Targeted & Specialist,Support Services,Legal Disbursements,411,20/09/2017,1709-00499,0.00,99.35,R,Alere Toxicology Plc,No,,
Http://opendatacommunities.org/id/metropolitan-district-council/leeds,Leeds City Council,30/09/2017,Children and Families,Safeguarding Targeted & Specialist,Support Services,Legal Disbursements,411,21/09/2017,1709-00500,0.00,433.00,R,Alere Toxicology Plc,No,,
Http://opendatacommunities.org/id/metropolitan-district-council/leeds,Leeds City Council,30/09/2017,Children and Families,Safeguarding Targeted & Specialist,Support Services,Legal Disbursements,411,21/09/2017,1709-00501,0.00,543.20,R,Alere Toxicology Plc,No,,
Http://opendatacommunities.org/id/metropolitan-district-council/leeds,Leeds City Council,30/09/2017,Children and Families,Safeguarding Targeted & Specialist,Support Services,Legal Disbursements,411,21/09/2017,1709-00502,0.00,433.00,R,Alere Toxicology Plc,No,,
Http://opendatacommunities.org/id/metropolitan-district-council/leeds,Leeds City Council,30/09/2017,Children and Families,Safeguarding Targeted & Specialist,Support Services,Legal Disbursements,411,21/09/2017,1709-00503,0.00,171.00,R,Alere Toxicology Plc,No,,
Http://opendatacommunities.org/id/metropolitan-district-council/leeds,Leeds City Council,30/09/2017,Children and Families,Safeguarding Targeted & Specialist,Support Services,Legal Disbursements,411,21/09/2017,1709-00504,0.00,96.00,R,Alere Toxicology Plc,No,,
Http://opendatacommunities.org/id/metropolitan-district-council/leeds,Leeds City Council,30/09/2017,Children and Families,Safeguarding Targeted & Specialist,Support Services,Legal Disbursements,411,21/09/2017,1709-00505,0.00,151.00,R,Alere Toxicology Plc,No,,
Http://opendatacommunities.org/id/metropolitan-district-council/leeds,Leeds City Council,30/09/2017,Civic Enterprise Leeds,Commercial Services,Supplies and Services,Other Hired And Contracted Services,265,14/09/2017,1709-00506,0.00,165.00,R,Alex Wagg,No,,
Http://opendatacommunities.org/id/metropolitan-district-council/leeds,Leeds City Council,30/09/2017,Adults and Health,Services For Older People - 65 And Over,Third Party Payments,Residential,580,01/09/2017,1709-00507,0.00,1305.57,R,Alexander Residential Home,No,,
Http://opendatacommunities.org/id/metropolitan-district-council/leeds,Leeds City Council,30/09/2017,Adults and Health,Services For Older People - 65 And Over,Third Party Payments,Residential Care Dementia,571,20/09/2017,1709-00508,0.00,23083.98,R,Alexander Residential Home,No,,
Http://opendatacommunities.org/id/metropolitan-district-council/leeds,Leeds City Council,30/09/2017,Adults and Health,Services For Older People - 65 And Over,Third Party Payments,Residential,580,20/09/2017,1709-00509,0.00,32981.12,R,Alexander Residential Home,No,,
Http://opendatacommunities.org/id/metropolitan-district-council/leeds,Leeds City Council,30/09/2017,Communities and Environment,Customer Access,Supplies and Services,Other Hired And Contracted Services,265,04/09/2017,1709-00510,0.00,587.25,R,Alexandra Costenco,No,,
Http://opendatacommunities.org/id/metropolitan-district-council/leeds,Leeds City Council,30/09/2017,Adults and Health,Services For Older People - 65 And Over,Third Party Payments,Residential Care Dementia,571,20/09/2017,1709-00511,0.00,2209.38,R,Alexandra Court,No,,
Http://opendatacommunities.org/id/metropolitan-district-council/leeds,Leeds City Council,30/09/2017,Adults and Health,Services For Older People - 65 And Over,Third Party Payments,Residential,580,20/09/2017,1709-00512,0.00,15742.57,R,Alexandra Court,No,,
Http://opendatacommunities.org/id/metropolitan-district-council/leeds,Leeds City Council,30/09/2017,Communities and Environment,Customer Access,Supplies and Services,Other Hired And Contracted Services,265,04/09/2017,1709-00513,0.00,231.00,R,Alexandra Hirst,No,,
Http://opendatacommunities.org/id/metropolitan-district-council/leeds,Leeds City Council,30/09/2017,Children and Families,Safeguarding Targeted & Specialist,Third Party Payments,Services Rendered By Other Organisations,511,15/09/2017,1709-00514,0.00,2545.20,R,Alexandra Leigh,No,,
Http://opendatacommunities.org/id/metropolitan-district-council/leeds,Leeds City Council,30/09/2017,Children and Families,Safeguarding Targeted & Specialist,Third Party Payments,Services Rendered By Other Organisations,511,20/09/2017,1709-00515,0.00,705.60,R,Alexandra Leigh,No,,
Http://opendatacommunities.org/id/metropolitan-district-council/leeds,Leeds City Council,30/09/2017,Children and Families,Safeguarding Targeted & Specialist  ,Transport,Public Transport Expenses,310,22/08/2017,1709-00516,0.00,279.13,R,Alfa Travel,Yes,,
Http://opendatacommunities.org/id/metropolitan-district-council/leeds,Leeds City Council,30/09/2017,Environment & Housing,Leeds Building Services,Supplies and Services,Other Hired And Contracted Services,265,01/09/2017,1709-00517,0.00,1200.00,R,Alfred Bagnall & Sons (Leeds) Ltd,No,,
Http://opendatacommunities.org/id/metropolitan-district-council/leeds,Leeds City Council,30/09/2017,Environment & Housing,Leeds Building Services,Supplies and Services,Other Hired And Contracted Services,265,29/09/2017,1709-00518,0.00,8762.37,R,Alfred Bagnall & Sons (Leeds) Ltd,No,,
Http://opendatacommunities.org/id/metropolitan-district-council/leeds,Leeds City Council,30/09/2017,Environment & Housing,Leeds Building Services,Supplies and Services,Other Hired And Contracted Services,265,29/09/2017,1709-00519,0.00,300.00,R,Alfred Bagnall & Sons (Leeds) Ltd,No,,
Http://opendatacommunities.org/id/metropolitan-district-council/leeds,Leeds City Council,30/09/2017,City Development,Libraries  Arts & Heritage,Supplies and Services,Bought In Professional Services,277,29/09/2017,1709-00520,0.00,2256.00,R,Alfred Bagnall & Sons (Leeds) Ltd,No,,
Http://opendatacommunities.org/id/metropolitan-district-council/leeds,Leeds City Council,30/09/2017,Communities and Environment,Customer Access,Supplies and Services,Other Hired And Contracted Services,265,04/09/2017,1709-00521,0.00,199.00,R,Ali Pourakaberian,No,,
Http://opendatacommunities.org/id/metropolitan-district-council/leeds,Leeds City Council,30/09/2017,City Development,Recreation,Income,Sporting & Other Recreational Fees,928,22/09/2017,1709-00522,0.00,185.70,R,REDACTED PERSONAL DATA,No,,
Http://opendatacommunities.org/id/metropolitan-district-council/leeds,Leeds City Council,30/09/2017,City Development,Libraries  Arts & Heritage,Supplies and Services,Non-Recurring Grants,227,13/09/2017,1709-00523,0.00,500.00,R,Alice Withers,No,,
Http://opendatacommunities.org/id/metropolitan-district-council/leeds,Leeds City Council,30/09/2017,City Development,Libraries  Arts & Heritage,Supplies and Services,Bought In Professional Services,277,22/09/2017,1709-00524,0.00,2250.00,R,Alice Withers,No,,
Http://opendatacommunities.org/id/metropolitan-district-council/leeds,Leeds City Council,30/09/2017,Children and Families,Safeguarding Targeted & Specialist,Third Party Payments,Services Rendered By Other Organisations,511,15/09/2017,1709-00525,0.00,711.04,R,REDACTED PERSONAL DATA,No,,
Http://opendatacommunities.org/id/metropolitan-district-council/leeds,Leeds City Council,30/09/2017,Children and Families,Safeguarding Targeted & Specialist,Third Party Payments,Services Rendered By Other Organisations,511,20/09/2017,1709-00526,0.00,2116.80,R,Alison Brook,No,,
Http://opendatacommunities.org/id/metropolitan-district-council/leeds,Leeds City Council,30/09/2017,Children and Families,Safeguarding Targeted & Specialist,Transfer Payments,Leaving Care Allowances,634,18/09/2017,1709-00527,0.00,180.00,R,All Abode,No,,
Http://opendatacommunities.org/id/metropolitan-district-council/leeds,Leeds City Council,30/09/2017,Environment & Housing,Leeds Building Services,Supplies and Services,Other Hired And Contracted Services,265,05/09/2017,1709-00528,0.00,195.00,R,All Clear Solutions Ltd,No,,
Http://opendatacommunities.org/id/metropolitan-district-council/leeds,Leeds City Council,30/09/2017,Environment & Housing,Leeds Building Services,Supplies and Services,Other Hired And Contracted Services,265,05/09/2017,1709-00529,0.00,195.00,R,All Clear Solutions Ltd,No,,
Http://opendatacommunities.org/id/metropolitan-district-council/leeds,Leeds City Council,30/09/2017,Environment & Housing,Leeds Building Services,Supplies and Services,Other Hired And Contracted Services,265,05/09/2017,1709-00530,0.00,195.00,R,All Clear Solutions Ltd,No,,
Http://opendatacommunities.org/id/metropolitan-district-council/leeds,Leeds City Council,30/09/2017,Environment & Housing,Leeds Building Services,Supplies and Services,Other Hired And Contracted Services,265,05/09/2017,1709-00531,0.00,195.00,R,All Clear Solutions Ltd,No,,
Http://opendatacommunities.org/id/metropolitan-district-council/leeds,Leeds City Council,30/09/2017,Environment & Housing,Leeds Building Services,Supplies and Services,Other Hired And Contracted Services,265,15/09/2017,1709-00532,0.00,195.00,R,All Clear Solutions Ltd,No,,
Http://opendatacommunities.org/id/metropolitan-district-council/leeds,Leeds City Council,30/09/2017,Environment & Housing,Leeds Building Services,Supplies and Services,Other Hired And Contracted Services,265,15/09/2017,1709-00533,0.00,195.00,R,All Clear Solutions Ltd,No,,
Http://opendatacommunities.org/id/metropolitan-district-council/leeds,Leeds City Council,30/09/2017,Environment & Housing,Leeds Building Services,Supplies and Services,Other Hired And Contracted Services,265,15/09/2017,1709-00534,0.00,195.00,R,All Clear Solutions Ltd,No,,
Http://opendatacommunities.org/id/metropolitan-district-council/leeds,Leeds City Council,30/09/2017,Environment & Housing,Leeds Building Services,Supplies and Services,Other Hired And Contracted Services,265,15/09/2017,1709-00535,0.00,255.00,R,All Clear Solutions Ltd,No,,
Http://opendatacommunities.org/id/metropolitan-district-council/leeds,Leeds City Council,30/09/2017,Environment & Housing,Leeds Building Services,Supplies and Services,Other Hired And Contracted Services,265,15/09/2017,1709-00536,0.00,350.00,R,All Clear Solutions Ltd,No,,
Http://opendatacommunities.org/id/metropolitan-district-council/leeds,Leeds City Council,30/09/2017,Environment & Housing,Leeds Building Services,Supplies and Services,Other Hired And Contracted Services,265,15/09/2017,1709-00537,0.00,195.00,R,All Clear Solutions Ltd,No,,
Http://opendatacommunities.org/id/metropolitan-district-council/leeds,Leeds City Council,30/09/2017,Environment & Housing,Leeds Building Services,Supplies and Services,Other Hired And Contracted Services,265,15/09/2017,1709-00538,0.00,195.00,R,All Clear Solutions Ltd,No,,
Http://opendatacommunities.org/id/metropolitan-district-council/leeds,Leeds City Council,30/09/2017,Environment & Housing,Leeds Building Services,Supplies and Services,Other Hired And Contracted Services,265,15/09/2017,1709-00539,0.00,195.00,R,All Clear Solutions Ltd,No,,
Http://opendatacommunities.org/id/metropolitan-district-council/leeds,Leeds City Council,30/09/2017,Environment & Housing,Leeds Building Services,Supplies and Services,Other Hired And Contracted Services,265,15/09/2017,1709-00540,0.00,215.00,R,All Clear Solutions Ltd,No,,
Http://opendatacommunities.org/id/metropolitan-district-council/leeds,Leeds City Council,30/09/2017,Environment & Housing,Leeds Building Services,Supplies and Services,Other Hired And Contracted Services,265,15/09/2017,1709-00541,0.00,195.00,R,All Clear Solutions Ltd,No,,
Http://opendatacommunities.org/id/metropolitan-district-council/leeds,Leeds City Council,30/09/2017,Environment & Housing,Leeds Building Services,Supplies and Services,Other Hired And Contracted Services,265,22/09/2017,1709-00542,0.00,195.00,R,All Clear Solutions Ltd,No,,
Http://opendatacommunities.org/id/metropolitan-district-council/leeds,Leeds City Council,30/09/2017,Environment & Housing,Leeds Building Services,Supplies and Services,Other Hired And Contracted Services,265,22/09/2017,1709-00543,0.00,195.00,R,All Clear Solutions Ltd,No,,
Http://opendatacommunities.org/id/metropolitan-district-council/leeds,Leeds City Council,30/09/2017,Environment & Housing,Leeds Building Services,Supplies and Services,Other Hired And Contracted Services,265,22/09/2017,1709-00544,0.00,195.00,R,All Clear Solutions Ltd,No,,
Http://opendatacommunities.org/id/metropolitan-district-council/leeds,Leeds City Council,30/09/2017,Environment & Housing,Leeds Building Services,Supplies and Services,Other Hired And Contracted Services,265,22/09/2017,1709-00545,0.00,700.00,R,All Clear Solutions Ltd,No,,
Http://opendatacommunities.org/id/metropolitan-district-council/leeds,Leeds City Council,30/09/2017,Children and Families,Safeguarding Targeted & Specialist,Third Party Payments,Services Rendered By Other Organisations,511,15/09/2017,1709-00546,0.00,3393.60,R,All Stars Childcare,No,,
Http://opendatacommunities.org/id/metropolitan-district-council/leeds,Leeds City Council,30/09/2017,Children and Families,Safeguarding Targeted & Specialist,Third Party Payments,Services Rendered By Other Organisations,511,20/09/2017,1709-00547,0.00,16020.48,R,All Stars Childcare,No,,
Http://opendatacommunities.org/id/metropolitan-district-council/leeds,Leeds City Council as Accountable Body,30/09/2017,Social Services Pooled Budgets,Jcs For People With Learning Disabilitie,Third Party Payments,Sheltered Accommodation,569,20/09/2017,1709-00548,0.00,12248.52,R,Allerton Avenue,No,,
Http://opendatacommunities.org/id/metropolitan-district-council/leeds,Leeds City Council,30/09/2017,Strategic Accounts,Central Control Accounts (Ex Cttee 07),Premises,S&S Small Sites Electricity,106,29/09/2017,1709-00549,0.00,39.17,R,Allerton Bywater Primary School,No,,
Http://opendatacommunities.org/id/metropolitan-district-council/leeds,Leeds City Council,30/09/2017,Adults and Health,Public Health,Third Party Payments,Public Health Commissioned Services,526,06/09/2017,1709-00550,0.00,2784.63,R,Allerton Medical Centre,No,,
Http://opendatacommunities.org/id/metropolitan-district-council/leeds,Leeds City Council,30/09/2017,Environment & Housing,Parks and Countryside,Supplies and Services,Operational Materials,205,11/09/2017,1709-00551,0.00,4.80,R,Allflex Uk Group Ltd,No,,
Http://opendatacommunities.org/id/metropolitan-district-council/leeds,Leeds City Council,30/09/2017,Environment & Housing,Parks and Countryside,Supplies and Services,Operational Materials,205,28/09/2017,1709-00552,0.00,63.95,R,Allflex Uk Group Ltd,No,,
Http://opendatacommunities.org/id/metropolitan-district-council/leeds,Leeds City Council,30/09/2017,Resources and Housing,Finance,Supplies and Services,Bank Charges,263,01/09/2017,1709-00553,0.00,-55.07,R,Alliance & Leicester Commercial Bank,No,,
Http://opendatacommunities.org/id/metropolitan-district-council/leeds,Leeds City Council,30/09/2017,Resources and Housing,Finance,Supplies and Services,Bank Charges,263,06/09/2017,1709-00554,0.00,317.99,R,Alliance & Leicester Commercial Bank,No,,
Http://opendatacommunities.org/id/metropolitan-district-council/leeds,Leeds City Council,30/09/2017,Strategic Landlord,Housing Management,Supplies and Services,Other Hired And Contracted Services,265,06/09/2017,1709-00555,0.00,6.58,R,Alliance & Leicester Commercial Bank,No,,
Http://opendatacommunities.org/id/metropolitan-district-council/leeds,Leeds City Council,30/09/2017,Resources and Housing,Finance,Supplies and Services,Bank Charges,263,06/09/2017,1709-00556,0.00,6.58,R,Alliance & Leicester Commercial Bank,No,,
Http://opendatacommunities.org/id/metropolitan-district-council/leeds,Leeds City Council,30/09/2017,Resources and Housing,Finance,Supplies and Services,Bank Charges,263,06/09/2017,1709-00557,0.00,100.14,R,Alliance & Leicester Commercial Bank,No,,
Http://opendatacommunities.org/id/metropolitan-district-council/leeds,Leeds City Council,30/09/2017,Civic Enterprise Leeds,Commercial Services,Transport,Vehicle Spares,345,01/09/2017,1709-00558,0.00,234.80,R,Alliance Electronics Ltd,No,,
Http://opendatacommunities.org/id/metropolitan-district-council/leeds,Leeds City Council,30/09/2017,City Development,Highways,Supplies and Services,Other Hired And Contracted Services,265,01/09/2017,1709-00559,0.00,1075.00,R,Allied Exploration & Geotechnics Ltd,No,,
Http://opendatacommunities.org/id/metropolitan-district-council/leeds,Leeds City Council,30/09/2017,City Development,Highways,Supplies and Services,Other Hired And Contracted Services,265,12/09/2017,1709-00560,0.00,3653.76,R,Allied Exploration & Geotechnics Ltd,No,,
Http://opendatacommunities.org/id/metropolitan-district-council/leeds,Leeds City Council,30/09/2017,City Development,Highways,Supplies and Services,Other Hired And Contracted Services,265,21/09/2017,1709-00561,0.00,-608.96,R,Allied Exploration & Geotechnics Ltd,No,,
Http://opendatacommunities.org/id/metropolitan-district-council/leeds,Leeds City Council,30/09/2017,City Development,Highways,Supplies and Services,Other Hired And Contracted Services,265,21/09/2017,1709-00562,0.00,1033.64,R,Allied Exploration & Geotechnics Ltd,No,,
Http://opendatacommunities.org/id/metropolitan-district-council/leeds,Leeds City Council,30/09/2017,City Development,Highways,Capital,Other Costs,7,21/09/2017,1709-00563,0.00,4662.00,C,Allied Exploration & Geotechnics Ltd,No,,
Http://opendatacommunities.org/id/metropolitan-district-council/leeds,Leeds City Council,30/09/2017,Children and Families,Partnerships,Third Party Payments,Services Rendered By Voluntary Sector,505,01/09/2017,1709-00564,0.00,684.00,R,Allied Healthcare,No,,
Http://opendatacommunities.org/id/metropolitan-district-council/leeds,Leeds City Council as Accountable Body,30/09/2017,Social Services Pooled Budgets,Jcs For People With Learning Disabilitie,Third Party Payments,Home Care,568,01/09/2017,1709-00565,0.00,14992.84,R,Allied Healthcare,No,,
Http://opendatacommunities.org/id/metropolitan-district-council/leeds,Leeds City Council,30/09/2017,Adults and Health,Services For Older People - 65 And Over,Third Party Payments,Home Care,568,01/09/2017,1709-00566,0.00,996.83,R,Allied Healthcare,No,,
Http://opendatacommunities.org/id/metropolitan-district-council/leeds,Leeds City Council,30/09/2017,Adults and Health,Services For Older People - 65 And Over,Third Party Payments,Home Care,568,01/09/2017,1709-00567,0.00,5114.97,R,Allied Healthcare,No,,
Http://opendatacommunities.org/id/metropolitan-district-council/leeds,Leeds City Council,30/09/2017,Adults and Health,Services For Older People Under 65 P/Dis,Third Party Payments,Home Care,568,01/09/2017,1709-00568,0.00,2048.81,R,Allied Healthcare,No,,
Http://opendatacommunities.org/id/metropolitan-district-council/leeds,Leeds City Council,30/09/2017,Adults and Health,Services For Older People - 65 And Over,Third Party Payments,Home Care,568,01/09/2017,1709-00569,0.00,12151.61,R,Allied Healthcare,No,,
Http://opendatacommunities.org/id/metropolitan-district-council/leeds,Leeds City Council,30/09/2017,Adults and Health,Services For Older People Under 65 P/Dis,Third Party Payments,Home Care,568,01/09/2017,1709-00570,0.00,1459.01,R,Allied Healthcare,No,,
Http://opendatacommunities.org/id/metropolitan-district-council/leeds,Leeds City Council,30/09/2017,Adults and Health,Services For Older People - 65 And Over,Third Party Payments,Home Care,568,01/09/2017,1709-00571,0.00,12081.06,R,Allied Healthcare,No,,
Http://opendatacommunities.org/id/metropolitan-district-council/leeds,Leeds City Council,30/09/2017,Adults and Health,Services For Older People Under 65 P/Dis,Third Party Payments,Home Care,568,01/09/2017,1709-00572,0.00,10279.08,R,Allied Healthcare,No,,
Http://opendatacommunities.org/id/metropolitan-district-council/leeds,Leeds City Council as Accountable Body,30/09/2017,Social Services Pooled Budgets,Jcs For People With Learning Disabilitie,Third Party Payments,Home Care,568,05/09/2017,1709-00573,0.00,737.84,R,Allied Healthcare,No,,
Http://opendatacommunities.org/id/metropolitan-district-council/leeds,Leeds City Council as Accountable Body,30/09/2017,Social Services Pooled Budgets,Jcs For People With Learning Disabilitie,Third Party Payments,Home Care,568,06/09/2017,1709-00574,0.00,806.24,R,Allied Healthcare,No,,
Http://opendatacommunities.org/id/metropolitan-district-council/leeds,Leeds City Council as Accountable Body,30/09/2017,Social Services Pooled Budgets,Jcs For People With Learning Disabilitie,Third Party Payments,Home Care,568,06/09/2017,1709-00575,0.00,222.40,R,Allied Healthcare,No,,
Http://opendatacommunities.org/id/metropolitan-district-council/leeds,Leeds City Council as Accountable Body,30/09/2017,Social Services Pooled Budgets,Jcs For People With Learning Disabilitie,Third Party Payments,Home Care,568,07/09/2017,1709-00576,0.00,915.66,R,Allied Healthcare,No,,
Http://opendatacommunities.org/id/metropolitan-district-council/leeds,Leeds City Council,30/09/2017,Adults and Health,Other Generic Services,Third Party Payments,Home Care,568,11/09/2017,1709-00577,0.00,129.68,R,Allied Healthcare,No,,
Http://opendatacommunities.org/id/metropolitan-district-council/leeds,Leeds City Council as Accountable Body,30/09/2017,Social Services Pooled Budgets,Jcs For People With Learning Disabilitie,Third Party Payments,Home Care,568,14/09/2017,1709-00578,0.00,15906.26,R,Allied Healthcare,No,,
Http://opendatacommunities.org/id/metropolitan-district-council/leeds,Leeds City Council as Accountable Body,30/09/2017,Social Services Pooled Budgets,Jcs For People With Learning Disabilitie,Third Party Payments,Home Care,568,18/09/2017,1709-00579,0.00,-915.66,R,Allied Healthcare,No,,
Http://opendatacommunities.org/id/metropolitan-district-council/leeds,Leeds City Council,30/09/2017,Adults and Health,Services For Older People - 65 And Over,Third Party Payments,Home Care,568,18/09/2017,1709-00580,0.00,3859.47,R,Allied Healthcare,No,,
Http://opendatacommunities.org/id/metropolitan-district-council/leeds,Leeds City Council,30/09/2017,Adults and Health,Services For Older People Under 65 P/Dis,Third Party Payments,Home Care,568,18/09/2017,1709-00581,0.00,341.14,R,Allied Healthcare,No,,
Http://opendatacommunities.org/id/metropolitan-district-council/leeds,Leeds City Council,30/09/2017,Adults and Health,Other Generic Services,Third Party Payments,Home Care,568,19/09/2017,1709-00582,0.00,20567.32,R,Allied Healthcare,No,,
Http://opendatacommunities.org/id/metropolitan-district-council/leeds,Leeds City Council,30/09/2017,Adults and Health,Other Generic Services,Third Party Payments,Home Care,568,19/09/2017,1709-00583,0.00,7607.61,R,Allied Healthcare,No,,
Http://opendatacommunities.org/id/metropolitan-district-council/leeds,Leeds City Council,30/09/2017,Adults and Health,Services For Older People - 65 And Over,Third Party Payments,Home Care,568,22/09/2017,1709-00584,0.00,11991.14,R,Allied Healthcare,No,,
Http://opendatacommunities.org/id/metropolitan-district-council/leeds,Leeds City Council,30/09/2017,Adults and Health,Services For Older People Under 65 P/Dis,Third Party Payments,Home Care,568,22/09/2017,1709-00585,0.00,11379.14,R,Allied Healthcare,No,,
Http://opendatacommunities.org/id/metropolitan-district-council/leeds,Leeds City Council as Accountable Body,30/09/2017,Social Services Pooled Budgets,Jcs For People With Learning Disabilitie,Third Party Payments,Home Care,568,27/09/2017,1709-00586,0.00,15054.04,R,Allied Healthcare,No,,
Http://opendatacommunities.org/id/metropolitan-district-council/leeds,Leeds City Council,30/09/2017,Adults and Health,Other Generic Services,Third Party Payments,Home Care,568,28/09/2017,1709-00587,0.00,177.45,R,Allied Healthcare,No,,
Http://opendatacommunities.org/id/metropolitan-district-council/leeds,Leeds City Council,30/09/2017,Adults and Health,Public Health,Third Party Payments,Public Health Commissioned Services,526,28/09/2017,1709-00588,0.00,49.25,R,Allied Pharmacy Ltd,No,,
Http://opendatacommunities.org/id/metropolitan-district-council/leeds,Leeds City Council,30/09/2017,Resources and Housing,Finance,Supplies and Services,Bank Charges,263,01/09/2017,1709-00589,0.00,431.80,R,Allpay Limted,No,,
Http://opendatacommunities.org/id/metropolitan-district-council/leeds,Leeds City Council,30/09/2017,Resources and Housing,Finance,Supplies and Services,Bank Charges,263,01/09/2017,1709-00590,0.00,8340.19,R,Allpay Limted,No,,
Http://opendatacommunities.org/id/metropolitan-district-council/leeds,Leeds City Council,30/09/2017,Resources and Housing,Finance,Supplies and Services,Bank Charges,263,01/09/2017,1709-00591,0.00,11314.70,R,Allpay Limted,No,,
Http://opendatacommunities.org/id/metropolitan-district-council/leeds,Leeds City Council,30/09/2017,Resources and Housing,Finance,Supplies and Services,Bank Charges,263,01/09/2017,1709-00592,0.00,13.54,R,Allpay Limted,No,,
Http://opendatacommunities.org/id/metropolitan-district-council/leeds,Leeds City Council,30/09/2017,Resources and Housing,Finance,Supplies and Services,Bank Charges,263,01/09/2017,1709-00593,0.00,449.12,R,Allpay Limted,No,,
Http://opendatacommunities.org/id/metropolitan-district-council/leeds,Leeds City Council,30/09/2017,Resources and Housing,Finance,Supplies and Services,Bank Charges,263,01/09/2017,1709-00594,0.00,1.91,R,Allpay Limted,No,,
Http://opendatacommunities.org/id/metropolitan-district-council/leeds,Leeds City Council,30/09/2017,Strategic Landlord,Housing Management,Supplies and Services,Other Hired And Contracted Services,265,07/09/2017,1709-00595,0.00,21.77,R,Allpay Limted,No,,
Http://opendatacommunities.org/id/metropolitan-district-council/leeds,Leeds City Council,30/09/2017,Strategic Landlord,Housing Management,Supplies and Services,Other Hired And Contracted Services,265,07/09/2017,1709-00596,0.00,430.42,R,Allpay Limted,No,,
Http://opendatacommunities.org/id/metropolitan-district-council/leeds,Leeds City Council,30/09/2017,Strategic Landlord,Housing Management,Supplies and Services,Other Hired And Contracted Services,265,07/09/2017,1709-00597,0.00,0.06,R,Allpay Limted,No,,
Http://opendatacommunities.org/id/metropolitan-district-council/leeds,Leeds City Council,30/09/2017,Resources and Housing,Democratic Services,Transport,Fuel (Non LCC Supplies),321,07/09/2017,1709-00598,0.00,139.62,R,Allstar Business Solutions Ltd,No,,
Http://opendatacommunities.org/id/metropolitan-district-council/leeds,Leeds City Council,30/09/2017,Children and Families,Learning Skills & Universal,Transport,Fuel (Non LCC Supplies),321,07/09/2017,1709-00599,0.00,0.00,R,Allstar Business Solutions Ltd,No,,
Http://opendatacommunities.org/id/metropolitan-district-council/leeds,Leeds City Council,30/09/2017,Environment & Housing,Parks and Countryside,Transport,Fuel (Non LCC Supplies),321,07/09/2017,1709-00600,0.00,4.69,R,Allstar Business Solutions Ltd,No,,
Http://opendatacommunities.org/id/metropolitan-district-council/leeds,Leeds City Council,30/09/2017,City Development,Highways,Transport,Fuel (Non LCC Supplies),321,07/09/2017,1709-00601,0.00,14.07,R,Allstar Business Solutions Ltd,No,,
Http://opendatacommunities.org/id/metropolitan-district-council/leeds,Leeds City Council,30/09/2017,Environment & Housing,Waste Management,Transport,Fuel (Non LCC Supplies),321,07/09/2017,1709-00602,0.00,2.70,R,Allstar Business Solutions Ltd,No,,
Http://opendatacommunities.org/id/metropolitan-district-council/leeds,Leeds City Council,30/09/2017,Children and Families,Learning Skills & Universal,Transport,Fuel (Non LCC Supplies),321,07/09/2017,1709-00603,0.00,625.42,R,Allstar Business Solutions Ltd,No,,
Http://opendatacommunities.org/id/metropolitan-district-council/leeds,Leeds City Council,30/09/2017,Environment & Housing,Leeds Building Services,Transport,Fuel (Non LCC Supplies),321,12/09/2017,1709-00604,0.00,51.67,R,Allstar Business Solutions Ltd,No,,
Http://opendatacommunities.org/id/metropolitan-district-council/leeds,Leeds City Council,30/09/2017,Children and Families,Safeguarding Targeted & Specialist  ,Supplies and Services,General Amenity For Clients/Residents,285,12/08/2017,1709-00605,0.00,13.67,R,Alpamare Uk,Yes,,
Http://opendatacommunities.org/id/metropolitan-district-council/leeds,Leeds City Council,30/09/2017,Children and Families,Safeguarding Targeted & Specialist  ,Supplies and Services,General Amenity For Clients/Residents,285,12/08/2017,1709-00606,0.00,48.33,R,Alpamare Uk,Yes,,
Http://opendatacommunities.org/id/metropolitan-district-council/leeds,Leeds City Council,30/09/2017,Children and Families,Safeguarding Targeted & Specialist,Support Services,Legal Disbursements,411,01/09/2017,1709-00607,0.00,195.00,R,Alphabiolabs,No,,
Http://opendatacommunities.org/id/metropolitan-district-council/leeds,Leeds City Council,30/09/2017,Children and Families,Safeguarding Targeted & Specialist,Support Services,Legal Disbursements,411,06/09/2017,1709-00608,0.00,123.34,R,Alphabiolabs,No,,
Http://opendatacommunities.org/id/metropolitan-district-council/leeds,Leeds City Council,30/09/2017,Children and Families,Safeguarding Targeted & Specialist,Support Services,Legal Disbursements,411,08/09/2017,1709-00609,0.00,50.00,R,Alphabiolabs,No,,
Http://opendatacommunities.org/id/metropolitan-district-council/leeds,Leeds City Council,30/09/2017,Children and Families,Safeguarding Targeted & Specialist,Support Services,Legal Disbursements,411,14/09/2017,1709-00610,0.00,149.67,R,Alphabiolabs,No,,
Http://opendatacommunities.org/id/metropolitan-district-council/leeds,Leeds City Council,30/09/2017,Children and Families,Safeguarding Targeted & Specialist,Support Services,Legal Disbursements,411,14/09/2017,1709-00611,0.00,72.00,R,Alphabiolabs,No,,
Http://opendatacommunities.org/id/metropolitan-district-council/leeds,Leeds City Council,30/09/2017,Children and Families,Safeguarding Targeted & Specialist,Support Services,Legal Disbursements,411,14/09/2017,1709-00612,0.00,26.25,R,Alphabiolabs,No,,
Http://opendatacommunities.org/id/metropolitan-district-council/leeds,Leeds City Council,30/09/2017,Children and Families,Safeguarding Targeted & Specialist,Support Services,Legal Disbursements,411,15/09/2017,1709-00613,0.00,149.68,R,Alphabiolabs,No,,
Http://opendatacommunities.org/id/metropolitan-district-council/leeds,Leeds City Council,30/09/2017,Children and Families,Safeguarding Targeted & Specialist,Support Services,Legal Disbursements,411,20/09/2017,1709-00614,0.00,170.00,R,Alphabiolabs,No,,
Http://opendatacommunities.org/id/metropolitan-district-council/leeds,Leeds City Council,30/09/2017,Resources and Housing,Strategy and Improvement,Supplies and Services,Memberships,226,20/09/2017,1709-00615,0.00,1648.00,R,Alps (Alkemygold Ltd),No,,
Http://opendatacommunities.org/id/metropolitan-district-council/leeds,Leeds City Council,30/09/2017,City Development,Libraries  Arts & Heritage,Supplies and Services,Other Hired And Contracted Services,265,13/09/2017,1709-00616,0.00,600.00,R,Altofts And Normanton Brass Band,No,,
Http://opendatacommunities.org/id/metropolitan-district-council/leeds,Leeds City Council,30/09/2017,Children and Families,Safeguarding Targeted & Specialist  ,Supplies and Services,Food & Drink,231,04/08/2017,1709-00617,0.00,20.46,R,Alton Towers,Yes,,
Http://opendatacommunities.org/id/metropolitan-district-council/leeds,Leeds City Council,30/09/2017,Children and Families,Safeguarding Targeted & Specialist  ,Supplies and Services,Food & Drink,231,04/08/2017,1709-00618,0.00,5.00,R,Alton Towers,Yes,,
Http://opendatacommunities.org/id/metropolitan-district-council/leeds,Leeds City Council,30/09/2017,Insurance,Insurance,Supplies and Services,Insurance Claims,248,04/09/2017,1709-00619,0.00,150.00,R,REDACTED PERSONAL DATA,No,,
Http://opendatacommunities.org/id/metropolitan-district-council/leeds,Leeds City Council,30/09/2017,Communities and Environment,Customer Access,Supplies and Services,Other Hired And Contracted Services,265,04/09/2017,1709-00620,0.00,213.35,R,Amad Mezori,No,,
Http://opendatacommunities.org/id/metropolitan-district-council/leeds,Leeds City Council,30/09/2017,Children and Families,Safeguarding Targeted & Specialist,Third Party Payments,Services Rendered By Other Organisations,511,15/09/2017,1709-00621,0.00,848.40,R,REDACTED PERSONAL DATA,No,,
Http://opendatacommunities.org/id/metropolitan-district-council/leeds,Leeds City Council,30/09/2017,Insurance,Insurance,Supplies and Services,Insurance Claims,248,15/09/2017,1709-00622,0.00,2214.00,R,Amanda Cunliffe Solicitors,No,,
Http://opendatacommunities.org/id/metropolitan-district-council/leeds,Leeds City Council,30/09/2017,Insurance,Insurance,Supplies and Services,Insurance Claims,248,18/09/2017,1709-00623,0.00,6174.00,R,Amanda Cunliffe Solicitors,No,,
Http://opendatacommunities.org/id/metropolitan-district-council/leeds,Leeds City Council,30/09/2017,Insurance,Insurance,Supplies and Services,Insurance Claims,248,28/09/2017,1709-00624,0.00,308.00,R,Amanda Cunliffe Solicitors,No,,
Http://opendatacommunities.org/id/metropolitan-district-council/leeds,Leeds City Council,30/09/2017,Children and Families,Safeguarding Targeted & Specialist,Third Party Payments,Services Rendered By Other Organisations,511,20/09/2017,1709-00625,0.00,823.20,R,REDACTED PERSONAL DATA,No,,
Http://opendatacommunities.org/id/metropolitan-district-council/leeds,Leeds City Council,30/09/2017,Children and Families,Safeguarding Targeted & Specialist,Third Party Payments,Services Rendered By Other Organisations,511,15/09/2017,1709-00626,0.00,1696.80,R,Amanda Wharton,No,,
Http://opendatacommunities.org/id/metropolitan-district-council/leeds,Leeds City Council,30/09/2017,Children and Families,Safeguarding Targeted & Specialist,Third Party Payments,Services Rendered By Other Organisations,511,20/09/2017,1709-00627,0.00,1787.52,R,Amanda Wharton,No,,
Http://opendatacommunities.org/id/metropolitan-district-council/leeds,Leeds City Council,30/09/2017,Children and Families,Safeguarding Targeted & Specialist  ,Supplies and Services,Office Furniture & Equipment,201,03/08/2017,1709-00628,0.00,461.87,R,Amari Plastics Plc,Yes,,
Http://opendatacommunities.org/id/metropolitan-district-council/leeds,Leeds City Council,30/09/2017,Environment & Housing,Leeds Building Services,Supplies and Services,Operational Materials,205,01/09/2017,1709-00629,0.00,107.48,R,Amari Plastics Plc,No,,
Http://opendatacommunities.org/id/metropolitan-district-council/leeds,Leeds City Council,30/09/2017,Environment & Housing,Leeds Building Services,Supplies and Services,Operational Materials,205,25/09/2017,1709-00630,0.00,17.82,R,Amari Plastics Plc,No,,
Http://opendatacommunities.org/id/metropolitan-district-council/leeds,Leeds City Council,30/09/2017,Environment & Housing,Leeds Building Services,Supplies and Services,Operational Materials,205,25/09/2017,1709-00631,0.00,61.08,R,Amari Plastics Plc,No,,
Http://opendatacommunities.org/id/metropolitan-district-council/leeds,Leeds City Council,30/09/2017,Children and Families,Safeguarding Targeted & Specialist,Third Party Payments,Services Rendered By Other Organisations,511,15/09/2017,1709-00632,0.00,8484.00,R,Amazing Grace Early Years Childcare,No,,
Http://opendatacommunities.org/id/metropolitan-district-council/leeds,Leeds City Council,30/09/2017,Children and Families,Safeguarding Targeted & Specialist,Third Party Payments,Services Rendered By Other Organisations,511,20/09/2017,1709-00633,0.00,7056.00,R,Amazing Grace Early Years Childcare,No,,
Http://opendatacommunities.org/id/metropolitan-district-council/leeds,Leeds City Council,30/09/2017,City Development,Recreation,Supplies and Services,Operational Furniture And Equipment,203,04/09/2017,1709-00634,0.00,105.00,R,Amazon Leisure Uk Ltd,No,,
Http://opendatacommunities.org/id/metropolitan-district-council/leeds,Leeds City Council,30/09/2017,City Development,Recreation,Supplies and Services,Operational Furniture And Equipment,203,21/09/2017,1709-00635,0.00,509.38,R,Amazon Leisure Uk Ltd,No,,
Http://opendatacommunities.org/id/metropolitan-district-council/leeds,Leeds City Council,30/09/2017,City Development,Recreation,Supplies and Services,Operational Furniture And Equipment,203,21/09/2017,1709-00636,0.00,-481.22,R,Amazon Leisure Uk Ltd,No,,
Http://opendatacommunities.org/id/metropolitan-district-council/leeds,Leeds City Council,30/09/2017,City Development,Recreation,Supplies and Services,Operational Furniture And Equipment,203,22/09/2017,1709-00637,0.00,127.50,R,Amazon Leisure Uk Ltd,No,,
Http://opendatacommunities.org/id/metropolitan-district-council/leeds,Leeds City Council,30/09/2017,City Development,Recreation,Supplies and Services,Operational Furniture And Equipment,203,22/09/2017,1709-00638,0.00,159.25,R,Amazon Leisure Uk Ltd,No,,
Http://opendatacommunities.org/id/metropolitan-district-council/leeds,Leeds City Council,30/09/2017,City Development,Recreation,Supplies and Services,Operational Furniture And Equipment,203,27/09/2017,1709-00639,0.00,479.93,R,Amazon Leisure Uk Ltd,No,,
Http://opendatacommunities.org/id/metropolitan-district-council/leeds,Leeds City Council,30/09/2017,City Development,Libraries  Arts & Heritage  ,Supplies and Services,Books & Audio-Visual Materials,206,14/08/2017,1709-00640,0.00,71.75,R,Amazon Mktplace Pmts,Yes,,
Http://opendatacommunities.org/id/metropolitan-district-council/leeds,Leeds City Council,30/09/2017,Resources and Housing,Human Resources  ,Supplies and Services,Office Consumables,210,02/08/2017,1709-00641,0.00,7.99,R,Amazon Prime,Yes,,
Http://opendatacommunities.org/id/metropolitan-district-council/leeds,Leeds City Council,30/09/2017,Strategic Landlord,Housing Management  ,Supplies and Services,Operational Materials,205,26/08/2017,1709-00642,0.00,7.99,R,Amazon Prime,Yes,,
Http://opendatacommunities.org/id/metropolitan-district-council/leeds,Leeds City Council,30/09/2017,City Development,Libraries  Arts & Heritage  ,Supplies and Services,Operational Materials,205,27/08/2017,1709-00643,0.00,7.99,R,Amazon Prime,Yes,,
Http://opendatacommunities.org/id/metropolitan-district-council/leeds,Leeds City Council,30/09/2017,Communities and Environment,Communities  ,Supplies and Services,Office Furniture & Equipment,201,25/08/2017,1709-00644,0.00,13.00,R,Amazon Svcs Europe sar,Yes,,
Http://opendatacommunities.org/id/metropolitan-district-council/leeds,Leeds City Council,30/09/2017,City Development,Highways  ,Supplies and Services,Office Consumables,210,31/07/2017,1709-00645,0.00,9.97,R,Amazon UK Marketplace,Yes,,
Http://opendatacommunities.org/id/metropolitan-district-council/leeds,Leeds City Council,30/09/2017,City Development,Libraries  Arts & Heritage  ,Supplies and Services,Books & Audio-Visual Materials,206,31/07/2017,1709-00646,0.00,58.14,R,Amazon UK Marketplace,Yes,,
Http://opendatacommunities.org/id/metropolitan-district-council/leeds,Leeds City Council,30/09/2017,Adults and Health,Services For Adults Under 65 Learn/Dis  ,Employees,Occupational Health,85,31/07/2017,1709-00647,0.00,8.33,R,Amazon UK Marketplace,Yes,,
Http://opendatacommunities.org/id/metropolitan-district-council/leeds,Leeds City Council,30/09/2017,City Development,Libraries  Arts & Heritage  ,Supplies and Services,Office Consumables,210,31/07/2017,1709-00648,0.00,1.90,R,Amazon UK Marketplace,Yes,,
Http://opendatacommunities.org/id/metropolitan-district-council/leeds,Leeds City Council,30/09/2017,Children and Families,Safeguarding Targeted & Specialist  ,Supplies and Services,Operational Materials,205,31/07/2017,1709-00649,0.00,10.33,R,Amazon UK Marketplace,Yes,,
Http://opendatacommunities.org/id/metropolitan-district-council/leeds,Leeds City Council,30/09/2017,City Development,Libraries  Arts & Heritage  ,Supplies and Services,Operational Materials,205,31/07/2017,1709-00650,0.00,8.33,R,Amazon UK Marketplace,Yes,,
Http://opendatacommunities.org/id/metropolitan-district-council/leeds,Leeds City Council,30/09/2017,City Development,Libraries  Arts & Heritage  ,Supplies and Services,Office Consumables,210,31/07/2017,1709-00651,0.00,30.97,R,Amazon UK Marketplace,Yes,,
Http://opendatacommunities.org/id/metropolitan-district-council/leeds,Leeds City Council,30/09/2017,City Development,Libraries  Arts & Heritage  ,Supplies and Services,Office Consumables,210,31/07/2017,1709-00652,0.00,2.46,R,Amazon UK Marketplace,Yes,,
Http://opendatacommunities.org/id/metropolitan-district-council/leeds,Leeds City Council,30/09/2017,Communities and Environment,Communities  ,Supplies and Services,Office Furniture & Equipment,201,01/08/2017,1709-00653,0.00,69.88,R,Amazon UK Marketplace,Yes,,
Http://opendatacommunities.org/id/metropolitan-district-council/leeds,Leeds City Council,30/09/2017,City Development,Libraries  Arts & Heritage  ,Supplies and Services,Office Consumables,210,01/08/2017,1709-00654,0.00,179.40,R,Amazon UK Marketplace,Yes,,
Http://opendatacommunities.org/id/metropolitan-district-council/leeds,Leeds City Council,30/09/2017,City Development,Recreation  ,Supplies and Services,Operational Furniture And Equipment,203,01/08/2017,1709-00655,0.00,13.99,R,Amazon UK Marketplace,Yes,,
Http://opendatacommunities.org/id/metropolitan-district-council/leeds,Leeds City Council,30/09/2017,City Development,Libraries  Arts & Heritage  ,Supplies and Services,Office Consumables,210,02/08/2017,1709-00656,0.00,12.41,R,Amazon UK Marketplace,Yes,,
Http://opendatacommunities.org/id/metropolitan-district-council/leeds,Leeds City Council,30/09/2017,Children and Families,Partnerships  ,Supplies and Services,Office Consumables,210,02/08/2017,1709-00657,0.00,2.48,R,Amazon UK Marketplace,Yes,,
Http://opendatacommunities.org/id/metropolitan-district-council/leeds,Leeds City Council,30/09/2017,Children and Families,Safeguarding Targeted & Specialist  ,Supplies and Services,Office Consumables,210,02/08/2017,1709-00658,0.00,4.98,R,Amazon UK Marketplace,Yes,,
Http://opendatacommunities.org/id/metropolitan-district-council/leeds,Leeds City Council,30/09/2017,City Development,Recreation  ,Supplies and Services,Operational Furniture And Equipment,203,02/08/2017,1709-00659,0.00,239.59,R,Amazon UK Marketplace,Yes,,
Http://opendatacommunities.org/id/metropolitan-district-council/leeds,Leeds City Council,30/09/2017,Children and Families,Learning Skills & Universal  ,Supplies and Services,Office Consumables,210,02/08/2017,1709-00660,0.00,5.94,R,Amazon UK Marketplace,Yes,,
Http://opendatacommunities.org/id/metropolitan-district-council/leeds,Leeds City Council,30/09/2017,Adults and Health,Other Generic Services  ,Supplies and Services,Office Furniture & Equipment,201,02/08/2017,1709-00661,0.00,8.52,R,Amazon UK Marketplace,Yes,,
Http://opendatacommunities.org/id/metropolitan-district-council/leeds,Leeds City Council,30/09/2017,City Development,Economic Development  ,Supplies and Services,Operational Materials,205,02/08/2017,1709-00662,0.00,53.28,R,Amazon UK Marketplace,Yes,,
Http://opendatacommunities.org/id/metropolitan-district-council/leeds,Leeds City Council,30/09/2017,City Development,Libraries  Arts & Heritage  ,Supplies and Services,Operational Materials,205,03/08/2017,1709-00663,0.00,5.24,R,Amazon UK Marketplace,Yes,,
Http://opendatacommunities.org/id/metropolitan-district-council/leeds,Leeds City Council,30/09/2017,Adults and Health,Public Health  ,Supplies and Services,Teaching Materials,202,03/08/2017,1709-00664,0.00,14.99,R,Amazon UK Marketplace,Yes,,
Http://opendatacommunities.org/id/metropolitan-district-council/leeds,Leeds City Council,30/09/2017,Adults and Health,Services For Adults Under 65 Mental/Dis  ,Supplies and Services,Office Consumables,210,03/08/2017,1709-00665,0.00,10.88,R,Amazon UK Marketplace,Yes,,
Http://opendatacommunities.org/id/metropolitan-district-council/leeds,Leeds City Council,30/09/2017,City Development,Libraries  Arts & Heritage  ,Supplies and Services,Operational Materials,205,03/08/2017,1709-00666,0.00,49.96,R,Amazon UK Marketplace,Yes,,
Http://opendatacommunities.org/id/metropolitan-district-council/leeds,Leeds City Council,30/09/2017,Resources and Housing,Human Resources  ,Supplies and Services,Operational Furniture And Equipment,203,05/08/2017,1709-00667,0.00,129.52,R,Amazon UK Marketplace,Yes,,
Http://opendatacommunities.org/id/metropolitan-district-council/leeds,Leeds City Council,30/09/2017,City Development,Recreation  ,Supplies and Services,Operational Furniture And Equipment,203,05/08/2017,1709-00668,0.00,5.98,R,Amazon UK Marketplace,Yes,,
Http://opendatacommunities.org/id/metropolitan-district-council/leeds,Leeds City Council,30/09/2017,Children and Families,Safeguarding Targeted & Specialist  ,Supplies and Services,Teaching Furniture & Equipment,207,05/08/2017,1709-00669,0.00,29.66,R,Amazon UK Marketplace,Yes,,
Http://opendatacommunities.org/id/metropolitan-district-council/leeds,Leeds City Council,30/09/2017,City Development,Recreation  ,Supplies and Services,Operational Furniture And Equipment,203,05/08/2017,1709-00670,0.00,6.10,R,Amazon UK Marketplace,Yes,,
Http://opendatacommunities.org/id/metropolitan-district-council/leeds,Leeds City Council,30/09/2017,City Development,Recreation  ,Supplies and Services,Operational Furniture And Equipment,203,06/08/2017,1709-00671,0.00,36.73,R,Amazon UK Marketplace,Yes,,
Http://opendatacommunities.org/id/metropolitan-district-council/leeds,Leeds City Council,30/09/2017,Children and Families,Safeguarding Targeted & Specialist  ,Supplies and Services,Teaching Furniture & Equipment,207,06/08/2017,1709-00672,0.00,78.33,R,Amazon UK Marketplace,Yes,,
Http://opendatacommunities.org/id/metropolitan-district-council/leeds,Leeds City Council,30/09/2017,Children and Families,Safeguarding Targeted & Specialist  ,Supplies and Services,Teaching Furniture & Equipment,207,06/08/2017,1709-00673,0.00,12.75,R,Amazon UK Marketplace,Yes,,
Http://opendatacommunities.org/id/metropolitan-district-council/leeds,Leeds City Council,30/09/2017,Children and Families,Safeguarding Targeted & Specialist  ,Third Party Payments, Direct Work,549,07/08/2017,1709-00674,0.00,3.63,R,Amazon UK Marketplace,Yes,,
Http://opendatacommunities.org/id/metropolitan-district-council/leeds,Leeds City Council,30/09/2017,City Development,Recreation  ,Supplies and Services,Operational Furniture And Equipment,203,07/08/2017,1709-00675,0.00,8.19,R,Amazon UK Marketplace,Yes,,
Http://opendatacommunities.org/id/metropolitan-district-council/leeds,Leeds City Council,30/09/2017,Resources and Housing,Technology  ,Supplies and Services,Operational Materials,205,07/08/2017,1709-00676,0.00,17.98,R,Amazon UK Marketplace,Yes,,
Http://opendatacommunities.org/id/metropolitan-district-council/leeds,Leeds City Council,30/09/2017,Children and Families,Safeguarding Targeted & Specialist  ,Third Party Payments, Direct Work,549,07/08/2017,1709-00677,0.00,12.65,R,Amazon UK Marketplace,Yes,,
Http://opendatacommunities.org/id/metropolitan-district-council/leeds,Leeds City Council,30/09/2017,City Development,Planning & Sustainable Development  ,Supplies and Services,Computer Software & Equipment,214,08/08/2017,1709-00678,0.00,24.73,R,Amazon UK Marketplace,Yes,,
Http://opendatacommunities.org/id/metropolitan-district-council/leeds,Leeds City Council,30/09/2017,City Development,Libraries  Arts & Heritage  ,Supplies and Services,Books & Audio-Visual Materials,206,08/08/2017,1709-00679,0.00,3.82,R,Amazon UK Marketplace,Yes,,
Http://opendatacommunities.org/id/metropolitan-district-council/leeds,Leeds City Council,30/09/2017,Environment & Housing,Parks And Countryside  ,Supplies and Services,Office Consumables,210,08/08/2017,1709-00680,0.00,16.65,R,Amazon UK Marketplace,Yes,,
Http://opendatacommunities.org/id/metropolitan-district-council/leeds,Leeds City Council,30/09/2017,Adults and Health,Public Health  ,Supplies and Services,Teaching Materials,202,08/08/2017,1709-00681,0.00,11.98,R,Amazon UK Marketplace,Yes,,
Http://opendatacommunities.org/id/metropolitan-district-council/leeds,Leeds City Council,30/09/2017,Adults and Health,Public Health  ,Supplies and Services,Postages,212,08/08/2017,1709-00682,0.00,5.60,R,Amazon UK Marketplace,Yes,,
Http://opendatacommunities.org/id/metropolitan-district-council/leeds,Leeds City Council,30/09/2017,Children and Families,Safeguarding Targeted & Specialist  ,Supplies and Services,Books & Audio-Visual Materials,206,09/08/2017,1709-00683,0.00,6.99,R,Amazon UK Marketplace,Yes,,
Http://opendatacommunities.org/id/metropolitan-district-council/leeds,Leeds City Council,30/09/2017,Adults and Health,Services For Adults Under 65 Mental/Dis  ,Supplies and Services,Operational Materials,205,09/08/2017,1709-00684,0.00,6.23,R,Amazon UK Marketplace,Yes,,
Http://opendatacommunities.org/id/metropolitan-district-council/leeds,Leeds City Council,30/09/2017,Civic Enterprise Leeds,Facilities Management  ,Supplies and Services,Operational Furniture And Equipment,203,10/08/2017,1709-00685,0.00,22.03,R,Amazon UK Marketplace,Yes,,
Http://opendatacommunities.org/id/metropolitan-district-council/leeds,Leeds City Council,30/09/2017,Children and Families,Safeguarding Targeted & Specialist  ,Supplies and Services,Books & Audio-Visual Materials,206,10/08/2017,1709-00686,0.00,6.27,R,Amazon UK Marketplace,Yes,,
Http://opendatacommunities.org/id/metropolitan-district-council/leeds,Leeds City Council,30/09/2017,Children and Families,Partnerships  ,Supplies and Services,Operational Furniture And Equipment,203,10/08/2017,1709-00687,0.00,174.98,R,Amazon UK Marketplace,Yes,,
Http://opendatacommunities.org/id/metropolitan-district-council/leeds,Leeds City Council,30/09/2017,Children and Families,Safeguarding Targeted & Specialist  ,Supplies and Services,Operational Furniture And Equipment,203,10/08/2017,1709-00688,0.00,133.33,R,Amazon UK Marketplace,Yes,,
Http://opendatacommunities.org/id/metropolitan-district-council/leeds,Leeds City Council,30/09/2017,Children and Families,Safeguarding Targeted & Specialist  ,Premises,Furniture And Fittings,195,10/08/2017,1709-00689,0.00,38.48,R,Amazon UK Marketplace,Yes,,
Http://opendatacommunities.org/id/metropolitan-district-council/leeds,Leeds City Council,30/09/2017,Children and Families,Safeguarding Targeted & Specialist  ,Supplies and Services,Books & Audio-Visual Materials,206,10/08/2017,1709-00690,0.00,5.96,R,Amazon UK Marketplace,Yes,,
Http://opendatacommunities.org/id/metropolitan-district-council/leeds,Leeds City Council,30/09/2017,Environment & Housing,Environmental Action (West North West)  ,Supplies and Services,Books & Audio-Visual Materials,206,10/08/2017,1709-00691,0.00,5.49,R,Amazon UK Marketplace,Yes,,
Http://opendatacommunities.org/id/metropolitan-district-council/leeds,Leeds City Council,30/09/2017,Environment & Housing,Environmental Action (West North West)  ,Supplies and Services,Books & Audio-Visual Materials,206,10/08/2017,1709-00692,0.00,17.64,R,Amazon UK Marketplace,Yes,,
Http://opendatacommunities.org/id/metropolitan-district-council/leeds,Leeds City Council,30/09/2017,Children and Families,Safeguarding Targeted & Specialist  ,Supplies and Services,Office Consumables,210,10/08/2017,1709-00693,0.00,5.76,R,Amazon UK Marketplace,Yes,,
Http://opendatacommunities.org/id/metropolitan-district-council/leeds,Leeds City Council,30/09/2017,Children and Families,Learning Skills & Universal  ,Supplies and Services,Office Consumables,210,10/08/2017,1709-00694,0.00,164.08,R,Amazon UK Marketplace,Yes,,
Http://opendatacommunities.org/id/metropolitan-district-council/leeds,Leeds City Council,30/09/2017,Communities and Environment,Customer Access  ,Supplies and Services,Operational Materials,205,10/08/2017,1709-00695,0.00,9.30,R,Amazon UK Marketplace,Yes,,
Http://opendatacommunities.org/id/metropolitan-district-council/leeds,Leeds City Council,30/09/2017,Children and Families,Partnerships  ,Supplies and Services,Operational Furniture And Equipment,203,10/08/2017,1709-00696,0.00,19.99,R,Amazon UK Marketplace,Yes,,
Http://opendatacommunities.org/id/metropolitan-district-council/leeds,Leeds City Council,30/09/2017,Communities and Environment,Customer Access  ,Supplies and Services,Operational Materials,205,10/08/2017,1709-00697,0.00,10.89,R,Amazon UK Marketplace,Yes,,
Http://opendatacommunities.org/id/metropolitan-district-council/leeds,Leeds City Council,30/09/2017,City Development,Libraries  Arts & Heritage  ,Supplies and Services,Operational Materials,205,11/08/2017,1709-00698,0.00,29.99,R,Amazon UK Marketplace,Yes,,
Http://opendatacommunities.org/id/metropolitan-district-council/leeds,Leeds City Council,30/09/2017,City Development,Libraries  Arts & Heritage  ,Supplies and Services,Operational Materials,205,11/08/2017,1709-00699,0.00,9.43,R,Amazon UK Marketplace,Yes,,
Http://opendatacommunities.org/id/metropolitan-district-council/leeds,Leeds City Council,30/09/2017,Adults and Health,Services For Older People - 65 And Over  ,Supplies and Services,General Amenity For Clients/Residents,285,11/08/2017,1709-00700,0.00,15.90,R,Amazon UK Marketplace,Yes,,
Http://opendatacommunities.org/id/metropolitan-district-council/leeds,Leeds City Council,30/09/2017,Children and Families,Safeguarding Targeted & Specialist  ,Supplies and Services,Operational Furniture And Equipment,203,11/08/2017,1709-00701,0.00,119.95,R,Amazon UK Marketplace,Yes,,
Http://opendatacommunities.org/id/metropolitan-district-council/leeds,Leeds City Council,30/09/2017,Adults and Health,Services For Older People - 65 And Over  ,Supplies and Services,General Amenity For Clients/Residents,285,11/08/2017,1709-00702,0.00,10.15,R,Amazon UK Marketplace,Yes,,
Http://opendatacommunities.org/id/metropolitan-district-council/leeds,Leeds City Council,30/09/2017,City Development,Libraries  Arts & Heritage  ,Supplies and Services,Operational Materials,205,11/08/2017,1709-00703,0.00,12.89,R,Amazon UK Marketplace,Yes,,
Http://opendatacommunities.org/id/metropolitan-district-council/leeds,Leeds City Council,30/09/2017,City Development,Libraries  Arts & Heritage  ,Supplies and Services,Operational Materials,205,11/08/2017,1709-00704,0.00,8.98,R,Amazon UK Marketplace,Yes,,
Http://opendatacommunities.org/id/metropolitan-district-council/leeds,Leeds City Council,30/09/2017,Adults and Health,Services For Older People - 65 And Over  ,Supplies and Services,General Amenity For Clients/Residents,285,11/08/2017,1709-00705,0.00,29.99,R,Amazon UK Marketplace,Yes,,
Http://opendatacommunities.org/id/metropolitan-district-council/leeds,Leeds City Council,30/09/2017,Adults and Health,Services For Older People - 65 And Over  ,Supplies and Services,General Amenity For Clients/Residents,285,11/08/2017,1709-00706,0.00,24.77,R,Amazon UK Marketplace,Yes,,
Http://opendatacommunities.org/id/metropolitan-district-council/leeds,Leeds City Council,30/09/2017,Communities and Environment,Customer Access  ,Supplies and Services,Operational Materials,205,12/08/2017,1709-00707,0.00,12.96,R,Amazon UK Marketplace,Yes,,
Http://opendatacommunities.org/id/metropolitan-district-council/leeds,Leeds City Council,30/09/2017,City Development,Libraries  Arts & Heritage  ,Supplies and Services,Operational Materials,205,12/08/2017,1709-00708,0.00,56.04,R,Amazon UK Marketplace,Yes,,
Http://opendatacommunities.org/id/metropolitan-district-council/leeds,Leeds City Council,30/09/2017,City Development,Libraries  Arts & Heritage  ,Supplies and Services,Operational Materials,205,12/08/2017,1709-00709,0.00,12.00,R,Amazon UK Marketplace,Yes,,
Http://opendatacommunities.org/id/metropolitan-district-council/leeds,Leeds City Council,30/09/2017,Children and Families,Safeguarding Targeted & Specialist  ,Premises,Furniture And Fittings,195,12/08/2017,1709-00710,0.00,38.48,R,Amazon UK Marketplace,Yes,,
Http://opendatacommunities.org/id/metropolitan-district-council/leeds,Leeds City Council,30/09/2017,Children and Families,Partnerships  ,Supplies and Services,Teaching Materials,202,12/08/2017,1709-00711,0.00,14.97,R,Amazon UK Marketplace,Yes,,
Http://opendatacommunities.org/id/metropolitan-district-council/leeds,Leeds City Council,30/09/2017,Children and Families,Safeguarding Targeted & Specialist  ,Premises,Furniture And Fittings,195,12/08/2017,1709-00712,0.00,38.48,R,Amazon UK Marketplace,Yes,,
Http://opendatacommunities.org/id/metropolitan-district-council/leeds,Leeds City Council,30/09/2017,Children and Families,Safeguarding Targeted & Specialist  ,Premises,Furniture And Fittings,195,12/08/2017,1709-00713,0.00,38.48,R,Amazon UK Marketplace,Yes,,
Http://opendatacommunities.org/id/metropolitan-district-council/leeds,Leeds City Council,30/09/2017,Children and Families,Learning Skills & Universal  ,Supplies and Services,Teaching Materials,202,14/08/2017,1709-00714,0.00,2.49,R,Amazon UK Marketplace,Yes,,
Http://opendatacommunities.org/id/metropolitan-district-council/leeds,Leeds City Council,30/09/2017,Environment & Housing,Leeds Building Services  ,Supplies and Services,Computer Software & Equipment,214,14/08/2017,1709-00715,0.00,10.13,R,Amazon UK Marketplace,Yes,,
Http://opendatacommunities.org/id/metropolitan-district-council/leeds,Leeds City Council,30/09/2017,City Development,Libraries  Arts & Heritage  ,Supplies and Services,Operational Materials,205,14/08/2017,1709-00716,0.00,21.07,R,Amazon UK Marketplace,Yes,,
Http://opendatacommunities.org/id/metropolitan-district-council/leeds,Leeds City Council,30/09/2017,Adults and Health,Services For Adults Under 65 Learn/Dis  ,Supplies and Services,Books & Audio-Visual Materials,206,14/08/2017,1709-00717,0.00,11.99,R,Amazon UK Marketplace,Yes,,
Http://opendatacommunities.org/id/metropolitan-district-council/leeds,Leeds City Council,30/09/2017,Communities and Environment,Benefits  Wlefare And Poverty  ,Supplies and Services,Office Furniture & Equipment,201,15/08/2017,1709-00718,0.00,7.95,R,Amazon UK Marketplace,Yes,,
Http://opendatacommunities.org/id/metropolitan-district-council/leeds,Leeds City Council,30/09/2017,City Development,Libraries  Arts & Heritage  ,Supplies and Services,Office Consumables,210,15/08/2017,1709-00719,0.00,22.99,R,Amazon UK Marketplace,Yes,,
Http://opendatacommunities.org/id/metropolitan-district-council/leeds,Leeds City Council,30/09/2017,Children and Families,Safeguarding Targeted & Specialist  ,Supplies and Services,Books & Audio-Visual Materials,206,15/08/2017,1709-00720,0.00,18.88,R,Amazon UK Marketplace,Yes,,
Http://opendatacommunities.org/id/metropolitan-district-council/leeds,Leeds City Council,30/09/2017,Communities and Environment,Customer Access  ,Supplies and Services,Office Furniture & Equipment,201,15/08/2017,1709-00721,0.00,19.98,R,Amazon UK Marketplace,Yes,,
Http://opendatacommunities.org/id/metropolitan-district-council/leeds,Leeds City Council,30/09/2017,Environment & Housing,Environmental Action (West North West)  ,Supplies and Services,Books & Audio-Visual Materials,206,16/08/2017,1709-00722,0.00,44.47,R,Amazon UK Marketplace,Yes,,
Http://opendatacommunities.org/id/metropolitan-district-council/leeds,Leeds City Council,30/09/2017,Children and Families,Safeguarding Targeted & Specialist  ,Supplies and Services,Teaching Materials,202,16/08/2017,1709-00723,0.00,11.18,R,Amazon UK Marketplace,Yes,,
Http://opendatacommunities.org/id/metropolitan-district-council/leeds,Leeds City Council,30/09/2017,Strategic Landlord,Housing Management  ,Supplies and Services,Operational Furniture And Equipment,203,16/08/2017,1709-00724,0.00,5.99,R,Amazon UK Marketplace,Yes,,
Http://opendatacommunities.org/id/metropolitan-district-council/leeds,Leeds City Council,30/09/2017,Children and Families,Safeguarding Targeted & Specialist  ,Supplies and Services,Operational Furniture And Equipment,203,16/08/2017,1709-00725,0.00,27.98,R,Amazon UK Marketplace,Yes,,
Http://opendatacommunities.org/id/metropolitan-district-council/leeds,Leeds City Council,30/09/2017,Children and Families,Safeguarding Targeted & Specialist  ,Supplies and Services,Operational Furniture And Equipment,203,16/08/2017,1709-00726,0.00,26.98,R,Amazon UK Marketplace,Yes,,
Http://opendatacommunities.org/id/metropolitan-district-council/leeds,Leeds City Council,30/09/2017,Children and Families,Safeguarding Targeted & Specialist  ,Supplies and Services,Operational Furniture And Equipment,203,16/08/2017,1709-00727,0.00,8.00,R,Amazon UK Marketplace,Yes,,
Http://opendatacommunities.org/id/metropolitan-district-council/leeds,Leeds City Council,30/09/2017,Children and Families,Safeguarding Targeted & Specialist  ,Supplies and Services,Operational Furniture And Equipment,203,16/08/2017,1709-00728,0.00,3.39,R,Amazon UK Marketplace,Yes,,
Http://opendatacommunities.org/id/metropolitan-district-council/leeds,Leeds City Council,30/09/2017,Children and Families,Safeguarding Targeted & Specialist  ,Supplies and Services,General Amenity For Clients/Residents,285,16/08/2017,1709-00729,0.00,7.09,R,Amazon UK Marketplace,Yes,,
Http://opendatacommunities.org/id/metropolitan-district-council/leeds,Leeds City Council,30/09/2017,Children and Families,Safeguarding Targeted & Specialist  ,Supplies and Services,General Amenity For Clients/Residents,285,16/08/2017,1709-00730,0.00,8.92,R,Amazon UK Marketplace,Yes,,
Http://opendatacommunities.org/id/metropolitan-district-council/leeds,Leeds City Council,30/09/2017,City Development,Libraries  Arts & Heritage  ,Supplies and Services,Office Consumables,210,16/08/2017,1709-00731,0.00,5.47,R,Amazon UK Marketplace,Yes,,
Http://opendatacommunities.org/id/metropolitan-district-council/leeds,Leeds City Council,30/09/2017,City Development,Planning & Sustainable Development  ,Supplies and Services,Computer Software & Equipment,214,16/08/2017,1709-00732,0.00,9.28,R,Amazon UK Marketplace,Yes,,
Http://opendatacommunities.org/id/metropolitan-district-council/leeds,Leeds City Council,30/09/2017,City Development,Libraries  Arts & Heritage  ,Supplies and Services,Operational Materials,205,16/08/2017,1709-00733,0.00,29.90,R,Amazon UK Marketplace,Yes,,
Http://opendatacommunities.org/id/metropolitan-district-council/leeds,Leeds City Council,30/09/2017,Children and Families,Safeguarding Targeted & Specialist  ,Supplies and Services,Office Consumables,210,16/08/2017,1709-00734,0.00,5.50,R,Amazon UK Marketplace,Yes,,
Http://opendatacommunities.org/id/metropolitan-district-council/leeds,Leeds City Council,30/09/2017,Children and Families,Safeguarding Targeted & Specialist  ,Supplies and Services,Teaching Materials,202,17/08/2017,1709-00735,0.00,6.45,R,Amazon UK Marketplace,Yes,,
Http://opendatacommunities.org/id/metropolitan-district-council/leeds,Leeds City Council,30/09/2017,Children and Families,Safeguarding Targeted & Specialist  ,Supplies and Services,Teaching Materials,202,17/08/2017,1709-00736,0.00,3.58,R,Amazon UK Marketplace,Yes,,
Http://opendatacommunities.org/id/metropolitan-district-council/leeds,Leeds City Council,30/09/2017,Children and Families,Safeguarding Targeted & Specialist  ,Supplies and Services,Teaching Materials,202,17/08/2017,1709-00737,0.00,0.75,R,Amazon UK Marketplace,Yes,,
Http://opendatacommunities.org/id/metropolitan-district-council/leeds,Leeds City Council,30/09/2017,City Development,Recreation  ,Supplies and Services,Operational Materials,205,17/08/2017,1709-00738,0.00,29.99,R,Amazon UK Marketplace,Yes,,
Http://opendatacommunities.org/id/metropolitan-district-council/leeds,Leeds City Council,30/09/2017,Children and Families,Safeguarding Targeted & Specialist  ,Supplies and Services,Teaching Materials,202,17/08/2017,1709-00739,0.00,0.61,R,Amazon UK Marketplace,Yes,,
Http://opendatacommunities.org/id/metropolitan-district-council/leeds,Leeds City Council,30/09/2017,Children and Families,Safeguarding Targeted & Specialist  ,Supplies and Services,Operational Furniture And Equipment,203,17/08/2017,1709-00740,0.00,9.84,R,Amazon UK Marketplace,Yes,,
Http://opendatacommunities.org/id/metropolitan-district-council/leeds,Leeds City Council,30/09/2017,Environment & Housing,Leeds Building Services  ,Supplies and Services,Computer Software & Equipment,214,17/08/2017,1709-00741,0.00,149.58,R,Amazon UK Marketplace,Yes,,
Http://opendatacommunities.org/id/metropolitan-district-council/leeds,Leeds City Council,30/09/2017,Children and Families,Safeguarding Targeted & Specialist  ,Supplies and Services,Teaching Materials,202,17/08/2017,1709-00742,0.00,2.12,R,Amazon UK Marketplace,Yes,,
Http://opendatacommunities.org/id/metropolitan-district-council/leeds,Leeds City Council,30/09/2017,Children and Families,Safeguarding Targeted & Specialist  ,Supplies and Services,Teaching Materials,202,17/08/2017,1709-00743,0.00,0.81,R,Amazon UK Marketplace,Yes,,
Http://opendatacommunities.org/id/metropolitan-district-council/leeds,Leeds City Council,30/09/2017,Children and Families,Safeguarding Targeted & Specialist  ,Supplies and Services,Teaching Materials,202,17/08/2017,1709-00744,0.00,9.12,R,Amazon UK Marketplace,Yes,,
Http://opendatacommunities.org/id/metropolitan-district-council/leeds,Leeds City Council,30/09/2017,Adults and Health,Services For Older People - 65 And Over  ,Supplies and Services,Books & Audio-Visual Materials,206,18/08/2017,1709-00745,0.00,16.64,R,Amazon UK Marketplace,Yes,,
Http://opendatacommunities.org/id/metropolitan-district-council/leeds,Leeds City Council,30/09/2017,City Development,Libraries  Arts & Heritage  ,Supplies and Services,Books & Audio-Visual Materials,206,18/08/2017,1709-00746,0.00,52.79,R,Amazon UK Marketplace,Yes,,
Http://opendatacommunities.org/id/metropolitan-district-council/leeds,Leeds City Council,30/09/2017,Children and Families,Safeguarding Targeted & Specialist  ,Supplies and Services,General Amenity For Clients/Residents,285,18/08/2017,1709-00747,0.00,41.97,R,Amazon UK Marketplace,Yes,,
Http://opendatacommunities.org/id/metropolitan-district-council/leeds,Leeds City Council,30/09/2017,Children and Families,Safeguarding Targeted & Specialist  ,Supplies and Services,Teaching Furniture & Equipment,207,18/08/2017,1709-00748,0.00,7.20,R,Amazon UK Marketplace,Yes,,
Http://opendatacommunities.org/id/metropolitan-district-council/leeds,Leeds City Council,30/09/2017,Children and Families,Safeguarding Targeted & Specialist  ,Supplies and Services,Teaching Furniture & Equipment,207,19/08/2017,1709-00749,0.00,5.83,R,Amazon UK Marketplace,Yes,,
Http://opendatacommunities.org/id/metropolitan-district-council/leeds,Leeds City Council,30/09/2017,Children and Families,Safeguarding Targeted & Specialist  ,Supplies and Services,Teaching Furniture & Equipment,207,19/08/2017,1709-00750,0.00,6.33,R,Amazon UK Marketplace,Yes,,
Http://opendatacommunities.org/id/metropolitan-district-council/leeds,Leeds City Council,30/09/2017,Children and Families,Safeguarding Targeted & Specialist  ,Supplies and Services,Teaching Furniture & Equipment,207,20/08/2017,1709-00751,0.00,77.86,R,Amazon UK Marketplace,Yes,,
Http://opendatacommunities.org/id/metropolitan-district-council/leeds,Leeds City Council,30/09/2017,Communities and Environment,Customer Access  ,Supplies and Services,Operational Materials,205,21/08/2017,1709-00752,0.00,26.81,R,Amazon UK Marketplace,Yes,,
